Ref No,Fund Type,Dept,Cost Centre Description    ,Description    ,Creditor Name    ,GL Code Net Amount,Payment date        
2,Revenue,CCHD,Swift Dump Code,Permanent Residential,.,3753.43, 12-May-2015
3,Revenue,CCHD,Bed Purchasing - South,Permanent Residential,.,5134.88, 12-May-2015
4,Revenue,CCHD,18-25 Year Olds,Permanent Residential,1 St Georges House,13350.08, 12-May-2015
5,Revenue,CCHD,Breakthrough and Inclusion Work,Other Supplies & Services,121Turnaround Limited,2325.54, 15-May-2015
6,Revenue,CCHD,Supporting People Programme,Grants to Voluntary Bodies,1625 Independent People,16872.78, 01-May-2015
7,Revenue,CCHD,Home Care - Elderly - South,Day Care / Social Activities,3 Trees Community Support Ltd,201.15, 01-May-2015
8,Revenue,CCHD,Home Care - Elderly - North,Day Care / Social Activities,3 Trees Community Support Ltd,2306.52, 01-May-2015
9,Revenue,CCHD,Home Care - Elderly - North,Other Small Contracts,3 Trees Community Support Ltd,107.28, 01-May-2015
10,Revenue,CCHD,Home Care - Elderly - North,Supported Living,3 Trees Community Support Ltd,8126.48, 01-May-2015
11,Revenue,CCHD,Home Care - Elderly - South,Day Care / Social Activities,3 Trees Community Support Ltd,198.88, 14-May-2015
12,Revenue,CCHD,Home Care - Elderly - North,Day Care / Social Activities,3 Trees Community Support Ltd,2594.48, 14-May-2015
13,Revenue,CCHD,Home Care - Elderly - North,Other Small Contracts,3 Trees Community Support Ltd,560.48, 14-May-2015
14,Revenue,CCHD,Home Care - Elderly - North,Supported Living,3 Trees Community Support Ltd,8492.72, 14-May-2015
15,Revenue,CCHD,Home Care - Elderly - South,Day Care / Social Activities,3 Trees Community Support Ltd,90.40, 14-May-2015
16,Revenue,CCHD,Home Care - Elderly - North,Day Care / Social Activities,3 Trees Community Support Ltd,2743.64, 14-May-2015
17,Revenue,CCHD,Home Care - Elderly - North,Other Small Contracts,3 Trees Community Support Ltd,108.48, 14-May-2015
18,Revenue,CCHD,Home Care - Elderly - North,Supported Living,3 Trees Community Support Ltd,8656.07, 14-May-2015
19,Revenue,CCHD,Home Care - Elderly - South,Day Care / Social Activities,3 Trees Community Support Ltd,198.88, 15-May-2015
20,Revenue,CCHD,Home Care - Elderly - North,Day Care / Social Activities,3 Trees Community Support Ltd,2874.72, 15-May-2015
21,Revenue,CCHD,Home Care - Elderly - North,Other Small Contracts,3 Trees Community Support Ltd,108.48, 15-May-2015
22,Revenue,CCHD,Home Care - Elderly - North,Supported Living,3 Trees Community Support Ltd,9020.40, 15-May-2015
23,Revenue,CCHD,Bed Purchasing - South,Permanent Residential,5Th Floor Harlech Court,16236.56, 12-May-2015
24,Revenue,CCHD,18-25 Year Olds,Permanent Residential,5Th Floor Harlech Court,13837.80, 12-May-2015
25,Revenue,CCHD,18-25 Year Olds,Permanent Residential,5Th Floor Harlech Court,14114.08, 12-May-2015
26,Revenue,CCHD,18-25 Year Olds,Permanent Residential,5Th Floor Harlech Court,12656.32, 12-May-2015
27,Revenue,CCHD,Bed Purchasing - North,Permanent Residential,5Th Floor Harlech Court,16769.20, 12-May-2015
28,Revenue,CCHD,18-25 Year Olds,Permanent Residential,5Th Floor Harlech Court,15925.08, 12-May-2015
29,Revenue,CCHD,Bed Purchasing - South,Permanent Residential,5Th Floor Harlech Court,9403.36, 12-May-2015
30,Revenue,CCHD,Bed purchasing - S28A Under 65 - South,Permanent Residential,5Th Floor Harlech Court,10685.32, 12-May-2015
31,Revenue,CCHD,Bed purchasing - S28A Under 65 - South,Permanent Residential,5Th Floor Harlech Court,10834.28, 12-May-2015
32,Revenue,CCHD,Bed Purchasing - South,Permanent Nursing,5Th Floor Harlech Court,10352.52, 12-May-2015
33,Revenue,CCHD,Bed Purchasing - North,Permanent Nursing,ABI Development Limited,7046.44, 19-May-2015
34,Revenue,CCHD,Housing Needs,Storage & Removal,Ablemove-Wottons,480.00, 11-May-2015
35,Revenue,CCHD,Housing Needs,Storage & Removal,Ablemove-Wottons,624.00, 11-May-2015
36,Revenue,CCHD,Day Care - South,Day Care / Social Activities,About Me Care and Support Limited,1117.97, 22-May-2015
37,Revenue,CCHD,Day Care - North,Day Care / Social Activities,About Me Care and Support Limited,545.05, 14-May-2015
38,Revenue,CCHD,Day Care - North,Day Care / Social Activities,About Me Care and Support Limited,647.64, 14-May-2015
39,Revenue,CCHD,Day Care - South,Day Care / Social Activities,About Me Care and Support Limited,754.50, 15-May-2015
40,Revenue,CCHD,Day Care - South,Day Care / Social Activities,About Me Care and Support Limited,1248.45, 22-May-2015
41,Revenue,CCHD,Day Care - North,Day Care / Social Activities,About Me Care and Support Limited,953.24, 21-May-2015
42,Revenue,CCHD,Day Care - South,Day Care / Social Activities,About Me Care and Support Limited,739.10, 22-May-2015
43,Revenue,CCHD,Day Care - South,Day Care / Social Activities,Action on Hearing Loss,3581.76, 01-May-2015
44,Revenue,CCHD,Day Care - South,Day Care / Social Activities,Action on Hearing Loss,750.40, 22-May-2015
45,Revenue,CCHD,Home Care - Elderly - South,Other Small Contracts,Agincare Chippenham,1813.35, 12-May-2015
46,Revenue,CCHD,Home Care - Elderly - North,Other Small Contracts,Agincare Chippenham,150.15, 12-May-2015
47,Revenue,CCHD,Home Care - Elderly - South,Other Small Contracts,Agincare UK Limited,319.55, 22-May-2015
48,Revenue,CCHD,Home Care - Elderly - North,Other Small Contracts,Agincare UK Limited,161.70, 22-May-2015
49,Revenue,CCHD,Elderly MH Day Care North,Day Care / Social Activities,Agincare UK Limited,61.60, 22-May-2015
50,Revenue,CCHD,Home Care - Elderly - South,Other Small Contracts,Agincare UK Limited,281.05, 26-May-2015
51,Revenue,CCHD,Home Care - Elderly - North,Other Small Contracts,Agincare UK Limited,180.95, 26-May-2015
52,Revenue,CCHD,Elderly MH Day Care North,Day Care / Social Activities,Agincare UK Limited,50.05, 26-May-2015
53,Revenue,CCHD,Home Care - Elderly - South,Other Small Contracts,Agincare UK Limited,281.05, 27-May-2015
54,Revenue,CCHD,Home Care - Elderly - North,Other Small Contracts,Agincare UK Limited,169.40, 27-May-2015
55,Revenue,CCHD,Elderly MH Day Care North,Day Care / Social Activities,Agincare UK Limited,50.05, 27-May-2015
56,Revenue,CCHD,Home Care - Elderly - North,Other Small Contracts,Agincare UK Nutfield,1892.40, 06-May-2015
57,Revenue,CCHD,Home Care - Elderly - North,Other Small Contracts,Agincare UK Nutfield,1744.20, 06-May-2015
58,Revenue,CCHD,Home Care - Elderly - North,Other Small Contracts,Agincare UK Nutfield,1628.55, 12-May-2015
59,Revenue,CCHD,Home Care - Elderly - South,Other Small Contracts,Agincare UK Nutfield,53.90, 12-May-2015
60,Revenue,CCHD,Home Care - Elderly - North,Other Small Contracts,Agincare UK Nutfield,1339.80, 12-May-2015
61,Revenue,CCHD,Home Care - Elderly - South,Other Small Contracts,Agincare UK Nutfield,53.90, 12-May-2015
62,Revenue,CCHD,Home Care - Elderly - North,Other Small Contracts,Agincare UK Nutfield,1155.00, 12-May-2015
63,Revenue,CCHD,Home Care - Elderly - South,Other Small Contracts,Agincare UK Nutfield,53.90, 27-May-2015
64,Revenue,CCHD,Home Care - Elderly - North,Other Small Contracts,Agincare UK Nutfield,1247.40, 27-May-2015
65,Revenue,CCHD,Home Care - Elderly - South,Other Small Contracts,Agincare UK Nutfield,53.90, 27-May-2015
66,Revenue,CCHD,Home Care - Elderly - North,Other Small Contracts,Agincare UK Nutfield,1528.45, 27-May-2015
67,Revenue,CCHD,Supported Living - South,Private & Voluntary Home Care,Alexandra Homes (Bristol) Limited,2530.00, 19-May-2015
68,Revenue,CCHD,Home Care - Elderly - South,Other Small Contracts,AliMo Care Ltd,1338.12, 07-May-2015
69,Revenue,CCHD,Home Care - Elderly - South,Other Small Contracts,AliMo Care Ltd,1421.20, 13-May-2015
70,Revenue,CCHD,Home Care - Elderly - South,Other Small Contracts,AliMo Care Ltd,1563.32, 20-May-2015
71,Revenue,CCHD,Home Care - Elderly - South,Other Small Contracts,AliMo Care Ltd,1554.96, 27-May-2015
72,Revenue,CCHD,Bed Purchasing - South,Permanent Nursing,Ambleside Nusing Ho!,1526.08, 12-May-2015
73,Revenue,CCHD,Supporting People Programme,Grants to Voluntary Bodies,Anchor Housing,905.17, 01-May-2015
74,Revenue,CCHD,Direct Payments - Phys Dis - North,Grants to Voluntary Bodies,Aquarium Card Management Solutions Ltd,1504.50, 01-May-2015
75,Revenue,CCHD,Bed Purchasing - North,Permanent Residential,Ark Care Homes Ltd,10427.08, 12-May-2015
76,Revenue,CCHD,NHS Health Checks & Tobacco Control,Drugs & Medical Supplies,Asda Stores Limited,1580.09, 18-May-2015
77,Revenue,CCHD,S117 Placements PCT,Permanent Residential,Ash View House,7052.76, 12-May-2015
78,Revenue,CCHD,18-25 Year Olds,Permanent Residential,Ash View House,6225.80, 12-May-2015
79,Revenue,CCHD,Section 117 Placements MH Younger,Permanent Residential,Ash View House,6565.76, 12-May-2015
80,Revenue,CCHD,Bed purchasing - Elderly S117 - South,Permanent Residential,Ash View House,6469.86, 12-May-2015
81,Revenue,CCHD,Bed Purchasing - South,Permanent Residential,Ashbourne House,1133.96, 12-May-2015
82,Revenue,CCHD,Swift Dump Code,Permanent Residential,Ashbourne House,1272.00, 12-May-2015
83,Revenue,CCHD,Home Care - Elderly - South,Other Small Contracts,Ashley Commercial Finance Ltd,603.44, 27-May-2015
84,Revenue,CCHD,Home Care - Elderly - North,Other Small Contracts,Ashley Commercial Finance Ltd,5284.86, 27-May-2015
85,Revenue,CCHD,Home Care - Elderly - South,Other Small Contracts,Ashley Commercial Finance Ltd,492.28, 27-May-2015
86,Revenue,CCHD,Home Care - Elderly - North,Other Small Contracts,Ashley Commercial Finance Ltd,5016.29, 27-May-2015
87,Revenue,CCHD,Home Care - Elderly - South,Other Small Contracts,Ashley Commercial Finance Ltd,484.34, 27-May-2015
88,Revenue,CCHD,Home Care - Elderly - North,Other Small Contracts,Ashley Commercial Finance Ltd,4891.60, 27-May-2015
89,Revenue,CCHD,Home Care - Elderly - South,Other Small Contracts,Ashley Commercial Finance Ltd,458.28, 27-May-2015
90,Revenue,CCHD,Home Care - Elderly - North,Other Small Contracts,Ashley Commercial Finance Ltd,5443.30, 27-May-2015
91,Revenue,CCHD,Bed Purchasing - North,Permanent Residential,Aspects 2 Limited,6428.16, 12-May-2015
92,Revenue,CCHD,Supporting People Programme,Grants to Voluntary Bodies,Aspects and Milestones Trust,3254.35, 01-May-2015
93,Revenue,CCHD,Supporting People Programme,Grants to Voluntary Bodies,Aspects and Milestones Trust,1631.60, 01-May-2015
94,Revenue,CCHD,Supporting People Programme,Grants to Voluntary Bodies,Aspects and Milestones Trust,1987.32, 01-May-2015
95,Revenue,CCHD,Supporting People Programme,Grants to Voluntary Bodies,Aspects and Milestones Trust,2476.54, 01-May-2015
96,Revenue,CCHD,Supported Living - South,Private & Voluntary Home Care,Aspirations Support Bristol Limited,1192.88, 15-May-2015
97,Revenue,CCHD,Supported Living - South,Private & Voluntary Home Care,Aspirations Support Bristol Limited,715.57, 11-May-2015
98,Revenue,CCHD,Supported Living - South,Private & Voluntary Home Care,Aspirations Support Bristol Limited,1676.96, 11-May-2015
99,Revenue,CCHD,Purchase of Non-Res Care - North,Day Care / Social Activities,Aspirations Support Bristol Limited,741.48, 15-May-2015
100,Revenue,CCHD,Purchase of Non-Res Care - North,Day Care / Social Activities,Aspirations Support Bristol Limited,797.13, 15-May-2015
101,Revenue,CCHD,MH Purchasing - Younger,Independent Living,Aspirations Support Bristol Limited,52710.00, 11-May-2015
102,Revenue,CCHD,Purchase of Non-Res Care - South,Day Care / Social Activities,Aspirations Support Bristol Limited,3124.35, 15-May-2015
103,Revenue,CCHD,Supported Living - South,Private & Voluntary Home Care,Aspirations Support Bristol Limited,569.64, 15-May-2015
104,Revenue,CCHD,Bed Purchasing - South,Permanent Residential,Autism Specialised Care Homes,5672.64, 12-May-2015
105,Revenue,CCHD,Adults Safeguarding,Health Services (Third Party Payments),Avon & Wiltshire Mental Health,5000.00, 13-May-2015
106,Revenue,CCHD,Alexandra Way,Premises Maintenance by Contractor,Avon Armour Limited,234.00, 28-May-2015
107,Revenue,CCHD,Woodleaze,Premises Maintenance by Contractor,Avon Armour Limited,351.00, 28-May-2015
108,Revenue,CCHD,Purchase of Non-Res Care - North,Day Care / Social Activities,Avon Autistic Foundation Limited,2301.60, 18-May-2015
109,Revenue,CCHD,Purchase of Non-Res Care - North,Day Care / Social Activities,Avon Autistic Foundation Limited,3378.04, 18-May-2015
110,Revenue,CCHD,Purchase of Non-Res Care - North,Day Care / Social Activities,Avon Autistic Foundation Limited,2877.00, 22-May-2015
111,Revenue,CCHD,Purchase of Non-Res Care - North,Day Care / Social Activities,Avon Autistic Foundation Limited,4222.55, 18-May-2015
112,Revenue,CCHD,Purchase of Non-Res Care - North,Day Care / Social Activities,Avon Autistic Foundation Limited,2301.60, 18-May-2015
113,Revenue,CCHD,S75 CCG Interim Beds,Permanent Nursing,Avon Lodge Care Centre,10200.00, 13-May-2015
114,Revenue,CCHD,Learning Difficulties Development Fund,Other Supplies & Services,Avon Valley Railway Company Limited,4000.00, 11-May-2015
115,Revenue,CCHD,Day Care - North,Day Care / Social Activities,Avonedge Limited,675.00, 26-May-2015
116,Revenue,CCHD,Senior Management,Agency Staff (Admin/Support Staff) Pay,Baltimore Consulting Group,2352.00, 15-May-2015
117,Revenue,CCHD,Senior Management,Agency Staff (Admin/Support Staff) Pay,Baltimore Consulting Group,2352.00, 28-May-2015
118,Revenue,CCHD,Bed Purchasing - Southmead Hospital,Permanent Nursing,Bayview Nursing & Residential Home,1494.36, 12-May-2015
119,Revenue,CCHD,Bed Purchasing - Elderly S117- North,Permanent Nursing,Beaufort Grange Care Home,3001.32, 12-May-2015
120,Revenue,CCHD,South Glos Users in South Glos Homes,Permanent Nursing,Beaufort Grange Care Home,2233.64, 12-May-2015
121,Revenue,CCHD,Bed Purchasing - North,Permanent Residential,Beaufort House,1925.24, 12-May-2015
122,Revenue,CCHD,Bed Purchasing - North,Permanent Residential,Beaufort House,1686.44, 12-May-2015
123,Revenue,CCHD,Bed Purchasing - North,Permanent Residential,Beaufort House,1839.84, 12-May-2015
124,Revenue,CCHD,Bed Purchasing - North,Permanent Residential,Beaufort House,1660.72, 12-May-2015
125,Revenue,CCHD,Bed Purchasing - North,Permanent Residential,Beaufort House,1395.68, 12-May-2015
126,Revenue,CCHD,Bed Purchasing - South,Permanent Residential,Beaufort House,1442.92, 12-May-2015
127,Revenue,CCHD,Bed Purchasing - North,Permanent Residential,Beaufort House,1822.84, 12-May-2015
128,Revenue,CCHD,Bed Purchasing - Southmead Hospital,Permanent Residential,Beaufort House,1270.48, 12-May-2015
129,Revenue,CCHD,Bed Purchasing - North,Permanent Residential,Beaufort House,1365.16, 12-May-2015
130,Revenue,CCHD,Bed Purchasing - North,Permanent Residential,Beaufort House,1876.68, 12-May-2015
131,Revenue,CCHD,Bed Purchasing - North,Permanent Residential,Beaufort House,1778.12, 12-May-2015
132,Revenue,CCHD,Bed Purchasing - North,Permanent Residential,Beaufort House,1720.80, 12-May-2015
133,Revenue,CCHD,Bed Purchasing - South,Permanent Residential,Bedrock Lodge,3186.88, 12-May-2015
134,Revenue,CCHD,Bed Purchasing - South,Permanent Residential,Bedrock Lodge,2976.96, 12-May-2015
135,Revenue,CCHD,Section 117 Placements MH Younger,Permanent Residential,Bedrock Lodge,1885.04, 12-May-2015
136,Revenue,CCHD,Bed Purchasing - North,Permanent Nursing,Beech House,2399.76, 12-May-2015
137,Revenue,CCHD,Bed Purchasing - South,Permanent Residential,Beech House,1270.80, 12-May-2015
138,Revenue,CCHD,Bed Purchasing - North,Permanent Nursing,Beech House,1330.80, 12-May-2015
139,Revenue,CCHD,Bed Purchasing - North,Permanent Nursing,Beech House,1663.92, 12-May-2015
140,Revenue,CCHD,Bed Purchasing - North,Permanent Residential,Beech House,1442.80, 12-May-2015
141,Revenue,CCHD,Bed Purchasing - North,Permanent Nursing,Beech House,2563.88, 12-May-2015
142,Revenue,CCHD,Bed Purchasing - North,Permanent Nursing,Beech House,883.60, 12-May-2015
143,Revenue,CCHD,Bed Purchasing - North,Permanent Residential,Beech House,1924.72, 12-May-2015
144,Revenue,CCHD,Bed Purchasing - Southmead Hospital,Permanent Nursing,Beech House,2584.28, 12-May-2015
145,Revenue,CCHD,Bed Purchasing - North,Permanent Residential,Beech House,1413.56, 12-May-2015
146,Revenue,CCHD,Bed Purchasing - North,Permanent Nursing,Blossom Field,1835.00, 12-May-2015
147,Revenue,CCHD,Swift Dump Code,Permanent Residential,Blossom Field,959.69, 12-May-2015
148,Revenue,CCHD,Bed Purchasing - Elderly S117- North,Permanent Nursing,Blossom Field,2012.00, 12-May-2015
149,Revenue,CCHD,Bed Purchasing - North,Permanent Nursing,Blossom Field,1393.52, 12-May-2015
150,Revenue,CCHD,South Glos Users in South Glos Homes,Permanent Nursing,Blossom Field,586.13, 12-May-2015
151,Revenue,CCHD,Bed Purchasing - North,Permanent Nursing,Blossom Field,3316.70, 12-May-2015
152,Revenue,CCHD,Bed Purchasing - North,Permanent Nursing,Blossom Field,2641.44, 12-May-2015
153,Revenue,CCHD,Bed Purchasing - North,Permanent Nursing,Blossom Field,605.84, 12-May-2015
154,Revenue,CCHD,Bed Purchasing - North,Permanent Nursing,Blossom Field,2365.36, 12-May-2015
155,Revenue,CCHD,Bed Purchasing - North,Permanent Nursing,Blossom Field,2729.24, 12-May-2015
156,Revenue,CCHD,Bed Purchasing - South,Permanent Nursing,Blossom Field,1926.44, 12-May-2015
157,Revenue,CCHD,Bed Purchasing - Southmead Hospital,Permanent Nursing,Blossom Field,2574.16, 12-May-2015
158,Revenue,CCHD,Bed Purchasing - North,Permanent Nursing,Blossom Fields,2588.96, 13-May-2015
159,Revenue,CCHD,Bed Purchasing - Southmead Hospital,Permanent Nursing,Blossom Fields,2093.16, 13-May-2015
160,Revenue,CCHD,Bed Purchasing - North,Permanent Nursing,Blossom Fields,2588.96, 13-May-2015
161,Revenue,CCHD,Bed Purchasing - North,Permanent Nursing,Blossom Fields,2609.93, 13-May-2015
162,Revenue,CCHD,Bed Purchasing - Southmead Hospital,Permanent Nursing,Blossom Fields,2107.08, 13-May-2015
163,Revenue,CCHD,Bed Purchasing - North,Permanent Nursing,Blossom Fields,2585.63, 13-May-2015
164,Revenue,CCHD,NHS Health Checks & Tobacco Control,Drugs & Medical Supplies,Boots UK Ltd,6933.27, 19-May-2015
165,Revenue,CCHD,18-25 Year Olds,Permanent Residential,Bradbury House,8855.64, 12-May-2015
166,Revenue,CCHD,Bed Purchasing - North,Permanent Residential,Bradley House,1546.32, 12-May-2015
167,Revenue,CCHD,Home Care - Elderly - North,Other Small Contracts,Bradley House Home Care Services,738.72, 11-May-2015
168,Revenue,CCHD,Home Care - Elderly - North,Other Small Contracts,Bradley House Home Care Services,833.76, 15-May-2015
169,Revenue,CCHD,Home Care - Elderly - North,Other Small Contracts,Bradley House Home Care Services,781.92, 15-May-2015
170,Revenue,CCHD,Home Care - Elderly - North,Other Small Contracts,Bradley House Home Care Services,989.28, 27-May-2015
171,Revenue,CCHD,Sexual Health,Other Small Contracts,Bradley Stoke Surgery,2498.32, 27-May-2015
172,Revenue,CCHD,Alexandra Way,"Provisions (Food, etc)",Brake Bros,532.78, 26-May-2015
173,Revenue,CCHD,Woodleaze,"Provisions (Food, etc)",Brake Bros,668.89, 11-May-2015
174,Revenue,CCHD,Woodleaze,"Provisions (Food, etc)",Brake Bros,545.52, 26-May-2015
175,Revenue,CCHD,Alexandra Way,"Provisions (Food, etc)",Brake Bros,746.90, 26-May-2015
176,Revenue,CCHD,Bed Purchasing - South,Permanent Nursing,Brandon Trust,5092.28, 12-May-2015
177,Revenue,CCHD,Bed Purchasing - S28A - Over 65- North,Permanent Residential,Brandon Trust,3126.48, 12-May-2015
178,Revenue,CCHD,Bed Purchasing - South,Permanent Residential,Brandon Trust,10380.40, 12-May-2015
179,Revenue,CCHD,Bed Purchasing - South,Permanent Residential,Brandon Trust,4080.76, 12-May-2015
180,Revenue,CCHD,Bed Purchasing - South,Permanent Residential,Brandon Trust,3493.24, 12-May-2015
181,Revenue,CCHD,Bed Purchasing - Southmead Hospital,Permanent Nursing,Brandon Trust,4571.84, 12-May-2015
182,Revenue,CCHD,Bed Purchasing - LD S28A- Over 65- South,Permanent Nursing,Brandon Trust,4908.88, 12-May-2015
183,Revenue,CCHD,Bed Purchasing - South,Permanent Nursing,Brandon Trust,5092.48, 12-May-2015
184,Revenue,CCHD,Bed purchasing - S28A Under 65 - South,Permanent Nursing,Brandon Trust,5418.04, 12-May-2015
185,Revenue,CCHD,Bed purchasing - S28A Under 65 - South,Permanent Residential,Brandon Trust,4956.60, 12-May-2015
186,Revenue,CCHD,Bed Purchasing - LD S28A- Over 65- South,Permanent Nursing,Brandon Trust,5234.64, 12-May-2015
187,Revenue,CCHD,Bed Purchasing - LD S28A- Over 65- South,Permanent Nursing,Brandon Trust,4904.80, 12-May-2015
188,Revenue,CCHD,Bed Purchasing - South,Permanent Residential,Brandon Trust,3309.88, 12-May-2015
189,Revenue,CCHD,Bed purchasing - S28A Under 65 - South,Permanent Residential,Brandon Trust,5260.00, 12-May-2015
190,Revenue,CCHD,Bed purchasing - S28A Under 65 - South,Permanent Residential,Brandon Trust,5316.28, 12-May-2015
191,Revenue,CCHD,Bed purchasing - S28A Under 65 - South,Permanent Nursing,Brandon Trust,5458.24, 12-May-2015
192,Revenue,CCHD,Bed purchasing - S28A Under 65 - South,Permanent Nursing,Brandon Trust,5418.04, 12-May-2015
193,Revenue,CCHD,Bed purchasing -S28A  Under 65 - North,Permanent Nursing,Brandon Trust,4835.88, 12-May-2015
194,Revenue,CCHD,Bed purchasing - S28A Under 65 - South,Permanent Residential,Brandon Trust,5316.28, 12-May-2015
195,Revenue,CCHD,Bed Purchasing - LD S28A- Over 65- South,Permanent Residential,Brandon Trust,4795.44, 12-May-2015
196,Revenue,CCHD,Day Care - North,Day Care / Social Activities,Bridge House (Residential Home) Ltd,3304.00, 27-May-2015
197,Revenue,CCHD,Bed Purchasing - North,Permanent Residential,Bridge House Care Home,1533.60, 12-May-2015
198,Revenue,CCHD,Bed Purchasing - North,Permanent Residential,Bridge House Care Home,1008.76, 12-May-2015
199,Revenue,CCHD,Bed Purchasing - North,Permanent Residential,Bridge House Care Home,1531.48, 12-May-2015
200,Revenue,CCHD,Bed Purchasing - North,Permanent Residential,Bridge House Care Home,4328.50, 12-May-2015
201,Revenue,CCHD,Bed Purchasing - North,Permanent Residential,Bridge House Care Home,1308.45, 12-May-2015
202,Revenue,CCHD,Bed Purchasing - South,Permanent Residential,Brightbow,2113.88, 12-May-2015
203,Revenue,CCHD,MH Purchasing - Younger,Permanent Residential,Brightbow,1503.92, 12-May-2015
204,Revenue,CCHD,Prison Assessments & Costs,Other Supplies & Services,Bristol Community Health CIC,39465.25, 18-May-2015
205,Revenue,CCHD,Prison Assessments & Costs,Other Supplies & Services,Bristol Community Health CIC,4181.00, 18-May-2015
206,Revenue,CCHD,Supported Living - North,Private & Voluntary Home Care,Bristol Houses UK Limited,1047.80, 22-May-2015
207,Revenue,CCHD,Supported Living - North,Private & Voluntary Home Care,Bristol Houses UK Limited,620.80, 22-May-2015
208,Revenue,CCHD,Home Care - Elderly - South,Other Small Contracts,Bristol Houses UK Limited,1179.52, 21-May-2015
209,Revenue,CCHD,Supporting People Programme,Grants to Voluntary Bodies,Bristol Missing Link,1464.82, 01-May-2015
210,Revenue,CCHD,Supporting People Programme,Grants to Voluntary Bodies,Bristol Missing Link,2012.42, 01-May-2015
211,Revenue,CCHD,Home Care - Elderly - North,Day Care / Social Activities,Britannia House,924.80, 12-May-2015
212,Revenue,CCHD,Home Care - Elderly - South,Day Care / Social Activities,Britannia House,924.80, 12-May-2015
213,Revenue,CCHD,Home Care - Elderly - North,Day Care / Social Activities,Britannia House,693.60, 12-May-2015
214,Revenue,CCHD,Home Care - Elderly - North,Day Care / Social Activities,Britannia House,924.80, 12-May-2015
215,Revenue,CCHD,Home Care - Elderly - South,Day Care / Social Activities,Britannia House,693.60, 12-May-2015
216,Revenue,CCHD,Home Care - Elderly - North,Day Care / Social Activities,Britannia House,924.80, 12-May-2015
217,Revenue,CCHD,Home Care - Elderly - South,Day Care / Social Activities,Britannia House,1156.00, 12-May-2015
218,Revenue,CCHD,Home Care - Elderly - South,Day Care / Social Activities,Britannia House,693.60, 12-May-2015
219,Revenue,CCHD,Home Care - Elderly - South,Day Care / Social Activities,Britannia House,693.60, 12-May-2015
220,Revenue,CCHD,Home Care - Elderly - South,Day Care / Social Activities,Britannia House,693.60, 12-May-2015
221,Revenue,CCHD,Bed Purchasing - North,Permanent Residential,Broadgate House,1429.56, 12-May-2015
222,Revenue,CCHD,Supporting People Programme,Grants to Voluntary Bodies,Bromford Housing Group,14201.99, 01-May-2015
223,Revenue,CCHD,Bed Purchasing - North,Permanent Nursing,Brunel Care  Saffron Gardens,630.40, 12-May-2015
224,Revenue,CCHD,South Glos Users in South Glos Homes,Permanent Nursing,Brunel Care  Saffron Gardens,1552.46, 12-May-2015
225,Revenue,CCHD,South Glos Users in South Glos Homes,Permanent Nursing,Brunel Care  Saffron Gardens,5782.12, 12-May-2015
226,Revenue,CCHD,Bed Purchasing - Southmead Hospital,Permanent Nursing,Brunel Care  Saffron Gardens,1337.75, 12-May-2015
227,Revenue,CCHD,South Glos Users in South Glos Homes,Permanent Nursing,Brunel Care  Saffron Gardens,1441.57, 12-May-2015
228,Revenue,CCHD,Bed Purchasing - Southmead Hospital,Permanent Nursing,Brunel Care  Saffron Gardens,4970.44, 12-May-2015
229,Revenue,CCHD,Bed Purchasing - South,Respite Planned - Nursing,Brunel Care  Saffron Gardens,707.39, 12-May-2015
230,Revenue,CCHD,Bed Purchasing - Southmead Hospital,Permanent Nursing,Brunel Care  Saffron Gardens,1166.80, 12-May-2015
231,Revenue,CCHD,Bed Purchasing - South,Permanent Nursing,Brunel Care  Saffron Gardens,2090.64, 12-May-2015
232,Revenue,CCHD,Bed Purchasing - Southmead Hospital,Permanent Nursing,Brunel Care  Saffron Gardens,1409.28, 12-May-2015
233,Revenue,CCHD,Bed Purchasing - South,Permanent Residential,Brunel Care  Saffron Gardens,1308.56, 12-May-2015
234,Revenue,CCHD,Home Care - Elderly - North,Private & Voluntary Home Care,Brunelcare,23503.00, 01-May-2015
235,Revenue,CCHD,Home Care - Elderly - North,Private & Voluntary Home Care,Brunelcare,23503.00, 11-May-2015
236,Revenue,CCHD,Home Care - Elderly - North,Private & Voluntary Home Care,Brunelcare,23503.00, 18-May-2015
237,Revenue,CCHD,Home Care - Elderly - North,Private & Voluntary Home Care,Brunelcare,23503.00, 26-May-2015
238,Revenue,CCHD,S75 CCG Interim Beds,Permanent Nursing,Brunelcare,54600.00, 14-May-2015
239,Revenue,CCHD,Bed Purchasing - South,Permanent Nursing,Brunelcare,1893.80, 14-May-2015
240,Revenue,CCHD,Bed Purchasing - Southmead Hospital,Permanent Nursing,Brunelcare,918.93, 14-May-2015
241,Revenue,CCHD,Bed Purchasing - Southmead Hospital,Permanent Nursing,Brunelcare,1059.79, 14-May-2015
242,Revenue,CCHD,Bed Purchasing - South,Permanent Nursing,Brunelcare,1571.48, 14-May-2015
243,Revenue,CCHD,Bed Purchasing - South,Permanent Nursing,Brunelcare,1938.72, 14-May-2015
244,Revenue,CCHD,Bed Purchasing - South,Permanent Nursing,Brunelcare,1984.72, 14-May-2015
245,Revenue,CCHD,Bed Purchasing - Southmead Hospital,Permanent Nursing,Brunelcare,1763.89, 14-May-2015
246,Revenue,CCHD,Bed Purchasing - South,Permanent Nursing,Brunelcare,1976.01, 14-May-2015
247,Revenue,CCHD,Bed Purchasing - North,Permanent Nursing,Brunelcare,1606.73, 14-May-2015
248,Revenue,CCHD,Bed Purchasing - Elderly S117- North,Permanent Nursing,Brunelcare,2524.33, 14-May-2015
249,Revenue,CCHD,Bed Purchasing - Elderly S117- North,Permanent Nursing,Brunelcare,2524.33, 14-May-2015
250,Revenue,CCHD,Bed Purchasing - South,Permanent Nursing,Brunelcare,1738.86, 14-May-2015
251,Revenue,CCHD,Bed Purchasing - Southmead Hospital,Permanent Nursing,Brunelcare,1689.23, 14-May-2015
252,Revenue,CCHD,Bed Purchasing - Southmead Hospital,Permanent Nursing,Brunelcare,883.77, 14-May-2015
253,Revenue,CCHD,Bed Purchasing - Southmead Hospital,Permanent Nursing,Brunelcare,1652.39, 14-May-2015
254,Revenue,CCHD,Bed Purchasing - South,Permanent Nursing,Brunelcare,1763.89, 14-May-2015
255,Revenue,CCHD,Bed Purchasing - South,Permanent Nursing,Brunelcare,1482.29, 14-May-2015
256,Revenue,CCHD,Bed purchasing - Elderly S117 - South,Permanent Nursing,Brunelcare,2524.33, 14-May-2015
257,Revenue,CCHD,Bed Purchasing - North,Permanent Nursing,Brunelcare,1913.26, 14-May-2015
258,Revenue,CCHD,Bed Purchasing - Southmead Hospital,Permanent Nursing,Brunelcare,1594.61, 14-May-2015
259,Revenue,CCHD,Bed Purchasing - South,Permanent Nursing,Brunelcare,1984.72, 14-May-2015
260,Revenue,CCHD,Bed Purchasing - North,Permanent Nursing,Brunelcare,1925.84, 14-May-2015
261,Revenue,CCHD,Bed Purchasing - South,Permanent Nursing,Brunelcare,1984.72, 14-May-2015
262,Revenue,CCHD,Bed Purchasing - North,Permanent Nursing,Brunelcare,1763.89, 14-May-2015
263,Revenue,CCHD,Bed Purchasing - Southmead Hospital,Permanent Nursing,Brunelcare,1763.89, 14-May-2015
264,Revenue,CCHD,Bed Purchasing - Southmead Hospital,Permanent Nursing,Brunelcare,1657.24, 14-May-2015
265,Revenue,CCHD,Bed Purchasing - Elderly S117- North,Permanent Nursing,Brunelcare,2524.33, 14-May-2015
266,Revenue,CCHD,Bed Purchasing - Southmead Hospital,Permanent Nursing,Brunelcare,1435.90, 14-May-2015
267,Revenue,CCHD,Bed Purchasing - South,Permanent Nursing,Brunelcare,614.54, 14-May-2015
268,Revenue,CCHD,Bed Purchasing - South,Permanent Nursing,Brunelcare,1192.53, 14-May-2015
269,Revenue,CCHD,Bed Purchasing - South,Respite Planned - Nursing,Brunelcare,1999.92, 14-May-2015
270,Revenue,CCHD,South Glos Users in South Glos Homes,Permanent Nursing,Brunelcare,807.91, 14-May-2015
271,Revenue,CCHD,South Glos Users in South Glos Homes,Permanent Nursing,Brunelcare,1061.38, 14-May-2015
272,Revenue,CCHD,S75 CCG Interim Beds,Permanent Nursing,Brunelcare,15200.00, 13-May-2015
273,Revenue,CCHD,Home Care - Elderly - South,Other Small Contracts,Brunelcare,3349.68, 11-May-2015
274,Revenue,CCHD,Home Care - Elderly - North,Other Small Contracts,Brunelcare,2925.36, 11-May-2015
275,Revenue,CCHD,Day Care - South,Day Care / Social Activities,Brunelcare,28.56, 11-May-2015
276,Revenue,CCHD,Home Care - Elderly - South,Other Small Contracts,Brunelcare,3553.68, 11-May-2015
277,Revenue,CCHD,Home Care - Elderly - North,Other Small Contracts,Brunelcare,2892.72, 11-May-2015
278,Revenue,CCHD,Day Care - South,Day Care / Social Activities,Brunelcare,24.48, 11-May-2015
279,Revenue,CCHD,Home Care - Elderly - South,Other Small Contracts,Brunelcare,3609.62, 11-May-2015
280,Revenue,CCHD,Home Care - Elderly - North,Other Small Contracts,Brunelcare,2977.73, 11-May-2015
281,Revenue,CCHD,Day Care - South,Day Care / Social Activities,Brunelcare,28.91, 11-May-2015
282,Revenue,CCHD,Home Care - Elderly - South,Other Small Contracts,Brunelcare,3634.40, 11-May-2015
283,Revenue,CCHD,Home Care - Elderly - North,Other Small Contracts,Brunelcare,2882.74, 11-May-2015
284,Revenue,CCHD,Day Care - South,Day Care / Social Activities,Brunelcare,28.91, 11-May-2015
285,Revenue,CCHD,Home Care - Elderly - South,Other Small Contracts,Brunelcare,3270.96, 27-May-2015
286,Revenue,CCHD,Home Care - Elderly - North,Other Small Contracts,Brunelcare,2862.09, 27-May-2015
287,Revenue,CCHD,Day Care - South,Day Care / Social Activities,Brunelcare,33.04, 27-May-2015
288,Revenue,CCHD,Home Care - Elderly - South,Other Small Contracts,Brunelcare,2985.99, 27-May-2015
289,Revenue,CCHD,Home Care - Elderly - North,Other Small Contracts,Brunelcare,2779.49, 27-May-2015
290,Revenue,CCHD,Day Care - South,Day Care / Social Activities,Brunelcare,24.78, 27-May-2015
291,Revenue,CCHD,Home Care - Elderly - South,Other Small Contracts,Brunelcare,2985.99, 27-May-2015
292,Revenue,CCHD,Home Care - Elderly - North,Other Small Contracts,Brunelcare,2696.89, 27-May-2015
293,Revenue,CCHD,Day Care - South,Day Care / Social Activities,Brunelcare,33.04, 27-May-2015
294,Revenue,CCHD,Bed Purchasing - Southmead Hospital,Permanent Nursing,Bupa Care Services  Bridge House,1924.68, 12-May-2015
295,Revenue,CCHD,Bed Purchasing - Southmead Hospital,Permanent Nursing,Bupa Care Services  Bridge House,1696.32, 12-May-2015
296,Revenue,CCHD,Bed Purchasing - North,Permanent Nursing,Bupa Care Services  Bridge House,6002.40, 12-May-2015
297,Revenue,CCHD,South Glos Users in all other LA Homes,Permanent Nursing,Bupa Care Services  Bridge House,616.56, 12-May-2015
298,Revenue,CCHD,Bed Purchasing - North,Permanent Residential,Bupa Care Services  Bridge House,2008.72, 12-May-2015
299,Revenue,CCHD,Woodleaze,Premises Maintenance by Contractor,BWS Security Systems Limited,1051.16, 28-May-2015
300,Revenue,CCHD,Woodleaze,Premises Maintenance by Contractor,BWS Security Systems Limited,831.80, 28-May-2015
301,Revenue,CCHD,Minor Adaptations Service,Prop.Serv. General Repairs,C A P Security Limited,625.20, 08-May-2015
302,Revenue,CCHD,Sexual Health,Other Small Contracts,Cadbury Heath Healthcare,2884.00, 27-May-2015
303,Revenue,CCHD,Sexual Health,Other Small Contracts,Cadbury Heath Healthcare,774.28, 27-May-2015
304,Revenue,CCHD,Supported Living - North,Private & Voluntary Home Care,Camphill Communities Thornbury Limited,998.40, 27-May-2015
305,Revenue,CCHD,Supported Living - North,Private & Voluntary Home Care,Camphill Communities Thornbury Limited,599.04, 27-May-2015
306,Revenue,CCHD,Supported Living - North,Private & Voluntary Home Care,Camphill Communities Thornbury Limited,599.04, 27-May-2015
307,Revenue,CCHD,Supported Living - North,Private & Voluntary Home Care,Camphill Communities Thornbury Limited,773.76, 27-May-2015
308,Revenue,CCHD,Supported Living - North,Private & Voluntary Home Care,Camphill Communities Thornbury Limited,1223.04, 27-May-2015
309,Revenue,CCHD,Supported Living - North,Private & Voluntary Home Care,Camphill Communities Thornbury Limited,511.68, 27-May-2015
310,Revenue,CCHD,Supported Living - North,Private & Voluntary Home Care,Camphill Communities Thornbury Limited,698.88, 27-May-2015
311,Revenue,CCHD,Supported Living - North,Private & Voluntary Home Care,Camphill Communities Thornbury Limited,549.12, 27-May-2015
312,Revenue,CCHD,Supported Living - North,Private & Voluntary Home Care,Camphill Communities Thornbury Limited,1148.16, 27-May-2015
313,Revenue,CCHD,Bed Purchasing - Elderly S117- North,Permanent Residential,Canjayor,2359.24, 12-May-2015
314,Revenue,CCHD,Information Systems - Software,Software Support & Maintenance,Capita Business Services Ltd,600.00, 22-May-2015
315,Revenue,CCHD,Home Care - Elderly - South,Other Small Contracts,Care 1st Homecare,3775.80, 11-May-2015
316,Revenue,CCHD,Home Care - Elderly - North,Other Small Contracts,Care 1st Homecare,3318.00, 11-May-2015
317,Revenue,CCHD,Home Care - Elderly - South,Other Small Contracts,Care 1st Homecare,3679.20, 11-May-2015
318,Revenue,CCHD,Home Care - Elderly - North,Other Small Contracts,Care 1st Homecare,3263.40, 11-May-2015
319,Revenue,CCHD,Purchase of Non-Res Care - South,Day Care / Social Activities,Care Futures,1834.28, 15-May-2015
320,Revenue,CCHD,Supported Living - South,Private & Voluntary Home Care,Care Horizons Limited,873.50, 05-May-2015
321,Revenue,CCHD,Supported Living - North,Private & Voluntary Home Care,Care Horizons Limited,5453.31, 14-May-2015
322,Revenue,CCHD,Supported Living - North,Private & Voluntary Home Care,Care Horizons Limited,5533.18, 21-May-2015
323,Revenue,CCHD,Purchase of Non-Res Care - North,Day Care / Social Activities,Care Horizons Limited,1559.52, 21-May-2015
324,Revenue,CCHD,Purchase of Non-Res Care - North,Day Care / Social Activities,Care Horizons Limited,1567.36, 21-May-2015
325,Revenue,CCHD,Electronic Home Care Monitoring,Other Supplies & Services,Care Monitoring 2000 Limited,10190.71, 18-May-2015
326,Revenue,CCHD,Woodleaze,Furniture & Fittings Loose,Care Shop,523.20, 26-May-2015
327,Revenue,CCHD,Woodleaze,Furniture & Fittings Loose,Care Shop,1046.40, 20-May-2015
328,Revenue,CCHD,Home Care - Elderly - South,Other Small Contracts,Care UK,4470.22, 12-May-2015
329,Revenue,CCHD,Home Care - Elderly - North,Other Small Contracts,Care UK,1850.02, 12-May-2015
330,Revenue,CCHD,Home Care - Elderly - South,Other Small Contracts,Care UK,4621.08, 22-May-2015
331,Revenue,CCHD,Home Care - Elderly - North,Other Small Contracts,Care UK,1881.78, 22-May-2015
332,Revenue,CCHD,Home Care - Elderly - South,Other Small Contracts,Care UK,4482.13, 22-May-2015
333,Revenue,CCHD,Home Care - Elderly - North,Other Small Contracts,Care UK,1766.65, 22-May-2015
334,Revenue,CCHD,Social Lettings Agency,Fees - General,Individual,10.10, 01-May-2015
335,Revenue,CCHD,Social Lettings Agency,Fees & Charges Income - General,Individual,570.66, 01-May-2015
336,Revenue,CCHD,Bed Purchasing - North,Permanent Residential,Charlton House,1075.60, 12-May-2015
337,Revenue,CCHD,Bed Purchasing - North,Permanent Residential,Charlton House,2680.58, 12-May-2015
338,Revenue,CCHD,Training - Adult Services,Training Expenses,Chartered Management Institute,1367.00, 01-May-2015
339,Revenue,CCHD,Home Care - Elderly - South,Other Small Contracts,Cherish Able Care Limited,5700.39, 08-May-2015
340,Revenue,CCHD,Home Care - Elderly - North,Other Small Contracts,Cherish Able Care Limited,1874.75, 08-May-2015
341,Revenue,CCHD,Home Care - Elderly - South,Day Care / Social Activities,Cherish Able Care Limited,194.12, 15-May-2015
342,Revenue,CCHD,Home Care - Elderly - South,Other Small Contracts,Cherish Able Care Limited,5553.52, 15-May-2015
343,Revenue,CCHD,Home Care - Elderly - North,Other Small Contracts,Cherish Able Care Limited,1913.54, 15-May-2015
344,Revenue,CCHD,Home Care - Elderly - South,Day Care / Social Activities,Cherish Able Care Limited,219.44, 21-May-2015
345,Revenue,CCHD,Home Care - Elderly - South,Other Small Contracts,Cherish Able Care Limited,5536.64, 21-May-2015
346,Revenue,CCHD,Home Care - Elderly - North,Other Small Contracts,Cherish Able Care Limited,1913.54, 21-May-2015
347,Revenue,CCHD,Home Care - Elderly - South,Day Care / Social Activities,Cherish Able Care Limited,223.66, 28-May-2015
348,Revenue,CCHD,Home Care - Elderly - South,Other Small Contracts,Cherish Able Care Limited,5481.78, 28-May-2015
349,Revenue,CCHD,Home Care - Elderly - North,Other Small Contracts,Cherish Able Care Limited,1913.54, 28-May-2015
350,Revenue,CCHD,Supported Living - South,Private & Voluntary Home Care,Cherry Orchards,24586.57, 07-May-2015
351,Revenue,CCHD,Supported Living - South,Private & Voluntary Home Care,Cherry Orchards,1037.12, 07-May-2015
352,Revenue,CCHD,Supported Living - South,Private & Voluntary Home Care,Cherry Orchards,1445.00, 14-May-2015
353,Revenue,CCHD,Supported Living - South,Private & Voluntary Home Care,Cherry Orchards,722.28, 07-May-2015
354,Revenue,CCHD,Supported Living - South,Private & Voluntary Home Care,Cherry Orchards,963.04, 07-May-2015
355,Revenue,CCHD,Supported Living - South,Private & Voluntary Home Care,Cherry Orchards,963.04, 07-May-2015
356,Revenue,CCHD,Supported Living - South,Private & Voluntary Home Care,Cherry Orchards,963.04, 07-May-2015
357,Revenue,CCHD,Bed purchasing -S28A  Under 65 - North,Permanent Residential,Chescombe Lodge,8791.96, 12-May-2015
358,Revenue,CCHD,Bed Purchasing - Southmead Hospital,Permanent Nursing,Cholwell House Nursing Home Ltd,1989.76, 12-May-2015
359,Revenue,CCHD,Bed Purchasing - North,Permanent Nursing,Cholwell House Nursing Home Ltd,1506.80, 12-May-2015
360,Revenue,CCHD,Training - Adult Services,Training Expenses,Individual,925.00, 29-May-2015
361,Revenue,CCHD,Sexual Health,Other Small Contracts,Christchurch Family Medical  Centre,805.24, 27-May-2015
362,Revenue,CCHD,Bed Purchasing - North,Permanent Residential,Church House,10621.16, 12-May-2015
363,Revenue,CCHD,Bed Purchasing - North,Permanent Residential,Church House,5988.16, 12-May-2015
364,Revenue,CCHD,Section 117 Placements MH Younger,Permanent Residential,Church House,7922.22, 12-May-2015
365,Revenue,CCHD,Learning Difficulties,Premises Hire,Circadian Trust,549.00, 13-May-2015
366,Revenue,CCHD,18-25 Year Olds,Permanent Residential,Citibase Watford,7088.60, 12-May-2015
367,Revenue,CCHD,Bed Purchasing - Elderly S117- North,Permanent Residential,Citibase Watford,9028.60, 12-May-2015
368,Revenue,CCHD,18-25 Year Olds,Permanent Residential,Citibase Watford,5514.44, 12-May-2015
369,Revenue,CCHD,Home Care - Elderly - South,Other Small Contracts,Cleeve Care Group,742.00, 15-May-2015
370,Revenue,CCHD,Home Care - Elderly - North,Day Care / Social Activities,Cleeve Care Group,28.00, 15-May-2015
371,Revenue,CCHD,Home Care - Elderly - North,Other Small Contracts,Cleeve Care Group,14.00, 15-May-2015
372,Revenue,CCHD,Home Care - Elderly - South,Other Small Contracts,Cleeve Care Group,731.50, 07-May-2015
373,Revenue,CCHD,Home Care - Elderly - North,Other Small Contracts,Cleeve Care Group,21.00, 07-May-2015
374,Revenue,CCHD,Home Care - Elderly - South,Other Small Contracts,Cleeve Care Group,742.00, 15-May-2015
375,Revenue,CCHD,Home Care - Elderly - South,Other Small Contracts,Cleeve Care Group,560.00, 15-May-2015
376,Revenue,CCHD,Home Care - Elderly - South,Other Small Contracts,Cleeve Care Group,612.50, 15-May-2015
377,Revenue,CCHD,Home Care - Elderly - South,Other Small Contracts,Cleeve Care Group,595.00, 07-May-2015
378,Revenue,CCHD,Home Care - Elderly - South,Other Small Contracts,Cleeve Care Group,602.00, 13-May-2015
379,Revenue,CCHD,Home Care - Elderly - South,Other Small Contracts,Cleeve Care Group,587.64, 15-May-2015
380,Revenue,CCHD,Bed Purchasing - Southmead Hospital,Permanent Residential,Cleeve Lodge,1475.80, 12-May-2015
381,Revenue,CCHD,Bed Purchasing - North,Permanent Residential,Cleeve Lodge,1841.52, 12-May-2015
382,Revenue,CCHD,Bed Purchasing - South,Respite Planned - Residential,Cleeve Lodge,1864.92, 12-May-2015
383,Revenue,CCHD,Bed Purchasing - South,Respite Planned - Residential,Cleeve Lodge,966.43, 12-May-2015
384,Revenue,CCHD,Bed Purchasing - South,Respite Planned - Residential,Cleeve Lodge,888.06, 12-May-2015
385,Revenue,CCHD,Bed Purchasing - South,Respite Planned - Residential,Cleeve Lodge,1864.92, 12-May-2015
386,Revenue,CCHD,Bed Purchasing - South,Respite Planned - Residential,Cleeve Lodge,888.06, 12-May-2015
387,Revenue,CCHD,Bed Purchasing - South,Permanent Residential,Cleeve Lodge,2316.64, 12-May-2015
388,Revenue,CCHD,Bed Purchasing - South,Permanent Residential,Cleeve Lodge,1827.76, 12-May-2015
389,Revenue,CCHD,Sexual Health,Other Small Contracts,Close Farm Surgery,836.22, 27-May-2015
390,Revenue,CCHD,Bed Purchasing - South,Permanent Residential,Collingwood Residential Home,1456.80, 12-May-2015
391,Revenue,CCHD,Bed Purchasing - South,Permanent Residential,Collingwood Residential Home,1466.04, 12-May-2015
392,Revenue,CCHD,Bed Purchasing - South,Permanent Residential,Collingwood Residential Home,1079.12, 12-May-2015
393,Revenue,CCHD,Bed Purchasing - South,Permanent Residential,Collingwood Residential Home,1333.28, 12-May-2015
394,Revenue,CCHD,Bed Purchasing - South,Permanent Residential,Collingwood Residential Home,1290.80, 12-May-2015
395,Revenue,CCHD,Sexual Health,Other Small Contracts,Concord Medical Centre,1068.00, 27-May-2015
396,Revenue,CCHD,Sexual Health,Other Small Contracts,Concord Medical Centre,1507.26, 27-May-2015
397,Revenue,CCHD,Bed and Breakfast,Bed & Breakfast,Connolly & Callaghan Limited,522.90, 06-May-2015
398,Revenue,CCHD,Bed and Breakfast,Bed & Breakfast,Connolly & Callaghan Limited,686.00, 08-May-2015
399,Revenue,CCHD,Bed and Breakfast,Bed & Breakfast,Connolly & Callaghan Limited,700.00, 07-May-2015
400,Revenue,CCHD,Bed and Breakfast,Bed & Breakfast,Connolly & Callaghan Limited,522.90, 07-May-2015
401,Revenue,CCHD,Bed and Breakfast,Bed & Breakfast,Connolly & Callaghan Limited,476.00, 07-May-2015
402,Revenue,CCHD,Bed and Breakfast,Bed & Breakfast,Connolly & Callaghan Limited,522.90, 07-May-2015
403,Revenue,CCHD,Bed and Breakfast,Bed & Breakfast,Connolly & Callaghan Limited,441.00, 07-May-2015
404,Revenue,CCHD,Bed and Breakfast,Bed & Breakfast,Connolly & Callaghan Limited,441.00, 07-May-2015
405,Revenue,CCHD,Bed and Breakfast,Bed & Breakfast,Connolly & Callaghan Limited,630.00, 07-May-2015
406,Revenue,CCHD,Bed and Breakfast,Bed & Breakfast,Connolly & Callaghan Limited,686.00, 19-May-2015
407,Revenue,CCHD,Bed and Breakfast,Bed & Breakfast,Connolly & Callaghan Limited,700.00, 19-May-2015
408,Revenue,CCHD,Bed and Breakfast,Bed & Breakfast,Connolly & Callaghan Limited,522.90, 19-May-2015
409,Revenue,CCHD,Bed and Breakfast,Bed & Breakfast,Connolly & Callaghan Limited,476.00, 19-May-2015
410,Revenue,CCHD,Bed and Breakfast,Bed & Breakfast,Connolly & Callaghan Limited,522.90, 19-May-2015
411,Revenue,CCHD,Bed and Breakfast,Bed & Breakfast,Connolly & Callaghan Limited,441.00, 19-May-2015
412,Revenue,CCHD,Bed and Breakfast,Bed & Breakfast,Connolly & Callaghan Limited,630.00, 19-May-2015
413,Revenue,CCHD,Bed and Breakfast,Bed & Breakfast,Connolly & Callaghan Limited,441.00, 19-May-2015
414,Revenue,CCHD,Bed and Breakfast,Bed & Breakfast,Connolly & Callaghan Limited,686.00, 22-May-2015
415,Revenue,CCHD,Bed and Breakfast,Bed & Breakfast,Connolly & Callaghan Limited,700.00, 22-May-2015
416,Revenue,CCHD,Bed and Breakfast,Bed & Breakfast,Connolly & Callaghan Limited,522.90, 22-May-2015
417,Revenue,CCHD,Bed and Breakfast,Bed & Breakfast,Connolly & Callaghan Limited,476.00, 22-May-2015
418,Revenue,CCHD,Bed and Breakfast,Bed & Breakfast,Connolly & Callaghan Limited,522.90, 22-May-2015
419,Revenue,CCHD,Bed and Breakfast,Bed & Breakfast,Connolly & Callaghan Limited,441.00, 22-May-2015
420,Revenue,CCHD,Bed and Breakfast,Bed & Breakfast,Connolly & Callaghan Limited,630.00, 22-May-2015
421,Revenue,CCHD,Bed and Breakfast,Bed & Breakfast,Connolly & Callaghan Limited,441.00, 22-May-2015
422,Revenue,CCHD,Bed and Breakfast,Bed & Breakfast,Connolly & Callaghan Limited,700.00, 29-May-2015
423,Revenue,CCHD,Bed and Breakfast,Bed & Breakfast,Connolly & Callaghan Limited,522.90, 29-May-2015
424,Revenue,CCHD,Bed and Breakfast,Bed & Breakfast,Connolly & Callaghan Limited,476.00, 29-May-2015
425,Revenue,CCHD,Bed and Breakfast,Bed & Breakfast,Connolly & Callaghan Limited,522.90, 29-May-2015
426,Revenue,CCHD,Bed and Breakfast,Bed & Breakfast,Connolly & Callaghan Limited,441.00, 29-May-2015
427,Revenue,CCHD,Bed and Breakfast,Bed & Breakfast,Connolly & Callaghan Limited,686.00, 29-May-2015
428,Revenue,CCHD,Bed and Breakfast,Bed & Breakfast,Connolly & Callaghan Limited,630.00, 29-May-2015
429,Revenue,CCHD,Bed and Breakfast,Bed & Breakfast,Connolly & Callaghan Limited,441.00, 29-May-2015
430,Revenue,CCHD,Bed and Breakfast,Bed & Breakfast,Connolly & Callaghan Limited,441.00, 29-May-2015
431,Revenue,CCHD,Bed Purchasing - Southmead Hospital,Permanent Residential,Coombs Wood House,968.80, 12-May-2015
432,Revenue,CCHD,Sexual Health,Other Small Contracts,Courtside Surgery,2044.08, 27-May-2015
433,Revenue,CCHD,Bed Purchasing - S28A - Over 65- North,Permanent Residential,Cream Ii Ltd  Longrun House,8087.77, 12-May-2015
434,Revenue,CCHD,Bed Purchasing - South,Permanent Residential,Cream Ii Ltd  Longrun House,5689.32, 12-May-2015
435,Revenue,CCHD,Bed purchasing -S28A  Under 65 - North,Permanent Residential,Creedy Court,9392.72, 12-May-2015
436,Revenue,CCHD,Bed Purchasing - S28A - Over 65- North,Permanent Residential,Creedy Court,13698.03, 12-May-2015
437,Revenue,CCHD,Bed Purchasing - North,Permanent Residential,Creedy Court,12716.84, 08-May-2015
438,Revenue,CCHD,Bed Purchasing - South,Permanent Residential,Daneswood,11129.44, 12-May-2015
439,Revenue,CCHD,Bed Purchasing - North,Permanent Residential,Daneswood,9213.64, 12-May-2015
440,Revenue,CCHD,Bed Purchasing - Elderly S117- North,Permanent Nursing,Danshell Healthcare Group,11653.52, 12-May-2015
441,Revenue,CCHD,Learning Difficulties PSL,Other Supplies & Services,Individual,2105.50, 22-May-2015
442,Revenue,CCHD,Purchase of Non-Res Care - North,Day Care / Social Activities,Design 4 Life Ltd,1049.76, 21-May-2015
443,Revenue,CCHD,Purchase of Non-Res Care - North,Day Care / Social Activities,Design 4 Life Ltd,1837.08, 21-May-2015
444,Revenue,CCHD,Purchase of Non-Res Care - North,Day Care / Social Activities,Design 4 Life Ltd,3214.67, 21-May-2015
445,Revenue,CCHD,Purchase of Non-Res Care - North,Day Care / Social Activities,Design 4 Life Ltd,1591.92, 29-May-2015
446,Revenue,CCHD,Purchase of Non-Res Care - North,Day Care / Social Activities,Design 4 Life Ltd,2966.63, 29-May-2015
447,Revenue,CCHD,Home Care - Elderly - South,Supported Living,Design House,8532.28, 12-May-2015
448,Revenue,CCHD,Bed Purchasing - South,Permanent Residential,Devon & Cornwall Autistic Community Trus,8880.84, 12-May-2015
449,Revenue,CCHD,Home Care - Elderly - South,Day Care / Social Activities,Dhek Bhal,196.00, 06-May-2015
450,Revenue,CCHD,Home Care - Elderly - South,Other Small Contracts,Dhek Bhal,274.40, 06-May-2015
451,Revenue,CCHD,Home Care - Elderly - North,Other Small Contracts,Dhek Bhal,200.90, 06-May-2015
452,Revenue,CCHD,Home Care - Elderly - South,Day Care / Social Activities,Dhek Bhal,196.00, 15-May-2015
453,Revenue,CCHD,Home Care - Elderly - South,Other Small Contracts,Dhek Bhal,196.00, 15-May-2015
454,Revenue,CCHD,Home Care - Elderly - North,Other Small Contracts,Dhek Bhal,117.60, 15-May-2015
455,Revenue,CCHD,Home Care - Elderly - South,Day Care / Social Activities,Dhek Bhal,196.00, 15-May-2015
456,Revenue,CCHD,Home Care - Elderly - South,Other Small Contracts,Dhek Bhal,196.00, 15-May-2015
457,Revenue,CCHD,Home Care - Elderly - North,Other Small Contracts,Dhek Bhal,117.60, 15-May-2015
458,Revenue,CCHD,Bed Purchasing - South,Permanent Residential,Dimensions  Suite 2,4933.76, 12-May-2015
459,Revenue,CCHD,Supported Living - South,Private & Voluntary Home Care,Dimensions (UK) Ltd,8006.68, 29-May-2015
460,Revenue,CCHD,Home Care - Elderly - South,Day Care / Social Activities,DoCare Ltd,42.75, 11-May-2015
461,Revenue,CCHD,Home Care - Elderly - South,Other Small Contracts,DoCare Ltd,1610.26, 11-May-2015
462,Revenue,CCHD,Home Care - Elderly - North,Other Small Contracts,DoCare Ltd,6436.25, 11-May-2015
463,Revenue,CCHD,Home Care - Elderly - South,Other Small Contracts,DoCare Ltd,1657.75, 11-May-2015
464,Revenue,CCHD,Home Care - Elderly - North,Other Small Contracts,DoCare Ltd,6417.25, 11-May-2015
465,Revenue,CCHD,Home Care - Elderly - South,Other Small Contracts,DoCare Ltd,1553.64, 11-May-2015
466,Revenue,CCHD,Home Care - Elderly - North,Other Small Contracts,DoCare Ltd,6503.12, 11-May-2015
467,Revenue,CCHD,Home Care - Elderly - South,Day Care / Social Activities,DoCare Ltd,38.48, 11-May-2015
468,Revenue,CCHD,Home Care - Elderly - South,Other Small Contracts,DoCare Ltd,1457.43, 11-May-2015
469,Revenue,CCHD,Home Care - Elderly - North,Other Small Contracts,DoCare Ltd,6339.58, 11-May-2015
470,Revenue,CCHD,Home Care - Elderly - South,Day Care / Social Activities,DoCare Ltd,38.48, 11-May-2015
471,Revenue,CCHD,Home Care - Elderly - South,Other Small Contracts,DoCare Ltd,1649.84, 11-May-2015
472,Revenue,CCHD,Home Care - Elderly - North,Other Small Contracts,DoCare Ltd,6253.00, 11-May-2015
473,Revenue,CCHD,Home Care - Elderly - South,Day Care / Social Activities,DoCare Ltd,38.48, 27-May-2015
474,Revenue,CCHD,Home Care - Elderly - South,Other Small Contracts,DoCare Ltd,1741.22, 27-May-2015
475,Revenue,CCHD,Home Care - Elderly - North,Other Small Contracts,DoCare Ltd,6286.67, 27-May-2015
476,Revenue,CCHD,Home Care - Elderly - South,Day Care / Social Activities,DoCare Ltd,38.48, 27-May-2015
477,Revenue,CCHD,Home Care - Elderly - South,Other Small Contracts,DoCare Ltd,1842.24, 27-May-2015
478,Revenue,CCHD,Home Care - Elderly - North,Other Small Contracts,DoCare Ltd,6430.97, 27-May-2015
479,Revenue,CCHD,Social Lettings Agency,Other Supplies & Services,Individual,605.64, 22-May-2015
480,Revenue,CCHD,Sexual Health,Other Small Contracts,Dr P Taylor & Partners,1494.00, 27-May-2015
481,Revenue,CCHD,Sexual Health,Other Small Contracts,Dr P Taylor & Partners,2250.58, 27-May-2015
482,Revenue,CCHD,NHS Health Checks & Tobacco Control,Drugs & Medical Supplies,Dudley Taylor Pharmacies Ltd,804.32, 19-May-2015
483,Revenue,CCHD,MH Purchasing - Younger,Permanent Residential,Dunraven House,1875.40, 12-May-2015
484,Revenue,CCHD,Bed and Breakfast,Bed & Breakfast,E J Bartlett,644.00, 07-May-2015
485,Revenue,CCHD,Bed and Breakfast,Bed & Breakfast,E J Bartlett,504.00, 07-May-2015
486,Revenue,CCHD,Bed and Breakfast,Bed & Breakfast,E J Bartlett,504.00, 07-May-2015
487,Revenue,CCHD,Bed and Breakfast,Bed & Breakfast,E J Bartlett,714.00, 20-May-2015
488,Revenue,CCHD,Bed and Breakfast,Bed & Breakfast,E J Bartlett,496.00, 19-May-2015
489,Revenue,CCHD,Bed and Breakfast,Bed & Breakfast,E J Bartlett,714.00, 22-May-2015
490,Revenue,CCHD,Bed and Breakfast,Bed & Breakfast,E J Bartlett,434.00, 22-May-2015
491,Revenue,CCHD,Bed and Breakfast,Bed & Breakfast,E J Bartlett,434.00, 26-May-2015
492,Revenue,CCHD,Bed Purchasing - North,Permanent Residential,East Court,2238.40, 12-May-2015
493,Revenue,CCHD,Home Care - Elderly - South,Day Care / Social Activities,Easton Community Centre,526.08, 12-May-2015
494,Revenue,CCHD,Home Care - Elderly - South,Day Care / Social Activities,Easton Community Centre,526.08, 12-May-2015
495,Revenue,CCHD,Home Care - Elderly - North,Day Care / Social Activities,Easton Community Centre,526.08, 12-May-2015
496,Revenue,CCHD,Home Care - Elderly - North,Day Care / Social Activities,Easton Community Centre,526.08, 12-May-2015
497,Revenue,CCHD,Home Care - Elderly - South,Day Care / Social Activities,Eclipse Office Park,743.04, 12-May-2015
498,Revenue,CCHD,Home Care - Elderly - North,Day Care / Social Activities,Eclipse Office Park,990.72, 12-May-2015
499,Revenue,CCHD,Home Care - Elderly - South,Day Care / Social Activities,Eclipse Office Park,619.20, 12-May-2015
500,Revenue,CCHD,Home Care - Elderly - South,Day Care / Social Activities,Eclipse Office Park,866.88, 12-May-2015
501,Revenue,CCHD,Home Care - Elderly - South,Day Care / Social Activities,Eclipse Office Park,743.04, 12-May-2015
502,Revenue,CCHD,Home Care - Elderly - South,Day Care / Social Activities,Eclipse Office Park,866.88, 12-May-2015
503,Revenue,CCHD,Home Care - Elderly - South,Day Care / Social Activities,Eclipse Office Park,1238.40, 12-May-2015
504,Revenue,CCHD,Home Care - Elderly - South,Day Care / Social Activities,Eclipse Office Park,743.04, 12-May-2015
505,Revenue,CCHD,Home Care - Elderly - South,Day Care / Social Activities,Eclipse Office Park,866.88, 12-May-2015
506,Revenue,CCHD,Home Care - Elderly - South,Day Care / Social Activities,Eclipse Office Park,990.72, 12-May-2015
507,Revenue,CCHD,Bed Purchasing - South,Permanent Residential,Edgecumbe Lodge,1181.36, 12-May-2015
508,Revenue,CCHD,Bed Purchasing - Southmead Hospital,Permanent Residential,Edgecumbe Lodge,1270.80, 12-May-2015
509,Revenue,CCHD,Bed Purchasing - South,Permanent Residential,Edgecumbe Lodge,1047.99, 12-May-2015
510,Revenue,CCHD,Bed Purchasing - South,Permanent Residential,Edgecumbe Lodge,1060.40, 12-May-2015
511,Revenue,CCHD,Bed Purchasing - Southmead Hospital,Permanent Residential,Edgecumbe Lodge,1617.48, 12-May-2015
512,Revenue,CCHD,Bed Purchasing - South,Permanent Residential,Edgecumbe Lodge,1444.84, 12-May-2015
513,Revenue,CCHD,Bed Purchasing - Southmead Hospital,Permanent Residential,Edgecumbe Lodge,1546.32, 12-May-2015
514,Revenue,CCHD,Bed Purchasing - Southmead Hospital,Permanent Residential,Edgecumbe Lodge,1159.74, 12-May-2015
515,Revenue,CCHD,Bed Purchasing - South,Permanent Residential,Edgecumbe Lodge,1145.92, 12-May-2015
516,Revenue,CCHD,Bed Purchasing - North,Permanent Residential,Edgecumbe Lodge,1378.20, 12-May-2015
517,Revenue,CCHD,Bed Purchasing - South,Permanent Residential,Edgemont House Ltd,1441.72, 12-May-2015
518,Revenue,CCHD,Bed Purchasing - South,Permanent Residential,Edgemont House Ltd,1311.36, 12-May-2015
519,Revenue,CCHD,Bed Purchasing - North,Permanent Nursing,Edgemont View Nursing Home,1232.16, 12-May-2015
520,Revenue,CCHD,Bed Purchasing - South,Permanent Nursing,Edgemont View Nursing Home,1763.04, 12-May-2015
521,Revenue,CCHD,Bed Purchasing - South,Permanent Nursing,Edgemont View Nursing Home,1457.44, 12-May-2015
522,Revenue,CCHD,Bed Purchasing - South,Permanent Nursing,Edgemont View Nursing Home,1648.40, 12-May-2015
523,Revenue,CCHD,Bed Purchasing - South,Permanent Nursing,Edgemont View Nursing Home,1209.88, 12-May-2015
524,Revenue,CCHD,Training - Adult Services,Training Expenses,Eils/Scils,3150.00, 07-May-2015
525,Revenue,CCHD,Supporting People Programme,Grants to Voluntary Bodies,Elim Housing Association Limited,5072.70, 01-May-2015
526,Revenue,CCHD,Home Care - Elderly - South,Day Care / Social Activities,Elite Home Care Ltd,34.96, 01-May-2015
527,Revenue,CCHD,Home Care - Elderly - South,Other Small Contracts,Elite Home Care Ltd,6423.90, 01-May-2015
528,Revenue,CCHD,Home Care - Elderly - North,Other Small Contracts,Elite Home Care Ltd,332.12, 01-May-2015
529,Revenue,CCHD,Home Care - Elderly - South,Day Care / Social Activities,Elite Home Care Ltd,34.96, 01-May-2015
530,Revenue,CCHD,Home Care - Elderly - South,Other Small Contracts,Elite Home Care Ltd,6026.23, 01-May-2015
531,Revenue,CCHD,Home Care - Elderly - North,Other Small Contracts,Elite Home Care Ltd,332.12, 01-May-2015
532,Revenue,CCHD,Home Care - Elderly - South,Day Care / Social Activities,Elite Home Care Ltd,35.36, 01-May-2015
533,Revenue,CCHD,Home Care - Elderly - South,Other Small Contracts,Elite Home Care Ltd,6439.94, 01-May-2015
534,Revenue,CCHD,Home Care - Elderly - North,Other Small Contracts,Elite Home Care Ltd,358.02, 01-May-2015
535,Revenue,CCHD,Home Care - Elderly - South,Day Care / Social Activities,Elite Home Care Ltd,35.36, 01-May-2015
536,Revenue,CCHD,Home Care - Elderly - South,Other Small Contracts,Elite Home Care Ltd,6576.96, 01-May-2015
537,Revenue,CCHD,Home Care - Elderly - North,Other Small Contracts,Elite Home Care Ltd,371.28, 01-May-2015
538,Revenue,CCHD,Home Care - Elderly - South,Day Care / Social Activities,Elite Home Care Ltd,35.36, 26-May-2015
539,Revenue,CCHD,Home Care - Elderly - South,Other Small Contracts,Elite Home Care Ltd,6767.02, 26-May-2015
540,Revenue,CCHD,Home Care - Elderly - North,Other Small Contracts,Elite Home Care Ltd,362.44, 26-May-2015
541,Revenue,CCHD,Home Care - Elderly - South,Day Care / Social Activities,Elite Home Care Ltd,35.36, 26-May-2015
542,Revenue,CCHD,Home Care - Elderly - South,Other Small Contracts,Elite Home Care Ltd,6731.66, 26-May-2015
543,Revenue,CCHD,Home Care - Elderly - North,Other Small Contracts,Elite Home Care Ltd,358.02, 26-May-2015
544,Revenue,CCHD,Home Care - Elderly - South,Day Care / Social Activities,Elite Home Care Ltd,35.36, 26-May-2015
545,Revenue,CCHD,Home Care - Elderly - South,Other Small Contracts,Elite Home Care Ltd,6607.90, 26-May-2015
546,Revenue,CCHD,Home Care - Elderly - North,Other Small Contracts,Elite Home Care Ltd,353.60, 26-May-2015
547,Revenue,CCHD,Day Care - South,Day Care / Social Activities,Enham,638.72, 22-May-2015
548,Revenue,CCHD,Bed Purchasing - North,Permanent Residential,Epworth House,1639.52, 12-May-2015
549,Revenue,CCHD,Home Care - Elderly - South,Other Small Contracts,Everycare (Bristol) Ltd,4454.80, 06-May-2015
550,Revenue,CCHD,Home Care - Elderly - North,Day Care / Social Activities,Everycare (Bristol) Ltd,120.40, 06-May-2015
551,Revenue,CCHD,Home Care - Elderly - North,Other Small Contracts,Everycare (Bristol) Ltd,2528.40, 06-May-2015
552,Revenue,CCHD,Under 65s -MH  Home Care Purch,Other Small Contracts,Everycare (Bristol) Ltd,55.90, 06-May-2015
553,Revenue,CCHD,Home Care - Elderly - South,Other Small Contracts,Everycare (Bristol) Ltd,4472.00, 11-May-2015
554,Revenue,CCHD,Home Care - Elderly - North,Day Care / Social Activities,Everycare (Bristol) Ltd,111.80, 11-May-2015
555,Revenue,CCHD,Home Care - Elderly - North,Other Small Contracts,Everycare (Bristol) Ltd,2958.40, 11-May-2015
556,Revenue,CCHD,Under 65s -MH  Home Care Purch,Other Small Contracts,Everycare (Bristol) Ltd,60.20, 11-May-2015
557,Revenue,CCHD,Home Care - Elderly - South,Other Small Contracts,Everycare (Bristol) Ltd,4338.70, 15-May-2015
558,Revenue,CCHD,Home Care - Elderly - North,Day Care / Social Activities,Everycare (Bristol) Ltd,81.70, 15-May-2015
559,Revenue,CCHD,Home Care - Elderly - North,Other Small Contracts,Everycare (Bristol) Ltd,2373.60, 15-May-2015
560,Revenue,CCHD,Under 65s -MH  Home Care Purch,Other Small Contracts,Everycare (Bristol) Ltd,60.20, 15-May-2015
561,Revenue,CCHD,Home Care - Elderly - South,Other Small Contracts,Everycare (Bristol) Ltd,4231.20, 22-May-2015
562,Revenue,CCHD,Home Care - Elderly - North,Day Care / Social Activities,Everycare (Bristol) Ltd,111.80, 22-May-2015
563,Revenue,CCHD,Home Care - Elderly - North,Other Small Contracts,Everycare (Bristol) Ltd,2476.80, 22-May-2015
564,Revenue,CCHD,Under 65s -MH  Home Care Purch,Other Small Contracts,Everycare (Bristol) Ltd,51.60, 22-May-2015
565,Revenue,CCHD,Home Care - Elderly - South,Other Small Contracts,Everycare (Bristol) Ltd,4192.50, 19-May-2015
566,Revenue,CCHD,Home Care - Elderly - North,Day Care / Social Activities,Everycare (Bristol) Ltd,111.80, 19-May-2015
567,Revenue,CCHD,Home Care - Elderly - North,Other Small Contracts,Everycare (Bristol) Ltd,2309.10, 19-May-2015
568,Revenue,CCHD,Under 65s -MH  Home Care Purch,Other Small Contracts,Everycare (Bristol) Ltd,51.60, 19-May-2015
569,Revenue,CCHD,NHS Health Checks & Tobacco Control,Conference Expenses,Exchange Supplies Ltd,1125.00, 06-May-2015
570,Revenue,CCHD,Bed Purchasing - Southmead Hospital,Permanent Nursing,Fairview Court,1896.04, 12-May-2015
571,Revenue,CCHD,Bed purchasing - Elderly S117 - South,Permanent Nursing,Fairview Court,2012.00, 12-May-2015
572,Revenue,CCHD,Bed Purchasing - South,Permanent Nursing,Fairview Court,1655.12, 12-May-2015
573,Revenue,CCHD,Bed Purchasing - South,Permanent Nursing,Fairview Court,1786.36, 12-May-2015
574,Revenue,CCHD,Bed Purchasing - South,Permanent Nursing,Fairview Court,2019.04, 12-May-2015
575,Revenue,CCHD,Bed Purchasing - South,Permanent Nursing,Fairview Court,1880.04, 12-May-2015
576,Revenue,CCHD,Bed Purchasing - North,Permanent Nursing,Fairview Court,2347.96, 12-May-2015
577,Revenue,CCHD,Bed Purchasing - South,Permanent Nursing,Fairview Court,1878.76, 12-May-2015
578,Revenue,CCHD,Bed Purchasing - Southmead Hospital,Permanent Residential,Fairview Court,1542.86, 12-May-2015
579,Revenue,CCHD,Bed Purchasing - Southmead Hospital,Permanent Residential,Fairview Court,2462.46, 12-May-2015
580,Revenue,CCHD,Bed Purchasing - Southmead Hospital,Permanent Nursing,Fairview Court,1901.48, 12-May-2015
581,Revenue,CCHD,South Glos Users in South Glos Homes,Permanent Nursing,Fairview Court,1409.89, 12-May-2015
582,Revenue,CCHD,S75 CCG Interim Beds,Permanent Nursing,Fairview Court Care Home,10200.00, 06-May-2015
583,Revenue,CCHD,S75 CCG Interim Beds,Permanent Nursing,Fairview Court Care Home,10200.00, 13-May-2015
584,Revenue,CCHD,Bed purchasing - Elderly S117 - South,Permanent Residential,Fairview House,1776.00, 12-May-2015
585,Revenue,CCHD,Bed purchasing - Elderly S117 - South,Permanent Residential,Fairview House,1937.56, 12-May-2015
586,Revenue,CCHD,Bed Purchasing - Southmead Hospital,Permanent Residential,Fairview House,1043.16, 12-May-2015
587,Revenue,CCHD,Bed Purchasing - South,Permanent Residential,Fairview House,868.80, 12-May-2015
588,Revenue,CCHD,Bed Purchasing - South,Permanent Residential,Fairview House,1270.80, 12-May-2015
589,Revenue,CCHD,Bed Purchasing - South,Permanent Residential,Fairview House,1210.28, 12-May-2015
590,Revenue,CCHD,Bed Purchasing - South,Permanent Residential,Fairview House,1134.96, 12-May-2015
591,Revenue,CCHD,Bed Purchasing - Southmead Hospital,Permanent Residential,Fairview House,1270.80, 12-May-2015
592,Revenue,CCHD,Bed Purchasing - Southmead Hospital,Permanent Residential,Fairview House,1084.40, 12-May-2015
593,Revenue,CCHD,Bed Purchasing - South,Permanent Residential,Fairview House,1044.00, 12-May-2015
594,Revenue,CCHD,Bed Purchasing - South,Permanent Residential,Fairview House,1455.56, 12-May-2015
595,Revenue,CCHD,Bed Purchasing - Southmead Hospital,Permanent Residential,Faith House,1252.12, 12-May-2015
596,Revenue,CCHD,Bed Purchasing - North,Permanent Residential,Fernbank,7790.28, 12-May-2015
597,Revenue,CCHD,South Glos Users in South Glos Homes,Permanent Nursing,Field House Care Home,1441.57, 12-May-2015
598,Revenue,CCHD,South Glos Users in South Glos Homes,Permanent Nursing,Field House Care Home,864.00, 12-May-2015
599,Revenue,CCHD,Bed Purchasing - Southmead Hospital,Permanent Nursing,Field House Care Home,1564.16, 12-May-2015
600,Revenue,CCHD,Bed Purchasing - Southmead Hospital,Permanent Nursing,Field House Care Home,1173.12, 12-May-2015
601,Revenue,CCHD,Home Care - Elderly - South,Day Care / Social Activities,Firstpoint Homecare Ltd,85.58, 01-May-2015
602,Revenue,CCHD,Home Care - Elderly - South,Other Small Contracts,Firstpoint Homecare Ltd,1715.49, 01-May-2015
603,Revenue,CCHD,Home Care - Elderly - North,Day Care / Social Activities,Firstpoint Homecare Ltd,46.68, 01-May-2015
604,Revenue,CCHD,Home Care - Elderly - North,Other Small Contracts,Firstpoint Homecare Ltd,1267.76, 01-May-2015
605,Revenue,CCHD,Under 65s -MH  Home Care Purch,Other Small Contracts,Firstpoint Homecare Ltd,46.68, 01-May-2015
606,Revenue,CCHD,Younger MH non-res purchasing,Day Care / Social Activities,Firstpoint Homecare Ltd,46.67, 01-May-2015
607,Revenue,CCHD,Home Care - Elderly - South,Day Care / Social Activities,Firstpoint Homecare Ltd,89.47, 06-May-2015
608,Revenue,CCHD,Home Care - Elderly - South,Other Small Contracts,Firstpoint Homecare Ltd,1501.54, 06-May-2015
609,Revenue,CCHD,Home Care - Elderly - North,Day Care / Social Activities,Firstpoint Homecare Ltd,42.79, 06-May-2015
610,Revenue,CCHD,Home Care - Elderly - North,Other Small Contracts,Firstpoint Homecare Ltd,902.50, 06-May-2015
611,Revenue,CCHD,Under 65s -MH  Home Care Purch,Other Small Contracts,Firstpoint Homecare Ltd,46.68, 06-May-2015
612,Revenue,CCHD,Younger MH non-res purchasing,Day Care / Social Activities,Firstpoint Homecare Ltd,46.68, 06-May-2015
613,Revenue,CCHD,Home Care - Elderly - South,Day Care / Social Activities,Firstpoint Homecare Ltd,93.36, 19-May-2015
614,Revenue,CCHD,Home Care - Elderly - South,Other Small Contracts,Firstpoint Homecare Ltd,1462.64, 19-May-2015
615,Revenue,CCHD,Home Care - Elderly - North,Day Care / Social Activities,Firstpoint Homecare Ltd,66.13, 19-May-2015
616,Revenue,CCHD,Home Care - Elderly - North,Other Small Contracts,Firstpoint Homecare Ltd,1128.10, 19-May-2015
617,Revenue,CCHD,Under 65s -MH  Home Care Purch,Other Small Contracts,Firstpoint Homecare Ltd,46.68, 19-May-2015
618,Revenue,CCHD,Home Care - Elderly - South,Day Care / Social Activities,Firstpoint Homecare Ltd,85.58, 27-May-2015
619,Revenue,CCHD,Home Care - Elderly - South,Other Small Contracts,Firstpoint Homecare Ltd,1482.09, 27-May-2015
620,Revenue,CCHD,Home Care - Elderly - North,Day Care / Social Activities,Firstpoint Homecare Ltd,42.79, 27-May-2015
621,Revenue,CCHD,Home Care - Elderly - North,Other Small Contracts,Firstpoint Homecare Ltd,1093.09, 27-May-2015
622,Revenue,CCHD,Under 65s -MH  Home Care Purch,Other Small Contracts,Firstpoint Homecare Ltd,38.90, 27-May-2015
623,Revenue,CCHD,Younger MH non-res purchasing,Day Care / Social Activities,Firstpoint Homecare Ltd,46.68, 27-May-2015
624,Revenue,CCHD,Home Care - Elderly - South,Day Care / Social Activities,Firstpoint Homecare Ltd,85.58, 27-May-2015
625,Revenue,CCHD,Home Care - Elderly - South,Other Small Contracts,Firstpoint Homecare Ltd,1482.09, 27-May-2015
626,Revenue,CCHD,Home Care - Elderly - North,Day Care / Social Activities,Firstpoint Homecare Ltd,46.68, 27-May-2015
627,Revenue,CCHD,Home Care - Elderly - North,Other Small Contracts,Firstpoint Homecare Ltd,1147.55, 27-May-2015
628,Revenue,CCHD,Under 65s -MH  Home Care Purch,Other Small Contracts,Firstpoint Homecare Ltd,46.68, 27-May-2015
629,Revenue,CCHD,Younger MH non-res purchasing,Day Care / Social Activities,Firstpoint Homecare Ltd,31.12, 27-May-2015
630,Revenue,CCHD,SW HAWB Support,Consultants Fees,Five Square Solutions Limited,2200.00, 21-May-2015
631,Revenue,CCHD,Training - Adult Services,Training Expenses,Focal Point UK,463.60, 29-May-2015
632,Revenue,CCHD,Learning Difficulties Development Fund,Other Supplies & Services,Forest of Avon Trust,2070.00, 11-May-2015
633,Revenue,CCHD,Supporting People Programme,Grants to Voluntary Bodies,Freeways Trust Limited,8053.04, 01-May-2015
634,Revenue,CCHD,Supported Living - South,Private & Voluntary Home Care,Freeways Trust Limited,1272.06, 20-May-2015
635,Revenue,CCHD,Bed Purchasing - North,Permanent Residential,Freeways Trust Ltd,2891.96, 12-May-2015
636,Revenue,CCHD,Bed purchasing - S28A Under 65 - South,Permanent Residential,Freeways Trust Ltd,2958.72, 12-May-2015
637,Revenue,CCHD,Bed Purchasing - North,Permanent Residential,Freeways Trust Ltd,3164.68, 12-May-2015
638,Revenue,CCHD,Bed Purchasing - North,Permanent Residential,Freeways Trust Ltd,2312.72, 12-May-2015
639,Revenue,CCHD,Bed Purchasing - North,Permanent Residential,Freeways Trust Ltd,2761.92, 12-May-2015
640,Revenue,CCHD,Bed Purchasing - South,Permanent Residential,Freeways Trust Ltd,3375.88, 12-May-2015
641,Revenue,CCHD,Bed Purchasing - North,Permanent Residential,Freeways Trust Ltd,2286.84, 12-May-2015
642,Revenue,CCHD,Bed Purchasing - South,Permanent Residential,Freeways Trust Ltd,2425.96, 12-May-2015
643,Revenue,CCHD,Bed Purchasing - North,Permanent Residential,Freeways Trust Ltd,2761.92, 12-May-2015
644,Revenue,CCHD,Bed Purchasing - North,Permanent Residential,Freeways Trust Ltd,3185.76, 12-May-2015
645,Revenue,CCHD,18-25 Year Olds,Permanent Residential,Freeways Trust Ltd,3409.64, 12-May-2015
646,Revenue,CCHD,Bed Purchasing - North,Permanent Residential,Freeways Trust Ltd,3866.08, 12-May-2015
647,Revenue,CCHD,Bed Purchasing - Southmead Hospital,Permanent Nursing,Frenchay Park Nursing Home,2118.50, 12-May-2015
648,Revenue,CCHD,Sexual Health,Other Small Contracts,Frome Valley Medical Centre,1228.52, 27-May-2015
649,Revenue,CCHD,Bed Purchasing - South,Permanent Nursing,Fshc  1St Floor,900.32, 12-May-2015
650,Revenue,CCHD,Bed Purchasing - Southmead Hospital,Permanent Residential,Fshc  1St Floor,896.92, 12-May-2015
651,Revenue,CCHD,Bed Purchasing - South,Permanent Nursing,Fshc  1St Floor,952.80, 12-May-2015
652,Revenue,CCHD,Bed Purchasing - Southmead Hospital,Permanent Nursing,Fshc  1St Floor,1308.48, 12-May-2015
653,Revenue,CCHD,South Glos Users in South Glos Homes,Permanent Nursing,Fshc  1St Floor,792.07, 12-May-2015
654,Revenue,CCHD,Bed Purchasing - South,Permanent Nursing,Fshc  1St Floor,1398.80, 12-May-2015
655,Revenue,CCHD,Bed Purchasing - Southmead Hospital,Permanent Nursing,Fshc  1St Floor,1362.80, 12-May-2015
656,Revenue,CCHD,Bed Purchasing - Southmead Hospital,Permanent Nursing,Fshc  1St Floor,1398.80, 12-May-2015
657,Revenue,CCHD,Bed Purchasing - Southmead Hospital,Permanent Nursing,Fshc  1St Floor,1398.80, 12-May-2015
658,Revenue,CCHD,Bed Purchasing - Southmead Hospital,Permanent Nursing,Fshc  1St Floor,1064.28, 12-May-2015
659,Revenue,CCHD,Bed Purchasing - Southmead Hospital,Permanent Nursing,Fshc  1St Floor,1001.36, 12-May-2015
660,Revenue,CCHD,Bed Purchasing - South,Permanent Residential,Fshc  1St Floor,1233.68, 12-May-2015
661,Revenue,CCHD,Bed Purchasing - Southmead Hospital,Permanent Nursing,Fshc  1St Floor,1210.12, 12-May-2015
662,Revenue,CCHD,Bed Purchasing - South,Permanent Nursing,Fshc  1St Floor,962.96, 12-May-2015
663,Revenue,CCHD,Bed Purchasing - South,Permanent Nursing,Fshc  1St Floor,722.22, 12-May-2015
664,Revenue,CCHD,Bed Purchasing - Southmead Hospital,Permanent Nursing,Fshc  1St Floor,1398.80, 12-May-2015
665,Revenue,CCHD,Bed Purchasing - South,Permanent Nursing,Fshc  1St Floor,1142.76, 12-May-2015
666,Revenue,CCHD,Bed Purchasing - Southmead Hospital,Permanent Nursing,Fshc  1St Floor,1398.80, 12-May-2015
667,Revenue,CCHD,Bed Purchasing - Southmead Hospital,Permanent Nursing,Fshc  1St Floor,1382.44, 12-May-2015
668,Revenue,CCHD,Bed Purchasing - Southmead Hospital,Permanent Nursing,Fshc  1St Floor,1398.80, 12-May-2015
669,Revenue,CCHD,Bed Purchasing - North,Permanent Nursing,Fshc  1St Floor,1904.00, 12-May-2015
670,Revenue,CCHD,Bed Purchasing - Southmead Hospital,Permanent Nursing,Fshc  1St Floor,1207.68, 12-May-2015
671,Revenue,CCHD,Bed Purchasing - South,Permanent Nursing,Fshc  1St Floor,1398.80, 12-May-2015
672,Revenue,CCHD,Bed Purchasing - South,Permanent Nursing,Fshc  1St Floor,1354.20, 12-May-2015
673,Revenue,CCHD,Bed Purchasing - Southmead Hospital,Permanent Residential,Fshc  1St Floor,1270.80, 12-May-2015
674,Revenue,CCHD,Bed Purchasing - Southmead Hospital,Permanent Residential,Fshc  1St Floor,907.71, 12-May-2015
675,Revenue,CCHD,Bed Purchasing - Southmead Hospital,Permanent Nursing,Fshc  1St Floor,1164.92, 12-May-2015
676,Revenue,CCHD,Bed Purchasing - Southmead Hospital,Permanent Nursing,Fshc  1St Floor,1398.80, 12-May-2015
677,Revenue,CCHD,Bed Purchasing - Southmead Hospital,Permanent Nursing,Fshc  1St Floor,1049.10, 12-May-2015
678,Revenue,CCHD,Bed Purchasing - South,Permanent Nursing,Fshc  1St Floor,1233.64, 12-May-2015
679,Revenue,CCHD,Bed Purchasing - North,Permanent Nursing,Fshc  1St Floor,778.64, 12-May-2015
680,Revenue,CCHD,Bed Purchasing - Southmead Hospital,Permanent Nursing,Fshc  1St Floor,932.22, 12-May-2015
681,Revenue,CCHD,Bed Purchasing - North,Permanent Residential,Fshc  1St Floor,1270.80, 12-May-2015
682,Revenue,CCHD,Bed Purchasing - Southmead Hospital,Permanent Nursing,Fshc  1St Floor,1477.36, 12-May-2015
683,Revenue,CCHD,Bed Purchasing - Southmead Hospital,Permanent Nursing,Fshc  1St Floor,949.60, 12-May-2015
684,Revenue,CCHD,Bed Purchasing - North,Permanent Nursing,Fshc  1St Floor,1294.36, 12-May-2015
685,Revenue,CCHD,Bed Purchasing - Southmead Hospital,Permanent Nursing,Fshc  1St Floor,1622.04, 12-May-2015
686,Revenue,CCHD,Bed Purchasing - Southmead Hospital,Permanent Nursing,Fshc  1St Floor,1398.80, 12-May-2015
687,Revenue,CCHD,Bed Purchasing - Southmead Hospital,Permanent Nursing,Fshc  1St Floor,1049.10, 12-May-2015
688,Revenue,CCHD,Bed Purchasing - Southmead Hospital,Permanent Nursing,Fshc  1St Floor,793.26, 12-May-2015
689,Revenue,CCHD,S75 CCG Interim Beds,Permanent Nursing,Fshc  1St Floor,590.26, 12-May-2015
690,Revenue,CCHD,Bed Purchasing - Southmead Hospital,Permanent Residential,Fshc  1St Floor,1158.00, 12-May-2015
691,Revenue,CCHD,Bed Purchasing - North,Permanent Nursing,Fshc  1St Floor,1026.60, 12-May-2015
692,Revenue,CCHD,Bed Purchasing - Southmead Hospital,Permanent Nursing,Fshc  1St Floor,2754.46, 12-May-2015
693,Revenue,CCHD,Bed Purchasing - Southmead Hospital,Permanent Nursing,Fshc  1St Floor,1108.16, 12-May-2015
694,Revenue,CCHD,Bed Purchasing - Southmead Hospital,Permanent Nursing,Fshc  1St Floor,1132.12, 12-May-2015
695,Revenue,CCHD,Bed Purchasing - Southmead Hospital,Permanent Nursing,Fshc  1St Floor,2323.32, 12-May-2015
696,Revenue,CCHD,Bed Purchasing - Southmead Hospital,Permanent Nursing,Fshc  1St Floor,1304.24, 12-May-2015
697,Revenue,CCHD,Bed Purchasing - Southmead Hospital,Permanent Nursing,Fshc  1St Floor,1398.80, 12-May-2015
698,Revenue,CCHD,Bed Purchasing - Southmead Hospital,Permanent Nursing,Fshc  1St Floor,1130.76, 12-May-2015
699,Revenue,CCHD,Bed Purchasing - Southmead Hospital,Permanent Nursing,Fshc  1St Floor,1217.24, 12-May-2015
700,Revenue,CCHD,Bed Purchasing - North,Permanent Residential,Fshc  1St Floor,1248.40, 12-May-2015
701,Revenue,CCHD,Bed Purchasing - South,Permanent Residential,Fshc  1St Floor,1148.76, 12-May-2015
702,Revenue,CCHD,Bed Purchasing - Southmead Hospital,Permanent Nursing,Fshc  1St Floor,2080.00, 12-May-2015
703,Revenue,CCHD,Bed Purchasing - Southmead Hospital,Permanent Nursing,Fshc  1St Floor,1393.24, 12-May-2015
704,Revenue,CCHD,Bed Purchasing - Southmead Hospital,Permanent Nursing,Fshc  1St Floor,1398.80, 12-May-2015
705,Revenue,CCHD,Bed Purchasing - North,Permanent Nursing,Fshc  1St Floor,545.84, 12-May-2015
706,Revenue,CCHD,Bed Purchasing - North,Permanent Nursing,Fshc  1St Floor,1507.24, 12-May-2015
707,Revenue,CCHD,Bed Purchasing - Southmead Hospital,Permanent Residential,Fshc  1St Floor,619.48, 12-May-2015
708,Revenue,CCHD,Bed Purchasing - North,Permanent Nursing,Fshc  1St Floor,908.28, 12-May-2015
709,Revenue,CCHD,Bed Purchasing - Southmead Hospital,Permanent Nursing,Fshc  1St Floor,1574.80, 12-May-2015
710,Revenue,CCHD,Bed Purchasing - North,Permanent Nursing,Fshc  1St Floor,1489.00, 12-May-2015
711,Revenue,CCHD,Bed Purchasing - North,Permanent Residential,Fshc  1St Floor,1421.84, 12-May-2015
712,Revenue,CCHD,Bed purchasing - Elderly S117 - South,Permanent Nursing,Fshc  1St Floor,1904.00, 12-May-2015
713,Revenue,CCHD,Bed Purchasing - North,Permanent Residential,Fshc  1St Floor,1268.08, 12-May-2015
714,Revenue,CCHD,Bed Purchasing - North,Permanent Residential,Fshc  1St Floor,1270.80, 12-May-2015
715,Revenue,CCHD,Bed Purchasing - North,Permanent Residential,Fshc  1St Floor,816.94, 12-May-2015
716,Revenue,CCHD,Bed Purchasing - Southmead Hospital,Permanent Nursing,Fshc  1St Floor,1108.28, 12-May-2015
717,Revenue,CCHD,Bed Purchasing - Southmead Hospital,Permanent Residential,Fshc  1St Floor,1270.80, 12-May-2015
718,Revenue,CCHD,Bed Purchasing - North,Permanent Nursing,Fshc  1St Floor,1398.80, 12-May-2015
719,Revenue,CCHD,Bed Purchasing - North,Permanent Residential,Fshc  1St Floor,1421.60, 12-May-2015
720,Revenue,CCHD,Bed Purchasing - North,Permanent Nursing,Fshc  1St Floor,1602.80, 12-May-2015
721,Revenue,CCHD,Bed Purchasing - North,Permanent Residential,Fshc  1St Floor,1270.80, 12-May-2015
722,Revenue,CCHD,Bed Purchasing - Southmead Hospital,Permanent Nursing,Fshc  1St Floor,1197.88, 12-May-2015
723,Revenue,CCHD,Bed Purchasing - North,Respite Planned - Nursing,Fshc  1St Floor,1413.00, 12-May-2015
724,Revenue,CCHD,Bed Purchasing - North,Respite Planned - Nursing,Fshc  1St Floor,1156.00, 12-May-2015
725,Revenue,CCHD,Bed Purchasing - North,Permanent Nursing,Fshc  1St Floor,1398.80, 12-May-2015
726,Revenue,CCHD,Bed Purchasing - Southmead Hospital,Permanent Nursing,Fshc  1St Floor,1398.80, 12-May-2015
727,Revenue,CCHD,South Glos Users in South Glos Homes,Permanent Nursing,Fshc  1St Floor,3549.59, 12-May-2015
728,Revenue,CCHD,Bed Purchasing - North,Permanent Nursing,Fshc  1St Floor,1398.80, 12-May-2015
729,Revenue,CCHD,Bed Purchasing - Southmead Hospital,Permanent Nursing,Fshc  1St Floor,1344.04, 12-May-2015
730,Revenue,CCHD,Bed Purchasing - North,Permanent Nursing,Fshc  1St Floor,1019.44, 12-May-2015
731,Revenue,CCHD,Bed Purchasing - North,Permanent Nursing,Fshc  1St Floor,5947.21, 12-May-2015
732,Revenue,CCHD,Bed Purchasing - North,Permanent Nursing,Fshc  1St Floor,1433.84, 12-May-2015
733,Revenue,CCHD,Bed Purchasing - North,Permanent Nursing,Fshc  1St Floor,1075.38, 12-May-2015
734,Revenue,CCHD,Swift Dump Code,Permanent Residential,Fshc  1St Floor,855.64, 12-May-2015
735,Revenue,CCHD,Bed Purchasing - Southmead Hospital,Permanent Nursing,Fshc  1St Floor,1398.80, 12-May-2015
736,Revenue,CCHD,Bed Purchasing - Southmead Hospital,Permanent Nursing,Fshc  1St Floor,582.08, 12-May-2015
737,Revenue,CCHD,Bed Purchasing - Southmead Hospital,Permanent Nursing,Fshc  1St Floor,1398.80, 12-May-2015
738,Revenue,CCHD,Bed Purchasing - Southmead Hospital,Permanent Nursing,Fshc  1St Floor,874.00, 12-May-2015
739,Revenue,CCHD,South Glos Users in South Glos Homes,Permanent Nursing,Fshc  1St Floor,2788.09, 12-May-2015
740,Revenue,CCHD,Bed Purchasing - Southmead Hospital,Permanent Nursing,Fshc  1St Floor,1088.24, 12-May-2015
741,Revenue,CCHD,Bed Purchasing - Southmead Hospital,Permanent Nursing,Fshc  1St Floor,1329.40, 12-May-2015
742,Revenue,CCHD,Bed Purchasing - North,Permanent Nursing,Fshc  1St Floor,1287.04, 12-May-2015
743,Revenue,CCHD,Bed Purchasing - Southmead Hospital,Permanent Nursing,Fshc  1St Floor,1848.92, 12-May-2015
744,Revenue,CCHD,Bed Purchasing - North,Permanent Residential,Fshc  1St Floor,3034.68, 12-May-2015
745,Revenue,CCHD,Bed Purchasing - North,Permanent Nursing,Fshc  1St Floor,1405.04, 12-May-2015
746,Revenue,CCHD,Bed Purchasing - Southmead Hospital,Permanent Residential,Fshc  1St Floor,1972.00, 12-May-2015
747,Revenue,CCHD,Bed Purchasing - Southmead Hospital,Permanent Nursing,Fshc  1St Floor,1335.04, 12-May-2015
748,Revenue,CCHD,Bed Purchasing - South,Permanent Residential,Fshc  1St Floor,1972.00, 12-May-2015
749,Revenue,CCHD,Bed Purchasing - Southmead Hospital,Permanent Nursing,Fshc  1St Floor,1398.60, 12-May-2015
750,Revenue,CCHD,Bed Purchasing - South,Permanent Nursing,Fshc  1St Floor,1398.80, 12-May-2015
751,Revenue,CCHD,Bed Purchasing - Southmead Hospital,Permanent Residential,Fshc  1St Floor,1494.80, 12-May-2015
752,Revenue,CCHD,Bed Purchasing - Southmead Hospital,Respite Planned - Residential,Fshc  1St Floor,1585.71, 12-May-2015
753,Revenue,CCHD,Bed Purchasing - North,Permanent Residential,Fshc  1St Floor,1172.00, 12-May-2015
754,Revenue,CCHD,Bed Purchasing - North,Permanent Nursing,Fshc  1St Floor,1144.52, 12-May-2015
755,Revenue,CCHD,Bed Purchasing - South,Permanent Nursing,Fshc  1St Floor,1259.36, 12-May-2015
756,Revenue,CCHD,Bed Purchasing - Southmead Hospital,Permanent Nursing,Fshc  1St Floor,1144.72, 12-May-2015
757,Revenue,CCHD,Bed Purchasing - South,Permanent Nursing,Fshc  1St Floor,1366.80, 12-May-2015
758,Revenue,CCHD,Bed Purchasing - North,Permanent Nursing,Fshc  1St Floor,1904.00, 12-May-2015
759,Revenue,CCHD,Bed Purchasing - Southmead Hospital,Permanent Nursing,Fshc  1St Floor,1398.80, 12-May-2015
760,Revenue,CCHD,Bed Purchasing - Southmead Hospital,Permanent Nursing,Fshc  1St Floor,1394.80, 12-May-2015
761,Revenue,CCHD,Bed Purchasing - South,Permanent Residential,Fshc  1St Floor,904.40, 12-May-2015
762,Revenue,CCHD,Bed Purchasing - Southmead Hospital,Respite Emergency - Residential,Fshc  1St Floor,1479.00, 12-May-2015
763,Revenue,CCHD,Bed Purchasing - South,Permanent Nursing,Fshc  1St Floor,1240.84, 12-May-2015
764,Revenue,CCHD,Bed Purchasing - Southmead Hospital,Permanent Nursing,Fshc  1St Floor,1603.26, 12-May-2015
765,Revenue,CCHD,Bed Purchasing - Southmead Hospital,Permanent Nursing,Fshc  1St Floor,1304.64, 12-May-2015
766,Revenue,CCHD,Bed Purchasing - Southmead Hospital,Permanent Nursing,Fshc  1St Floor,978.48, 12-May-2015
767,Revenue,CCHD,Bed Purchasing - Southmead Hospital,Permanent Residential,Fshc  1St Floor,1466.80, 12-May-2015
768,Revenue,CCHD,Bed Purchasing - South,Permanent Residential,Fshc  1St Floor,1270.80, 12-May-2015
769,Revenue,CCHD,Bed Purchasing - Southmead Hospital,Permanent Nursing,Fshc  1St Floor,1398.80, 12-May-2015
770,Revenue,CCHD,Bed Purchasing - Southmead Hospital,Permanent Nursing,Fshc  1St Floor,1398.80, 12-May-2015
771,Revenue,CCHD,Bed Purchasing - Southmead Hospital,Permanent Nursing,Fshc  1St Floor,1324.72, 12-May-2015
772,Revenue,CCHD,Bed Purchasing - Southmead Hospital,Permanent Residential,Fshc  1St Floor,1493.36, 12-May-2015
773,Revenue,CCHD,Bed Purchasing - Southmead Hospital,Respite Planned - Residential,Fshc  1St Floor,1776.00, 12-May-2015
774,Revenue,CCHD,Bed Purchasing - Southmead Hospital,Permanent Nursing,Fshc  1St Floor,1398.80, 12-May-2015
775,Revenue,CCHD,Bed purchasing - Elderly S117 - South,Permanent Nursing,Fshc  1St Floor,1904.00, 12-May-2015
776,Revenue,CCHD,Bed Purchasing - Southmead Hospital,Permanent Residential,Fshc  1St Floor,1131.52, 12-May-2015
777,Revenue,CCHD,Bed Purchasing - South,Permanent Nursing,Fshc  1St Floor,1402.52, 12-May-2015
778,Revenue,CCHD,Bed Purchasing - South,Permanent Residential,Fshc  1St Floor,1386.96, 12-May-2015
779,Revenue,CCHD,Bed Purchasing - South,Respite Planned - Nursing,Fshc  1St Floor,4440.86, 12-May-2015
780,Revenue,CCHD,Bed Purchasing - South,Respite Planned - Nursing,Fshc  1St Floor,1428.00, 12-May-2015
781,Revenue,CCHD,Bed Purchasing - South,Permanent Nursing,Fshc  1St Floor,1398.80, 12-May-2015
782,Revenue,CCHD,Bed Purchasing - Southmead Hospital,Permanent Nursing,Fshc  1St Floor,776.96, 12-May-2015
783,Revenue,CCHD,Bed Purchasing - North,Permanent Residential,Fshc  1St Floor,1233.32, 12-May-2015
784,Revenue,CCHD,Bed Purchasing - South,Permanent Nursing,Fshc  1St Floor,1202.56, 12-May-2015
785,Revenue,CCHD,Bed Purchasing - South,Permanent Nursing,Fshc  1St Floor,1352.12, 12-May-2015
786,Revenue,CCHD,Bed Purchasing - South,Permanent Nursing,Fshc  1St Floor,1681.08, 12-May-2015
787,Revenue,CCHD,Bed Purchasing - South,Permanent Nursing,Fshc  1St Floor,1135.00, 12-May-2015
788,Revenue,CCHD,Bed Purchasing - Southmead Hospital,Permanent Nursing,Fshc  1St Floor,1240.64, 12-May-2015
789,Revenue,CCHD,Bed Purchasing - Southmead Hospital,Permanent Nursing,Fshc  1St Floor,956.72, 12-May-2015
790,Revenue,CCHD,Bed Purchasing - Southmead Hospital,Permanent Nursing,Fshc  1St Floor,1566.40, 12-May-2015
791,Revenue,CCHD,Bed Purchasing - Southmead Hospital,Permanent Nursing,Fshc  1St Floor,1382.48, 12-May-2015
792,Revenue,CCHD,Bed Purchasing - Southmead Hospital,Permanent Nursing,Fshc  1St Floor,1398.80, 12-May-2015
793,Revenue,CCHD,Bed Purchasing - Southmead Hospital,Permanent Nursing,Fshc  1St Floor,894.72, 12-May-2015
794,Revenue,CCHD,Bed Purchasing - South,Permanent Nursing,Fshc  1St Floor,1230.52, 12-May-2015
795,Revenue,CCHD,Bed Purchasing - South,Permanent Nursing,Fshc  1St Floor,1203.83, 12-May-2015
796,Revenue,CCHD,Bed Purchasing - South,Permanent Residential,Fshc  1St Floor,2729.36, 12-May-2015
797,Revenue,CCHD,Bed Purchasing - North,Permanent Nursing,Fshc  1St Floor,1352.04, 12-May-2015
798,Revenue,CCHD,Bed Purchasing - Southmead Hospital,Permanent Nursing,Fshc  1St Floor,936.48, 12-May-2015
799,Revenue,CCHD,Bed Purchasing - North,Respite Emergency - Residential,Fshc  1St Floor,1918.72, 12-May-2015
800,Revenue,CCHD,Bed Purchasing - Southmead Hospital,Permanent Nursing,Fshc  1St Floor,1301.32, 12-May-2015
801,Revenue,CCHD,Bed Purchasing - North,Permanent Nursing,Fshc  1St Floor,1357.80, 12-May-2015
802,Revenue,CCHD,Bed Purchasing - Southmead Hospital,Permanent Residential,Fshc  1St Floor,1571.20, 12-May-2015
803,Revenue,CCHD,Bed Purchasing - North,Permanent Nursing,Fshc  1St Floor,845.84, 12-May-2015
804,Revenue,CCHD,Bed Purchasing - North,Permanent Nursing,Fshc  1St Floor,1506.80, 12-May-2015
805,Revenue,CCHD,Bed Purchasing - North,Permanent Nursing,Fshc  1St Floor,1245.80, 12-May-2015
806,Revenue,CCHD,Bed Purchasing - Southmead Hospital,Permanent Nursing,Fshc  1St Floor,1350.80, 12-May-2015
807,Revenue,CCHD,Bed Purchasing - South,Permanent Nursing,Fshc  1St Floor,904.24, 12-May-2015
808,Revenue,CCHD,Bed Purchasing - Southmead Hospital,Permanent Nursing,Fshc  1St Floor,1506.80, 12-May-2015
809,Revenue,CCHD,Bed Purchasing - North,Permanent Nursing,Fshc  1St Floor,1374.32, 12-May-2015
810,Revenue,CCHD,South Glos Users in South Glos Homes,Permanent Nursing,Fshc  1St Floor,936.72, 12-May-2015
811,Revenue,CCHD,Bed Purchasing - Southmead Hospital,Permanent Nursing,Fshc  1St Floor,602.32, 12-May-2015
812,Revenue,CCHD,Bed Purchasing - South,Permanent Nursing,Fshc  1St Floor,1221.40, 12-May-2015
813,Revenue,CCHD,Bed Purchasing - Southmead Hospital,Permanent Residential,Fshc  1St Floor,1250.68, 12-May-2015
814,Revenue,CCHD,Bed Purchasing - Southmead Hospital,Permanent Nursing,Fshc  1St Floor,1270.84, 12-May-2015
815,Revenue,CCHD,Bed Purchasing - Southmead Hospital,Permanent Nursing,Fshc  1St Floor,1242.28, 12-May-2015
816,Revenue,CCHD,Bed Purchasing - Southmead Hospital,Permanent Nursing,Fshc  1St Floor,1398.80, 12-May-2015
817,Revenue,CCHD,Bed Purchasing - Southmead Hospital,Permanent Nursing,Fshc  1St Floor,1049.10, 12-May-2015
818,Revenue,CCHD,Bed Purchasing - Southmead Hospital,Permanent Nursing,Fshc  1St Floor,644.52, 12-May-2015
819,Revenue,CCHD,Bed purchasing - Elderly S117 - South,Permanent Nursing,Fshc  1St Floor,2012.00, 12-May-2015
820,Revenue,CCHD,Bed Purchasing - North,Permanent Residential,Fshc  1St Floor,1128.92, 12-May-2015
821,Revenue,CCHD,Bed Purchasing - Southmead Hospital,Permanent Nursing,Fshc  1St Floor,950.80, 12-May-2015
822,Revenue,CCHD,Bed Purchasing - Elderly S117- North,Permanent Nursing,Fshc  1St Floor,2012.00, 12-May-2015
823,Revenue,CCHD,Bed Purchasing - North,Permanent Residential,Fshc  1St Floor,1442.80, 12-May-2015
824,Revenue,CCHD,Bed Purchasing - Southmead Hospital,Permanent Nursing,Fshc  1St Floor,1101.28, 12-May-2015
825,Revenue,CCHD,Bed Purchasing - North,Permanent Residential,Fshc  1St Floor,1045.52, 12-May-2015
826,Revenue,CCHD,Bed Purchasing - South,Permanent Residential,Fshc  1St Floor,1368.08, 12-May-2015
827,Revenue,CCHD,Swift Dump Code,Permanent Residential,Fshc  1St Floor,2557.43, 12-May-2015
828,Revenue,CCHD,Bed Purchasing - Southmead Hospital,Permanent Residential,Fshc  1St Floor,808.44, 12-May-2015
829,Revenue,CCHD,CAH Assistant Directors,Agency Staff (Admin/Support Staff) Pay,Gatenby Sanderson Limited,14750.00, 26-May-2015
830,Revenue,CCHD,Section 117 Placements MH Younger,Permanent Residential,Gladstone House,2792.00, 12-May-2015
831,Revenue,CCHD,Bed Purchasing - South,Permanent Residential,Glasallt Fawr,4666.48, 12-May-2015
832,Revenue,CCHD,Bed Purchasing - North,Permanent Residential,Glebe House Nursing Home,2163.16, 12-May-2015
833,Revenue,CCHD,Bed Purchasing - South,Permanent Residential,Glebe House Nursing Home,2073.76, 12-May-2015
834,Revenue,CCHD,Bed Purchasing - North,Permanent Residential,Glebe House Nursing Home,1880.84, 12-May-2015
835,Revenue,CCHD,South Glos Users in South Glos Homes,Permanent Nursing,Glebe House Nursing Home,1346.52, 12-May-2015
836,Revenue,CCHD,Bed Purchasing - North,Permanent Nursing,Glebe House Nursing Home,2185.48, 12-May-2015
837,Revenue,CCHD,Bed Purchasing - North,Permanent Residential,Glebe House Nursing Home,2628.08, 12-May-2015
838,Revenue,CCHD,Bed Purchasing - South,Permanent Residential,Gordena Care Home,2137.52, 12-May-2015
839,Revenue,CCHD,Bed Purchasing - South,Permanent Residential,Gordena Care Home,4847.64, 12-May-2015
840,Revenue,CCHD,Bed Purchasing - South,Permanent Residential,Gordena Care Home,3189.84, 12-May-2015
841,Revenue,CCHD,Bed Purchasing - South,Permanent Residential,Gordena Care Home,2996.16, 12-May-2015
842,Revenue,CCHD,Bed Purchasing - South,Permanent Residential,Gordena Care Home,1950.08, 12-May-2015
843,Revenue,CCHD,Bed Purchasing - South,Permanent Residential,Gordena Care Limited,4264.60, 12-May-2015
844,Revenue,CCHD,Bed purchasing - S28A Under 65 - South,Permanent Residential,Gordena Care Limited,4161.28, 12-May-2015
845,Revenue,CCHD,Bed Purchasing - North,Permanent Residential,Gordena Care Limited,4260.48, 12-May-2015
846,Revenue,CCHD,Bed Purchasing - South,Permanent Nursing,Gracefields Nursing Home,1712.72, 12-May-2015
847,Revenue,CCHD,Bed purchasing - Elderly S117 - South,Permanent Nursing,Gracefields Nursing Home,2421.68, 12-May-2015
848,Revenue,CCHD,Bed Purchasing - Southmead Hospital,Permanent Nursing,Gracefields Nursing Home,1655.96, 12-May-2015
849,Revenue,CCHD,Bed purchasing - Elderly S117 - South,Permanent Nursing,Gracefields Nursing Home,2381.88, 12-May-2015
850,Revenue,CCHD,Bed Purchasing - South,Permanent Nursing,Gracefields Nursing Home,2269.68, 12-May-2015
851,Revenue,CCHD,Bed Purchasing - Southmead Hospital,Permanent Nursing,Gracefields Nursing Home,1586.56, 12-May-2015
852,Revenue,CCHD,Bed Purchasing - South,Permanent Nursing,Gracefields Nursing Home,2658.88, 12-May-2015
853,Revenue,CCHD,South Glos Users in South Glos Homes,Permanent Nursing,Gracefields Nursing Home,2582.15, 12-May-2015
854,Revenue,CCHD,South Glos Users in South Glos Homes,Permanent Nursing,Gracefields Nursing Home,665.34, 12-May-2015
855,Revenue,CCHD,Bed Purchasing - South,Permanent Nursing,Gracefields Nursing Home,1876.68, 12-May-2015
856,Revenue,CCHD,Bed Purchasing - South,Permanent Nursing,Gracefields Nursing Home,9052.10, 12-May-2015
857,Revenue,CCHD,Bed Purchasing - South,Permanent Nursing,Gracefields Nursing Home,1798.84, 12-May-2015
858,Revenue,CCHD,Bed Purchasing - South,Permanent Nursing,Gracefields Nursing Home,1559.13, 12-May-2015
859,Revenue,CCHD,South Glos Users in South Glos Homes,Permanent Nursing,Gracefields Nursing Home,1790.08, 12-May-2015
860,Revenue,CCHD,Bed Purchasing - Southmead Hospital,Permanent Nursing,Gracefields Nursing Home,1539.00, 12-May-2015
861,Revenue,CCHD,South Glos Users in South Glos Homes,Permanent Nursing,Gracefields Nursing Home,1409.89, 12-May-2015
862,Revenue,CCHD,Bed Purchasing - North,Permanent Residential,Greensleeves,1344.52, 12-May-2015
863,Revenue,CCHD,Bed Purchasing - South,Permanent Residential,Grove Care,1883.40, 12-May-2015
864,Revenue,CCHD,Bed Purchasing - South,Permanent Residential,Gwendoline House,955.96, 12-May-2015
865,Revenue,CCHD,Bed Purchasing - South,Permanent Residential,Gwendoline House,1159.80, 12-May-2015
866,Revenue,CCHD,Bed Purchasing - South,Permanent Residential,Gwendoline House,1526.36, 12-May-2015
867,Revenue,CCHD,Bed Purchasing - Southmead Hospital,Permanent Residential,Gwendoline House,1634.04, 12-May-2015
868,Revenue,CCHD,Supporting People Programme,Grants to Voluntary Bodies,Habinteg Housing Association,1373.26, 01-May-2015
869,Revenue,CCHD,Social Lettings Agency,Fees - General,Individual,15.78, 27-May-2015
870,Revenue,CCHD,Social Lettings Agency,Other Supplies & Services,Individual,508.21, 27-May-2015
871,Revenue,CCHD,Supporting People Programme,Grants to Voluntary Bodies,Hanover Housing Association,982.83, 01-May-2015
872,Revenue,CCHD,Bed Purchasing - South,Permanent Residential,Harefield Hall,1638.24, 12-May-2015
873,Revenue,CCHD,Bed Purchasing - South,Permanent Residential,Harefield Hall,1219.24, 12-May-2015
874,Revenue,CCHD,Bed Purchasing - South,Permanent Residential,Harefield Hall,1144.48, 12-May-2015
875,Revenue,CCHD,Bed Purchasing - South,Permanent Residential,Harefield Hall,1039.04, 12-May-2015
876,Revenue,CCHD,Bed Purchasing - South,Permanent Residential,Harefield Hall,1313.12, 12-May-2015
877,Revenue,CCHD,Bed Purchasing - South,Permanent Residential,Harefield Hall,1752.45, 12-May-2015
878,Revenue,CCHD,Bed Purchasing - South,Permanent Residential,Harefield Hall,1532.96, 12-May-2015
879,Revenue,CCHD,Bed Purchasing - South,Permanent Residential,Harefield Hall,1254.36, 12-May-2015
880,Revenue,CCHD,TSG Practice Placements,Training Expenses,Harriet Tamlyn,1000.00, 18-May-2015
881,Revenue,CCHD,NHS Health Checks & Tobacco Control,Drugs & Medical Supplies,Hayfield Pharmacy,590.88, 19-May-2015
882,Revenue,CCHD,Bed Purchasing - North,Permanent Nursing,Hc-One Ltd,1511.16, 12-May-2015
883,Revenue,CCHD,Bed Purchasing - North,Permanent Residential,Hc-One Ltd,1009.48, 12-May-2015
884,Revenue,CCHD,Bed Purchasing - North,Permanent Nursing,Hc-One Ltd,1530.96, 12-May-2015
885,Revenue,CCHD,Bed Purchasing - North,Permanent Nursing,Hc-One Ltd,1534.40, 12-May-2015
886,Revenue,CCHD,Bed Purchasing - North,Permanent Nursing,Hc-One Ltd,1508.32, 12-May-2015
887,Revenue,CCHD,Home Care - Elderly - South,Day Care / Social Activities,Headway Bristol,273.52, 18-May-2015
888,Revenue,CCHD,Home Care - Elderly - North,Day Care / Social Activities,Headway Bristol,126.24, 18-May-2015
889,Revenue,CCHD,Home Care - Elderly - North,Other Small Contracts,Headway Bristol,168.32, 18-May-2015
890,Revenue,CCHD,Home Care - Elderly - South,Day Care / Social Activities,Headway Bristol,273.52, 26-May-2015
891,Revenue,CCHD,Home Care - Elderly - North,Day Care / Social Activities,Headway Bristol,120.98, 26-May-2015
892,Revenue,CCHD,Home Care - Elderly - North,Other Small Contracts,Headway Bristol,168.32, 26-May-2015
893,Revenue,CCHD,Bed Purchasing - South,Permanent Residential,Heathwood Rest Home,1024.32, 12-May-2015
894,Revenue,CCHD,Bed Purchasing - Southmead Hospital,Permanent Residential,Heathwood Rest Home,1024.32, 12-May-2015
895,Revenue,CCHD,Tenancy Start Up Scheme,Fees & Charges Income - General,Heron Way Agencies Limited,1300.00, 14-May-2015
896,Revenue,CCHD,S117 Placements PCT,Permanent Residential,Hesley Hall,18406.20, 12-May-2015
897,Revenue,CCHD,Bed Purchasing - Southmead Hospital,Permanent Residential,High Border Lodge,1474.40, 12-May-2015
898,Revenue,CCHD,Bed Purchasing - Southmead Hospital,Permanent Residential,Highfield House,9685.18, 12-May-2015
899,Revenue,CCHD,Bed Purchasing - Southmead Hospital,Permanent Residential,Highgate Studios,1179.08, 12-May-2015
900,Revenue,CCHD,Bed Purchasing - North,Permanent Residential,Holmleigh Care Homes Ltd,4104.92, 12-May-2015
901,Revenue,CCHD,Bed Purchasing - South,Permanent Residential,Holmleigh Care Homes Ltd,5158.76, 12-May-2015
902,Revenue,CCHD,Bed Purchasing - North,Permanent Residential,Home Farm Trust Ltd  5-6 Brook Office Pa,2884.12, 12-May-2015
903,Revenue,CCHD,Bed Purchasing - South,Permanent Residential,Home Farm Trust Ltd  5-6 Brook Office Pa,5174.76, 12-May-2015
904,Revenue,CCHD,Bed Purchasing - North,Permanent Residential,Home Farm Trust Ltd  5-6 Brook Office Pa,3480.32, 12-May-2015
905,Revenue,CCHD,Bed Purchasing - South,Permanent Residential,Home Farm Trust Ltd  5-6 Brook Office Pa,5611.24, 12-May-2015
906,Revenue,CCHD,18-25 Year Olds,Permanent Residential,Home From Home Care Ltd,9086.16, 12-May-2015
907,Revenue,CCHD,Home Care - Elderly - South,Other Small Contracts,Homecare 4U,451.44, 11-May-2015
908,Revenue,CCHD,Home Care - Elderly - North,Other Small Contracts,Homecare 4U,205.92, 11-May-2015
909,Revenue,CCHD,Home Care - Elderly - South,Other Small Contracts,Homecare 4U,453.13, 27-May-2015
910,Revenue,CCHD,Home Care - Elderly - North,Other Small Contracts,Homecare 4U,264.66, 27-May-2015
911,Revenue,CCHD,Home Care - Elderly - South,Other Small Contracts,Homecare 4U,441.10, 27-May-2015
912,Revenue,CCHD,Home Care - Elderly - North,Day Care / Social Activities,Homecare 4U,48.12, 27-May-2015
913,Revenue,CCHD,Home Care - Elderly - North,Other Small Contracts,Homecare 4U,76.19, 27-May-2015
914,Revenue,CCHD,Home Care - Elderly - South,Other Small Contracts,Homecare 4U,445.11, 27-May-2015
915,Revenue,CCHD,Home Care - Elderly - North,Other Small Contracts,Homecare 4U,212.53, 27-May-2015
916,Revenue,CCHD,Bed Purchasing - North,Permanent Residential,Homes Caring For Autism Ltd  Churchill H,10015.24, 12-May-2015
917,Revenue,CCHD,18-25 Year Olds,Permanent Residential,Homes Caring For Autism Ltd  Churchill H,13043.96, 12-May-2015
918,Revenue,CCHD,Bed Purchasing - Southmead Hospital,Permanent Nursing,Horfield Care Limited,2757.67, 06-May-2015
919,Revenue,CCHD,Bed Purchasing - Southmead Hospital,Permanent Nursing,Horfield Care Limited,2757.67, 06-May-2015
920,Revenue,CCHD,Bed Purchasing - Southmead Hospital,Permanent Nursing,Horfield Care Limited,2757.67, 06-May-2015
921,Revenue,CCHD,Bed Purchasing - Southmead Hospital,Permanent Nursing,Horfield Care Limited,1470.15, 06-May-2015
922,Revenue,CCHD,Bed Purchasing - South,Permanent Nursing,Horfield Care Limited,1717.67, 06-May-2015
923,Revenue,CCHD,Bed Purchasing - South,Permanent Nursing,Horfield Care Limited,2757.67, 06-May-2015
924,Revenue,CCHD,Bed Purchasing - Southmead Hospital,Permanent Nursing,Horfield Care Limited,1826.83, 06-May-2015
925,Revenue,CCHD,Bed Purchasing - North,Permanent Nursing,Horfield Care Limited,889.57, 06-May-2015
926,Revenue,CCHD,Bed Purchasing - Frenchay Hospital,Permanent Nursing,Horfield Care Limited,1163.58, 06-May-2015
927,Revenue,CCHD,Bed Purchasing - South,Permanent Nursing,Horfield Care Limited,1357.09, 06-May-2015
928,Revenue,CCHD,Bed Purchasing - Southmead Hospital,Permanent Nursing,Horfield Care Limited,2757.67, 06-May-2015
929,Revenue,CCHD,Bed Purchasing - Southmead Hospital,Respite Planned - Nursing,Horfield Care Limited,2266.59, 06-May-2015
930,Revenue,CCHD,Supporting People Programme,Grants to Voluntary Bodies,Housing 21,623.07, 01-May-2015
931,Revenue,CCHD,Supporting People Programme,Grants to Voluntary Bodies,Housing 21,945.10, 01-May-2015
932,Revenue,CCHD,Home Care - Elderly - North,Private & Voluntary Home Care,Housing 21,38183.98, 08-May-2015
933,Revenue,CCHD,Home Care - Elderly - South,Private & Voluntary Home Care,Housing 21,24541.48, 01-May-2015
934,Revenue,CCHD,Information Systems - Software,Software Support & Maintenance,Housing Partners Limited,11750.00, 29-May-2015
935,Revenue,CCHD,Breakthrough and Inclusion Work,Other Supplies & Services,Impact Mentoring,924.00, 27-May-2015
936,Revenue,CCHD,Alexandra Way,Electricity,IMServ Europe Limited,27.50, 26-May-2015
937,Revenue,CCHD,Care Management Team - South,Agency Staff (Operational)/PCT Pay,IPE,430.63, 29-May-2015
938,Revenue,CCHD,Social Lettings Agency,Fees - General,Individual,12.22, 11-May-2015
939,Revenue,CCHD,Social Lettings Agency,Other Supplies & Services,Individual,690.32, 11-May-2015
940,Revenue,CCHD,NHS Health Checks & Tobacco Control,Drugs & Medical Supplies,Jhoots Pharmacy,563.81, 19-May-2015
941,Revenue,CCHD,Homeless - Private Sector Leasing,Other Supplies & Services,Individual,594.00, 15-May-2015
942,Revenue,CCHD,Training - Adult Services,Training Expenses,JK Training,700.00, 27-May-2015
943,Revenue,CCHD,NHS Health Checks & Tobacco Control,Drugs & Medical Supplies,JRW Billing,1464.99, 18-May-2015
944,Revenue,CCHD,Home Care - Elderly - South,Supported Living,Julia Simone- Supp. Ind.,1165.80, 12-May-2015
945,Revenue,CCHD,Younger MH non-res purchasing,Supported Living,Julia Simone- Supp. Ind.,1165.80, 12-May-2015
946,Revenue,CCHD,Home Care - Elderly - North,Supported Living,Julia Simone- Supp. Ind.,1199.40, 12-May-2015
947,Revenue,CCHD,Bed Purchasing - South,Permanent Residential,Julia Simone- Supp. Ind.,4004.36, 12-May-2015
948,Revenue,CCHD,Bed purchasing -S28A  Under 65 - North,Permanent Residential,Julia Simone- Supp. Ind.,3533.32, 12-May-2015
949,Revenue,CCHD,Bed Purchasing - South,Permanent Residential,Karenza Ltd,3787.01, 12-May-2015
950,Revenue,CCHD,Community Support - South,Preventative Assistance,KCC Cleaning Services Limited,962.00, 22-May-2015
951,Revenue,CCHD,Sexual Health,Other Small Contracts,Kennedy Way Surgery,1094.32, 27-May-2015
952,Revenue,CCHD,Bed Purchasing - Southmead Hospital,Permanent Residential,Kenver House Residential Home,1664.04, 12-May-2015
953,Revenue,CCHD,Bed Purchasing - Southmead Hospital,Permanent Residential,Kenver House Residential Home,1685.08, 12-May-2015
954,Revenue,CCHD,Bed Purchasing - South,Permanent Residential,Kenver House Residential Home,1539.20, 12-May-2015
955,Revenue,CCHD,Bed Purchasing - South,Permanent Residential,Kenver House Residential Home,1153.00, 12-May-2015
956,Revenue,CCHD,Bed Purchasing - South,Permanent Residential,Kenver House Residential Home,1388.84, 12-May-2015
957,Revenue,CCHD,Bed Purchasing - South,Permanent Residential,Kenver House Residential Home,1712.56, 12-May-2015
958,Revenue,CCHD,Bed Purchasing - Southmead Hospital,Respite Planned - Residential,Kenver House Residential Home,2190.28, 12-May-2015
959,Revenue,CCHD,Bed Purchasing - South,Permanent Residential,Kenver House Residential Home,1294.36, 12-May-2015
960,Revenue,CCHD,Bed Purchasing - South,Permanent Residential,Kenver House Residential Home,2190.28, 12-May-2015
961,Revenue,CCHD,Bed Purchasing - South,Permanent Residential,Kenver House Residential Home,10623.30, 12-May-2015
962,Revenue,CCHD,Bed Purchasing - South,Permanent Residential,Kenver House Residential Home,1685.08, 12-May-2015
963,Revenue,CCHD,Bed Purchasing - South,Permanent Residential,Kenver House Residential Home,1263.81, 12-May-2015
964,Revenue,CCHD,Bed Purchasing - South,Permanent Residential,Kenver House Residential Home,1644.64, 12-May-2015
965,Revenue,CCHD,Bed Purchasing - Southmead Hospital,Permanent Residential,Kenver House Residential Home,1685.00, 12-May-2015
966,Revenue,CCHD,Bed Purchasing - Southmead Hospital,Permanent Residential,Kenver House Residential Home,1277.56, 12-May-2015
967,Revenue,CCHD,Bed Purchasing - Southmead Hospital,Permanent Residential,Kenver House Residential Home,1582.16, 12-May-2015
968,Revenue,CCHD,Supporting People Programme,Grants to Voluntary Bodies,Keyring Living Support Networks,2948.50, 01-May-2015
969,Revenue,CCHD,Bed Purchasing - North,Permanent Nursing,Kingfisher Lodge Care Centre,2531.88, 12-May-2015
970,Revenue,CCHD,Sexual Health,Other Small Contracts,Kingswood Health Centre,1590.00, 27-May-2015
971,Revenue,CCHD,Sexual Health,Other Small Contracts,Kingswood Health Centre,1889.24, 27-May-2015
972,Revenue,CCHD,Supporting People Programme,Grants to Voluntary Bodies,Kingswood Young Homeless Project,17126.66, 01-May-2015
973,Revenue,CCHD,Bed Purchasing - North,Permanent Residential,Kisimul Group,11512.80, 12-May-2015
974,Revenue,CCHD,Supporting People Programme,Grants to Voluntary Bodies,Knightstone Housing Association Limited,13659.70, 01-May-2015
975,Revenue,CCHD,Supporting People Programme,Grants to Voluntary Bodies,Knightstone Housing Association Limited,8630.13, 01-May-2015
976,Revenue,CCHD,Supporting People Programme,Grants to Voluntary Bodies,Knightstone Housing Association Limited,7684.61, 01-May-2015
977,Revenue,CCHD,Supporting People Programme,Grants to Voluntary Bodies,Knightstone Housing Association Limited,1809.08, 01-May-2015
978,Revenue,CCHD,Supporting People Programme,Grants to Voluntary Bodies,Knightstone Housing Association Limited,2509.56, 01-May-2015
979,Revenue,CCHD,Supporting People Programme,Grants to Voluntary Bodies,Knightstone Housing Association Limited,2510.15, 01-May-2015
980,Revenue,CCHD,Supporting People Programme,Grants to Voluntary Bodies,Knightstone Housing Association Limited,853.70, 01-May-2015
981,Revenue,CCHD,Home Care - Elderly - South,Other Small Contracts,Kumari Care Limited,2694.87, 11-May-2015
982,Revenue,CCHD,Home Care - Elderly - North,Other Small Contracts,Kumari Care Limited,1123.20, 11-May-2015
983,Revenue,CCHD,Home Care - Elderly - South,Other Small Contracts,Kumari Care Limited,2701.81, 11-May-2015
984,Revenue,CCHD,Home Care - Elderly - North,Other Small Contracts,Kumari Care Limited,1119.02, 11-May-2015
985,Revenue,CCHD,Home Care - Elderly - South,Other Small Contracts,Kumari Care Limited,2697.90, 15-May-2015
986,Revenue,CCHD,Home Care - Elderly - North,Other Small Contracts,Kumari Care Limited,1123.25, 15-May-2015
987,Revenue,CCHD,Home Care - Elderly - South,Other Small Contracts,Kumari Care Limited,2663.59, 26-May-2015
988,Revenue,CCHD,Home Care - Elderly - North,Other Small Contracts,Kumari Care Limited,1123.20, 26-May-2015
989,Revenue,CCHD,Planning and Partnerships Procurement,Other Supplies & Services,L D Awareness,3662.00, 08-May-2015
990,Revenue,CCHD,"Physical Activity, Nutrition & Obesity",Other Small Contracts,Later Life Training Ltd,650.00, 08-May-2015
991,Revenue,CCHD,Sexual Health,Other Small Contracts,Leap Valley Surgery,557.48, 27-May-2015
992,Revenue,CCHD,Bed Purchasing - North,Permanent Nursing,Leonard Cheshire  National Account Centr,5090.88, 12-May-2015
993,Revenue,CCHD,Bed Purchasing - North,Permanent Residential,Leonard Cheshire  National Account Centr,2948.64, 12-May-2015
994,Revenue,CCHD,Bed Purchasing - South,Permanent Residential,Leonard Cheshire  National Account Centr,3376.16, 12-May-2015
995,Revenue,CCHD,Bed Purchasing - North,Permanent Nursing,Leonard Cheshire  National Account Centr,3559.68, 12-May-2015
996,Revenue,CCHD,Bed Purchasing - North,Permanent Nursing,Leonard Cheshire  National Account Centr,2795.32, 12-May-2015
997,Revenue,CCHD,18-25 Year Olds,Permanent Residential,Leonard Cheshire  National Account Centr,3231.92, 12-May-2015
998,Revenue,CCHD,18-25 Year Olds,Permanent Residential,Leonard Cheshire  National Account Centr,2423.94, 12-May-2015
999,Revenue,CCHD,Bed Purchasing - North,Permanent Residential,Leonard Cheshire  National Account Centr,6024.88, 12-May-2015
1000,Revenue,CCHD,Bed Purchasing - North,Permanent Residential,Leonard Cheshire  National Account Centr,6023.32, 12-May-2015
1001,Revenue,CCHD,Bed Purchasing - South,Permanent Residential,Leonard Cheshire  National Account Centr,4544.12, 12-May-2015
1002,Revenue,CCHD,Bed Purchasing - North,Permanent Nursing,Leonard Cheshire  National Account Centr,2913.28, 12-May-2015
1003,Revenue,CCHD,Bed Purchasing - North,Permanent Nursing,Leonard Cheshire  National Account Centr,3912.16, 12-May-2015
1004,Revenue,CCHD,Bed Purchasing - North,Permanent Residential,Leonard Cheshire  National Account Centr,2965.36, 12-May-2015
1005,Revenue,CCHD,Bed Purchasing - North,Permanent Nursing,Leonard Cheshire  National Account Centr,3306.84, 12-May-2015
1006,Revenue,CCHD,Bed Purchasing - North,Permanent Nursing,Leonard Cheshire  National Account Centr,5663.60, 12-May-2015
1007,Revenue,CCHD,Bed Purchasing - South,Permanent Nursing,Leonard Cheshire  National Account Centr,2940.92, 12-May-2015
1008,Revenue,CCHD,Bed Purchasing - Southmead Hospital,Permanent Nursing,Leonard Cheshire  National Account Centr,3075.12, 12-May-2015
1009,Revenue,CCHD,South Glos Users in all other LA Homes,Permanent Nursing,Leonard Cheshire  National Account Centr,616.56, 12-May-2015
1010,Revenue,CCHD,Bed Purchasing - North,Permanent Nursing,Leonard Cheshire  National Account Centr,3363.96, 12-May-2015
1011,Revenue,CCHD,Bed Purchasing - North,Permanent Nursing,Leonard Cheshire  National Account Centr,4167.96, 12-May-2015
1012,Revenue,CCHD,Supported Living - North,Private & Voluntary Home Care,Lifeways Community Care (Gloucester) Ltd,11373.00, 21-May-2015
1013,Revenue,CCHD,Supported Living - North,Private & Voluntary Home Care,Lifeways Community Care (Gloucester) Ltd,11373.00, 15-May-2015
1014,Revenue,CCHD,Bed Purchasing - Southmead Hospital,Permanent Residential,Little Croft,1085.24, 12-May-2015
1015,Revenue,CCHD,Bed Purchasing - Southmead Hospital,Permanent Residential,Little Croft,1269.32, 12-May-2015
1016,Revenue,CCHD,Bed Purchasing - Southmead Hospital,Permanent Residential,Little Croft,1278.80, 12-May-2015
1017,Revenue,CCHD,Bed Purchasing - Southmead Hospital,Respite Planned - Residential,Little Croft,1458.86, 12-May-2015
1018,Revenue,CCHD,Bed Purchasing - South,Permanent Residential,Little Croft,1591.52, 12-May-2015
1019,Revenue,CCHD,Bed Purchasing - Southmead Hospital,Permanent Residential,Little Croft,1294.12, 12-May-2015
1020,Revenue,CCHD,Bed Purchasing - South,Permanent Residential,Little Croft,908.60, 12-May-2015
1021,Revenue,CCHD,Bed Purchasing - Southmead Hospital,Respite Emergency - Residential,Little Croft,2223.76, 12-May-2015
1022,Revenue,CCHD,Bed Purchasing - Southmead Hospital,Respite Emergency - Residential,Little Croft,1667.82, 12-May-2015
1023,Revenue,CCHD,Bed Purchasing - Southmead Hospital,Respite Emergency - Residential,Little Croft,550.00, 12-May-2015
1024,Revenue,CCHD,Bed Purchasing - Southmead Hospital,Permanent Residential,Little Croft,1763.48, 12-May-2015
1025,Revenue,CCHD,Bed Purchasing - South,Permanent Residential,Little Croft,1442.80, 12-May-2015
1026,Revenue,CCHD,Bed Purchasing - Southmead Hospital,Permanent Residential,Little Croft,1442.80, 12-May-2015
1027,Revenue,CCHD,Bed Purchasing - Southmead Hospital,Permanent Residential,Little Croft,1222.48, 12-May-2015
1028,Revenue,CCHD,Bed Purchasing - South,Permanent Residential,Little Croft,1241.84, 12-May-2015
1029,Revenue,CCHD,Bed Purchasing - South,Permanent Residential,Little Croft,1422.92, 12-May-2015
1030,Revenue,CCHD,Bed Purchasing - Southmead Hospital,Permanent Residential,Little Croft,1270.80, 12-May-2015
1031,Revenue,CCHD,Bed Purchasing - North,Permanent Residential,Little Croft,1408.44, 12-May-2015
1032,Revenue,CCHD,Bed Purchasing - Southmead Hospital,Permanent Residential,Little Croft,1270.80, 12-May-2015
1033,Revenue,CCHD,Bed Purchasing - North,Permanent Residential,Littlecroft Residential Homes  Longcroft,6552.32, 12-May-2015
1034,Revenue,CCHD,NHS Health Checks & Tobacco Control,Drugs & Medical Supplies,Lloyds Pharmacy Limited,1281.99, 19-May-2015
1035,Revenue,CCHD,Home Care - Elderly - North,Day Care / Social Activities,Lloyds TSB Commercial Finance Limited,210.00, 01-May-2015
1036,Revenue,CCHD,Home Care - Elderly - North,Other Small Contracts,Lloyds TSB Commercial Finance Limited,7110.60, 01-May-2015
1037,Revenue,CCHD,Home Care - Elderly - North,Day Care / Social Activities,Lloyds TSB Commercial Finance Limited,218.40, 01-May-2015
1038,Revenue,CCHD,Home Care - Elderly - North,Other Small Contracts,Lloyds TSB Commercial Finance Limited,6984.60, 01-May-2015
1039,Revenue,CCHD,Home Care - Elderly - North,Day Care / Social Activities,Lloyds TSB Commercial Finance Limited,151.20, 15-May-2015
1040,Revenue,CCHD,Home Care - Elderly - North,Other Small Contracts,Lloyds TSB Commercial Finance Limited,6921.60, 15-May-2015
1041,Revenue,CCHD,Home Care - Elderly - North,Day Care / Social Activities,Lloyds TSB Commercial Finance Limited,214.20, 22-May-2015
1042,Revenue,CCHD,Home Care - Elderly - North,Other Small Contracts,Lloyds TSB Commercial Finance Limited,6228.60, 22-May-2015
1043,Revenue,CCHD,Home Care - Elderly - North,Day Care / Social Activities,Lloyds TSB Commercial Finance Limited,218.40, 22-May-2015
1044,Revenue,CCHD,Home Care - Elderly - North,Other Small Contracts,Lloyds TSB Commercial Finance Limited,6249.60, 22-May-2015
1045,Revenue,CCHD,Supported Living - South,Private & Voluntary Home Care,Lloyds TSB Commercial Finance Limited,11562.32, 20-May-2015
1046,Revenue,CCHD,Supported Living - South,Private & Voluntary Home Care,Lloyds TSB Commercial Finance Limited,4230.17, 20-May-2015
1047,Revenue,CCHD,Supported Living - South,Private & Voluntary Home Care,Lloyds TSB Commercial Finance Limited,4429.01, 20-May-2015
1048,Revenue,CCHD,Supported Living - South,Private & Voluntary Home Care,Lloyds TSB Commercial Finance Limited,3918.35, 20-May-2015
1049,Revenue,CCHD,Supported Living - South,Private & Voluntary Home Care,Lloyds TSB Commercial Finance Limited,9897.20, 20-May-2015
1050,Revenue,CCHD,Supported Living - South,Private & Voluntary Home Care,Lloyds TSB Commercial Finance Limited,4098.62, 20-May-2015
1051,Revenue,CCHD,Supported Living - South,Private & Voluntary Home Care,Lloyds TSB Commercial Finance Limited,8169.21, 20-May-2015
1052,Revenue,CCHD,Supported Living - South,Private & Voluntary Home Care,Lloyds TSB Commercial Finance Limited,4183.50, 20-May-2015
1053,Revenue,CCHD,Supported Living - North,Private & Voluntary Home Care,Lloyds TSB Commercial Finance Limited,9929.44, 20-May-2015
1054,Revenue,CCHD,Supported Living - South,Private & Voluntary Home Care,Lloyds TSB Commercial Finance Limited,3775.18, 20-May-2015
1055,Revenue,CCHD,Supported Living - South,Private & Voluntary Home Care,Lloyds TSB Commercial Finance Limited,3626.68, 20-May-2015
1056,Revenue,CCHD,Supported Living - South,Private & Voluntary Home Care,Lloyds TSB Commercial Finance Limited,6193.07, 20-May-2015
1057,Revenue,CCHD,Supported Living - South,Private & Voluntary Home Care,Lloyds TSB Commercial Finance Limited,3998.01, 20-May-2015
1058,Revenue,CCHD,Supported Living - South,Private & Voluntary Home Care,Lloyds TSB Commercial Finance Limited,3899.82, 20-May-2015
1059,Revenue,CCHD,Supported Living - North,Private & Voluntary Home Care,Lloyds TSB Commercial Finance Limited,8502.80, 20-May-2015
1060,Revenue,CCHD,Supported Living - South,Private & Voluntary Home Care,Lloyds TSB Commercial Finance Limited,3644.89, 20-May-2015
1061,Revenue,CCHD,Supported Living - South,Private & Voluntary Home Care,Loga Care Ltd (T/A Logacare),3795.33, 01-May-2015
1062,Revenue,CCHD,Supported Living - South,Private & Voluntary Home Care,Loga Care Ltd (T/A Logacare),3672.90, 29-May-2015
1063,Revenue,CCHD,Social Lettings Agency,Fees - General,Individual,10.00, 01-May-2015
1064,Revenue,CCHD,Social Lettings Agency,Other Supplies & Services,Individual,565.00, 01-May-2015
1065,Revenue,CCHD,Home Care - Elderly - North,Day Care / Social Activities,Lower Kilcott,1481.84, 12-May-2015
1066,Revenue,CCHD,Home Care - Elderly - North,Day Care / Social Activities,Lower Kilcott,710.16, 12-May-2015
1067,Revenue,CCHD,Home Care - Elderly - North,Day Care / Social Activities,Lower Kilcott,566.68, 12-May-2015
1068,Revenue,CCHD,TSG Practice Placements,Training Expenses,Individual,535.00, 28-May-2015
1069,Revenue,CCHD,NHS Health Checks & Tobacco Control,Drugs & Medical Supplies,M J Williams Ltd T/ A Abbotswood Pharmacy,1343.88, 19-May-2015
1070,Revenue,CCHD,Tenancy Start Up Scheme,Other Supplies & Services,Mackendrick Norcott Ltd Clients Account Lettings,1450.00, 15-May-2015
1071,Revenue,CCHD,Bed Purchasing - Southmead Hospital,Permanent Nursing,Majestic 3 Limited,1004.20, 12-May-2015
1072,Revenue,CCHD,Swift Dump Code,Permanent Residential,Manor Cottage,2748.90, 12-May-2015
1073,Revenue,CCHD,Bed Purchasing - South,Permanent Residential,Manor Cottage,1865.68, 12-May-2015
1074,Revenue,CCHD,Bed Purchasing - South,Permanent Residential,Manor Cottage,1399.26, 12-May-2015
1075,Revenue,CCHD,Bed Purchasing - Southmead Hospital,Permanent Residential,Manor Cottage,1270.80, 12-May-2015
1076,Revenue,CCHD,Bed Purchasing - Southmead Hospital,Permanent Residential,Manor Cottage,1037.08, 12-May-2015
1077,Revenue,CCHD,Bed Purchasing - South,Permanent Residential,Manor Cottage,1475.72, 12-May-2015
1078,Revenue,CCHD,Bed Purchasing - Southmead Hospital,Permanent Residential,Manor Cottage,14582.32, 12-May-2015
1079,Revenue,CCHD,Bed Purchasing - South,Permanent Residential,Manor Cottage,1516.40, 12-May-2015
1080,Revenue,CCHD,Bed Purchasing - South,Permanent Residential,Manor Cottage,2888.00, 12-May-2015
1081,Revenue,CCHD,Bed Purchasing - South,Permanent Residential,Manor Cottage,2857.14, 12-May-2015
1082,Revenue,CCHD,Bed Purchasing - North,Permanent Residential,Manton Hall Residential Home,1542.80, 12-May-2015
1083,Revenue,CCHD,Social Lettings Agency,Fees - General,Individual,12.22, 20-May-2015
1084,Revenue,CCHD,Social Lettings Agency,Other Supplies & Services,Individual,690.32, 20-May-2015
1085,Revenue,CCHD,Bed Purchasing - South,Permanent Residential,Marsden Healthcare Ltd,1273.04, 12-May-2015
1086,Revenue,CCHD,Bed Purchasing - South,Permanent Residential,Marsden Healthcare Ltd,3278.84, 12-May-2015
1087,Revenue,CCHD,Bed Purchasing - South,Permanent Residential,Marsden Healthcare Ltd,1538.08, 12-May-2015
1088,Revenue,CCHD,Bed Purchasing - South,Permanent Nursing,Meadow Care Home,1552.32, 12-May-2015
1089,Revenue,CCHD,Bed purchasing - Elderly S117 - South,Permanent Nursing,Meadow Care Home,2420.00, 12-May-2015
1090,Revenue,CCHD,Bed purchasing - Elderly S117 - South,Permanent Nursing,Meadow Care Home,864.28, 12-May-2015
1091,Revenue,CCHD,Bed Purchasing - Southmead Hospital,Permanent Nursing,Meadow Care Home,2483.16, 12-May-2015
1092,Revenue,CCHD,Bed Purchasing - Southmead Hospital,Permanent Nursing,Meadow Care Home,1862.37, 12-May-2015
1093,Revenue,CCHD,Bed Purchasing - Southmead Hospital,Permanent Nursing,Meadow Care Home,1493.96, 12-May-2015
1094,Revenue,CCHD,Home Care - Elderly - South,Day Care / Social Activities,Mears Care,93.60, 15-May-2015
1095,Revenue,CCHD,Home Care - Elderly - South,Other Small Contracts,Mears Care,678.60, 15-May-2015
1096,Revenue,CCHD,Home Care - Elderly - North,Other Small Contracts,Mears Care,3552.90, 15-May-2015
1097,Revenue,CCHD,Under 65s -MH  Home Care Purch,Other Small Contracts,Mears Care,117.00, 15-May-2015
1098,Revenue,CCHD,Home Care - Elderly - South,Day Care / Social Activities,Mears Care,89.70, 15-May-2015
1099,Revenue,CCHD,Home Care - Elderly - South,Other Small Contracts,Mears Care,768.30, 15-May-2015
1100,Revenue,CCHD,Home Care - Elderly - North,Other Small Contracts,Mears Care,3490.50, 15-May-2015
1101,Revenue,CCHD,Under 65s -MH  Home Care Purch,Other Small Contracts,Mears Care,117.00, 15-May-2015
1102,Revenue,CCHD,Home Care - Elderly - South,Day Care / Social Activities,Mears Care,46.80, 27-May-2015
1103,Revenue,CCHD,Home Care - Elderly - South,Other Small Contracts,Mears Care,819.00, 27-May-2015
1104,Revenue,CCHD,Home Care - Elderly - North,Other Small Contracts,Mears Care,3634.80, 27-May-2015
1105,Revenue,CCHD,Under 65s -MH  Home Care Purch,Other Small Contracts,Mears Care,117.00, 27-May-2015
1106,Revenue,CCHD,Home Care - Elderly - South,Day Care / Social Activities,Mears Care,89.70, 27-May-2015
1107,Revenue,CCHD,Home Care - Elderly - South,Other Small Contracts,Mears Care,507.00, 27-May-2015
1108,Revenue,CCHD,Home Care - Elderly - North,Other Small Contracts,Mears Care,3693.30, 27-May-2015
1109,Revenue,CCHD,Under 65s -MH  Home Care Purch,Other Small Contracts,Mears Care,117.00, 27-May-2015
1110,Revenue,CCHD,Home Care - Elderly - South,Private & Voluntary Home Care,Mears Care,49219.00, 28-May-2015
1111,Revenue,CCHD,Turnberries,Equipment Maintenance,Medaco,583.00, 29-May-2015
1112,Revenue,CCHD,Home Care - Elderly - South,Other Small Contracts,Medacs Home Care,378.78, 15-May-2015
1113,Revenue,CCHD,Home Care - Elderly - North,Other Small Contracts,Medacs Home Care,382.32, 15-May-2015
1114,Revenue,CCHD,Younger MH non-res purchasing,Other Small Contracts,Medacs Home Care,88.50, 15-May-2015
1115,Revenue,CCHD,Home Care - Elderly - South,Other Small Contracts,Medacs Home Care,371.70, 15-May-2015
1116,Revenue,CCHD,Home Care - Elderly - North,Other Small Contracts,Medacs Home Care,417.72, 15-May-2015
1117,Revenue,CCHD,Younger MH non-res purchasing,Other Small Contracts,Medacs Home Care,99.12, 15-May-2015
1118,Revenue,CCHD,Home Care - Elderly - South,Other Small Contracts,Medacs Home Care,357.54, 15-May-2015
1119,Revenue,CCHD,Home Care - Elderly - North,Other Small Contracts,Medacs Home Care,431.88, 15-May-2015
1120,Revenue,CCHD,Younger MH non-res purchasing,Other Small Contracts,Medacs Home Care,53.10, 15-May-2015
1121,Revenue,CCHD,Home Care - Elderly - South,Other Small Contracts,Medacs Home Care,361.08, 15-May-2015
1122,Revenue,CCHD,Home Care - Elderly - North,Other Small Contracts,Medacs Home Care,438.96, 15-May-2015
1123,Revenue,CCHD,NRS Contract,Daily Living Equipment,Medequip Assistive Technology Ltd,22078.73, 15-May-2015
1124,Revenue,CCHD,NRS Contract,Daily Living Equipment,Medequip Assistive Technology Ltd,72155.57, 15-May-2015
1125,Revenue,CCHD,Bed Purchasing - South,Permanent Residential,Mencap,2277.84, 12-May-2015
1126,Revenue,CCHD,Supported Living (S28a) South,Private & Voluntary Home Care,Mencap - PS Central & Cymru,3841.88, 28-May-2015
1127,Revenue,CCHD,Supporting People Programme,Grants to Voluntary Bodies,Merlin Housing Society,14786.49, 01-May-2015
1128,Revenue,CCHD,Supporting People Programme,Grants to Voluntary Bodies,Merlin Housing Society,2485.47, 01-May-2015
1129,Revenue,CCHD,Supporting People Programme,Grants to Voluntary Bodies,Merlin Housing Society,47076.50, 01-May-2015
1130,Revenue,CCHD,Supporting People Programme,Grants to Voluntary Bodies,Merlin Housing Society,1053.09, 01-May-2015
1131,Revenue,CCHD,Home Care - Elderly - South,Supported Living,Mike Durrant - Cherry Orchards,1380.00, 12-May-2015
1132,Revenue,CCHD,Home Care - Elderly - South,Supported Living,Mike Durrant - Cherry Orchards,4005.00, 12-May-2015
1133,Revenue,CCHD,Home Care - Elderly - South,Supported Living,Milestones - Unit 10,3592.96, 12-May-2015
1134,Revenue,CCHD,Home Care - Elderly - North,Supported Living,Milestones - Unit 10,4293.72, 12-May-2015
1135,Revenue,CCHD,Home Care - Elderly - South,Supported Living,Milestones - Unit 10,11420.48, 12-May-2015
1136,Revenue,CCHD,Home Care - Elderly - South,Supported Living,Milestones - Unit 10,3592.96, 12-May-2015
1137,Revenue,CCHD,Supported Living (S28a) North,Private & Voluntary Home Care,Milestones - Unit 10,4032.80, 12-May-2015
1138,Revenue,CCHD,Home Care - Elderly - South,Supported Living,Milestones - Unit 10,3604.68, 12-May-2015
1139,Revenue,CCHD,Home Care - Elderly - South,Supported Living,Milestones - Unit 10,2292.92, 12-May-2015
1140,Revenue,CCHD,Supported Living (S28a) North,Private & Voluntary Home Care,Milestones - Unit 10,4002.44, 12-May-2015
1141,Revenue,CCHD,Supported Living (S28a) North,Private & Voluntary Home Care,Milestones - Unit 10,4002.44, 12-May-2015
1142,Revenue,CCHD,Supported Living (S28a) North,Private & Voluntary Home Care,Milestones - Unit 10,4032.80, 12-May-2015
1143,Revenue,CCHD,Supported Living (S28a) South,Supported Living,Milestones - Unit 10,3839.88, 12-May-2015
1144,Revenue,CCHD,Supported Living (S28a) North,Private & Voluntary Home Care,Milestones - Unit 10,3564.60, 12-May-2015
1145,Revenue,CCHD,Supported Living (S28a) North,Private & Voluntary Home Care,Milestones - Unit 10,3564.60, 12-May-2015
1146,Revenue,CCHD,Home Care - Elderly - South,Supported Living,Milestones - Unit 10,2949.92, 12-May-2015
1147,Revenue,CCHD,Supported Living (S28a) South,Supported Living,Milestones - Unit 10,5447.00, 12-May-2015
1148,Revenue,CCHD,Home Care - Elderly - South,Supported Living,Milestones - Unit 10,2208.68, 12-May-2015
1149,Revenue,CCHD,Supported Living (S28a) South,Supported Living,Milestones - Unit 10,2208.68, 12-May-2015
1150,Revenue,CCHD,Supported Living (S28a) North,Private & Voluntary Home Care,Milestones - Unit 10,4303.72, 12-May-2015
1151,Revenue,CCHD,Supported Living (S28a) North,Private & Voluntary Home Care,Milestones - Unit 10,3576.60, 12-May-2015
1152,Revenue,CCHD,Supported Living (S28a) South,Supported Living,Milestones - Unit 10,2208.68, 12-May-2015
1153,Revenue,CCHD,Supported Living (S28a) South,Supported Living,Milestones - Unit 10,960.00, 12-May-2015
1154,Revenue,CCHD,Supported Living (S28a) South,Supported Living,Milestones - Unit 10,2208.68, 12-May-2015
1155,Revenue,CCHD,Supported Living (S28a) South,Supported Living,Milestones - Unit 10,2949.92, 12-May-2015
1156,Revenue,CCHD,Bed Purchasing - North,Permanent Residential,Milestones - Unit 10,2677.84, 12-May-2015
1157,Revenue,CCHD,Bed Purchasing - North,Permanent Residential,Milestones - Unit 10,3496.32, 12-May-2015
1158,Revenue,CCHD,Bed Purchasing - South,Permanent Residential,Milestones - Unit 10,4921.56, 12-May-2015
1159,Revenue,CCHD,Bed Purchasing - South,Permanent Residential,Milestones - Unit 10,5502.32, 12-May-2015
1160,Revenue,CCHD,Bed Purchasing - South,Permanent Nursing,Milestones - Unit 10,2763.44, 12-May-2015
1161,Revenue,CCHD,Bed Purchasing - South,Permanent Nursing,Milestones - Unit 10,1286.44, 12-May-2015
1162,Revenue,CCHD,Bed Purchasing - South,Permanent Residential,Milestones - Unit 10,3640.84, 12-May-2015
1163,Revenue,CCHD,Bed purchasing - Elderly S117 - South,Permanent Nursing,Milestones - Unit 10,2012.00, 12-May-2015
1164,Revenue,CCHD,Bed purchasing - Elderly S117 - South,Permanent Nursing,Milestones - Unit 10,2012.00, 12-May-2015
1165,Revenue,CCHD,Bed Purchasing - North,Permanent Nursing,Milestones - Unit 10,1440.08, 12-May-2015
1166,Revenue,CCHD,Bed Purchasing - North,Respite Emergency - Residential,Milestones - Unit 10,22824.96, 12-May-2015
1167,Revenue,CCHD,Bed Purchasing - North,Respite Emergency - Residential,Milestones - Unit 10,6891.66, 12-May-2015
1168,Revenue,CCHD,Bed Purchasing - South,Permanent Residential,Milestones - Unit 10,4165.64, 12-May-2015
1169,Revenue,CCHD,Bed purchasing -S28A  Under 65 - North,Permanent Residential,Milestones - Unit 10,5387.68, 12-May-2015
1170,Revenue,CCHD,Bed purchasing - S28A Under 65 - South,Permanent Residential,Milestones - Unit 10,5588.64, 12-May-2015
1171,Revenue,CCHD,Bed Purchasing - South,Permanent Residential,Milestones - Unit 10,1317.44, 12-May-2015
1172,Revenue,CCHD,Bed Purchasing - South,Permanent Residential,Milestones - Unit 10,5042.32, 12-May-2015
1173,Revenue,CCHD,Bed Purchasing - South,Permanent Residential,Milestones - Unit 10,5595.76, 12-May-2015
1174,Revenue,CCHD,Bed purchasing - S28A Under 65 - South,Permanent Nursing,Milestones - Unit 10,7369.04, 12-May-2015
1175,Revenue,CCHD,MH Purchasing - Younger,Permanent Residential,Milestones - Unit 10,866.80, 12-May-2015
1176,Revenue,CCHD,Bed Purchasing - South,Permanent Residential,Milestones - Unit 10,5175.80, 12-May-2015
1177,Revenue,CCHD,Bed Purchasing - North,Permanent Residential,Milestones - Unit 10,4062.96, 12-May-2015
1178,Revenue,CCHD,Bed purchasing -S28A  Under 65 - North,Permanent Residential,Milestones - Unit 10,5316.80, 12-May-2015
1179,Revenue,CCHD,Bed Purchasing - North,Permanent Residential,Milestones - Unit 10,4685.96, 12-May-2015
1180,Revenue,CCHD,Bed purchasing -S28A  Under 65 - North,Permanent Residential,Milestones - Unit 10,7136.00, 12-May-2015
1181,Revenue,CCHD,Bed purchasing -S28A  Under 65 - North,Permanent Nursing,Milestones - Unit 10,5865.04, 12-May-2015
1182,Revenue,CCHD,Bed Purchasing - South,Permanent Residential,Milestones - Unit 10,4560.24, 12-May-2015
1183,Revenue,CCHD,Bed Purchasing - South,Permanent Residential,Milestones - Unit 10,3245.72, 12-May-2015
1184,Revenue,CCHD,Bed purchasing -S28A  Under 65 - North,Permanent Residential,Milestones - Unit 10,6829.12, 12-May-2015
1185,Revenue,CCHD,Bed purchasing - S28A Under 65 - South,Permanent Residential,Milestones - Unit 10,4575.80, 12-May-2015
1186,Revenue,CCHD,Bed Purchasing - S28A - Over 65- North,Permanent Residential,Milestones - Unit 10,6671.80, 12-May-2015
1187,Revenue,CCHD,Bed purchasing -S28A  Under 65 - North,Permanent Residential,Milestones - Unit 10,7193.60, 12-May-2015
1188,Revenue,CCHD,Bed purchasing -S28A  Under 65 - North,Permanent Residential,Milestones - Unit 10,7136.20, 12-May-2015
1189,Revenue,CCHD,Bed Purchasing - LD S28A- Over 65- South,Permanent Residential,Milestones - Unit 10,4131.49, 12-May-2015
1190,Revenue,CCHD,Bed purchasing - S28A Under 65 - South,Permanent Residential,Milestones - Unit 10,4527.72, 12-May-2015
1191,Revenue,CCHD,Bed purchasing - S28A Under 65 - South,Permanent Residential,Milestones - Unit 10,1547.30, 12-May-2015
1192,Revenue,CCHD,Bed purchasing - S28A Under 65 - South,Permanent Residential,Milestones - Unit 10,6460.03, 12-May-2015
1193,Revenue,CCHD,Bed purchasing - S28A Under 65 - South,Permanent Residential,Milestones - Unit 10,3704.60, 12-May-2015
1194,Revenue,CCHD,Bed Purchasing - LD S28A- Over 65- South,Permanent Residential,Milestones - Unit 10,5142.04, 12-May-2015
1195,Revenue,CCHD,Bed Purchasing - LD S28A- Over 65- South,Permanent Residential,Milestones - Unit 10,4968.40, 12-May-2015
1196,Revenue,CCHD,Bed Purchasing - LD S28A- Over 65- South,Permanent Residential,Milestones - Unit 10,5126.08, 12-May-2015
1197,Revenue,CCHD,Bed Purchasing - LD S28A- Over 65- South,Permanent Residential,Milestones - Unit 10,4396.24, 12-May-2015
1198,Revenue,CCHD,Bed Purchasing - LD S28A- Over 65- South,Permanent Residential,Milestones - Unit 10,5222.00, 12-May-2015
1199,Revenue,CCHD,Bed Purchasing - S28A - Over 65- North,Permanent Residential,Milestones - Unit 10,2902.08, 12-May-2015
1200,Revenue,CCHD,Section 117 Placements MH Younger,Permanent Residential,Milestones - Unit 10,1421.00, 12-May-2015
1201,Revenue,CCHD,Bed Purchasing - South,Permanent Residential,Milestones - Unit 10,866.80, 12-May-2015
1202,Revenue,CCHD,Bed purchasing - S28A Under 65 - South,Permanent Residential,Milestones - Unit 10,5172.24, 12-May-2015
1203,Revenue,CCHD,Bed Purchasing - North,Permanent Residential,Milestones - Unit 10,4349.92, 12-May-2015
1204,Revenue,CCHD,Bed Purchasing - North,Permanent Nursing,Milestones - Unit 10,6971.80, 12-May-2015
1205,Revenue,CCHD,Bed Purchasing - North,Permanent Nursing,Milestones - Unit 10,1108.84, 12-May-2015
1206,Revenue,CCHD,Bed Purchasing - South,Permanent Residential,Milestones - Unit 10,4318.72, 12-May-2015
1207,Revenue,CCHD,Bed purchasing -S28A  Under 65 - North,Permanent Residential,Milestones - Unit 10,5737.92, 12-May-2015
1208,Revenue,CCHD,Bed Purchasing - S28A - Over 65- North,Permanent Residential,Milestones - Unit 10,3633.92, 12-May-2015
1209,Revenue,CCHD,Bed Purchasing - Elderly S117- North,Permanent Residential,Milestones - Unit 10,1776.00, 12-May-2015
1210,Revenue,CCHD,MH Purchasing - Younger,Permanent Residential,Milestones - Unit 10,1050.20, 12-May-2015
1211,Revenue,CCHD,Bed Purchasing - S28A - Over 65- North,Permanent Residential,Milestones - Unit 10,3245.24, 12-May-2015
1212,Revenue,CCHD,Bed Purchasing - LD S28A- Over 65- South,Permanent Residential,Milestones - Unit 10,3919.96, 12-May-2015
1213,Revenue,CCHD,Bed purchasing - S28A Under 65 - South,Permanent Residential,Milestones - Unit 10,5228.28, 12-May-2015
1214,Revenue,CCHD,Bed purchasing - S28A Under 65 - South,Permanent Nursing,Milestones - Unit 10,5239.84, 12-May-2015
1215,Revenue,CCHD,Bed Purchasing - LD S28A- Over 65- South,Permanent Nursing,Milestones - Unit 10,5277.92, 12-May-2015
1216,Revenue,CCHD,Bed Purchasing - LD S28A- Over 65- South,Permanent Residential,Milestones - Unit 10,4800.72, 12-May-2015
1217,Revenue,CCHD,Bed Purchasing - LD S28A- Over 65- South,Permanent Residential,Milestones - Unit 10,4645.48, 12-May-2015
1218,Revenue,CCHD,Bed purchasing - S28A Under 65 - South,Permanent Residential,Milestones - Unit 10,6118.76, 12-May-2015
1219,Revenue,CCHD,Bed Purchasing - LD S28A- Over 65- South,Permanent Residential,Milestones - Unit 10,4713.52, 12-May-2015
1220,Revenue,CCHD,Bed Purchasing - S28A - Over 65- North,Permanent Residential,Milestones - Unit 10,4797.64, 12-May-2015
1221,Revenue,CCHD,Bed Purchasing - South,Permanent Nursing,Milestones - Unit 10,3319.80, 12-May-2015
1222,Revenue,CCHD,Bed Purchasing - S28A - Over 65- North,Permanent Residential,Milestones - Unit 10,4634.04, 12-May-2015
1223,Revenue,CCHD,Bed Purchasing - S28A - Over 65- North,Permanent Residential,Milestones - Unit 10,4806.64, 12-May-2015
1224,Revenue,CCHD,Bed purchasing - S28A Under 65 - South,Permanent Residential,Milestones - Unit 10,4808.68, 12-May-2015
1225,Revenue,CCHD,Bed Purchasing - S28A - Over 65- North,Permanent Residential,Milestones - Unit 10,4547.76, 12-May-2015
1226,Revenue,CCHD,Bed purchasing -S28A  Under 65 - North,Permanent Residential,Milestones - Unit 10,7136.20, 12-May-2015
1227,Revenue,CCHD,Bed purchasing -S28A  Under 65 - North,Permanent Residential,Milestones - Unit 10,3340.76, 12-May-2015
1228,Revenue,CCHD,Bed Purchasing - S28A - Over 65- North,Permanent Residential,Milestones - Unit 10,3464.24, 12-May-2015
1229,Revenue,CCHD,Bed Purchasing - LD S28A- Over 65- South,Permanent Residential,Milestones - Unit 10,3115.32, 12-May-2015
1230,Revenue,CCHD,Bed Purchasing - North,Permanent Residential,Milestones - Unit 10,6847.36, 12-May-2015
1231,Revenue,CCHD,Bed Purchasing - South,Permanent Residential,Milestones - Unit 10,1328.88, 12-May-2015
1232,Revenue,CCHD,MH Purchasing - Younger,Permanent Nursing,Milestones - Unit 10,950.96, 12-May-2015
1233,Revenue,CCHD,MH Purchasing - Younger,Permanent Nursing,Milestones - Unit 10,958.80, 12-May-2015
1234,Revenue,CCHD,Bed Purchasing - South,Permanent Residential,Milestones - Unit 10,3285.36, 12-May-2015
1235,Revenue,CCHD,Bed purchasing - S28A Under 65 - South,Permanent Residential,Milestones - Unit 10,5984.08, 12-May-2015
1236,Revenue,CCHD,Bed purchasing - S28A Under 65 - South,Permanent Residential,Milestones - Unit 10,6071.04, 12-May-2015
1237,Revenue,CCHD,Bed Purchasing - LD S28A- Over 65- South,Permanent Residential,Milestones - Unit 10,4396.24, 12-May-2015
1238,Revenue,CCHD,Bed Purchasing - South,Permanent Residential,Milestones - Unit 10,5984.52, 12-May-2015
1239,Revenue,CCHD,Bed Purchasing - LD S28A- Over 65- South,Permanent Nursing,Milestones - Unit 10,4573.36, 12-May-2015
1240,Revenue,CCHD,Bed Purchasing - LD S28A- Over 65- South,Permanent Nursing,Milestones - Unit 10,5277.92, 12-May-2015
1241,Revenue,CCHD,Bed Purchasing - LD S28A- Over 65- South,Permanent Residential,Milestones - Unit 10,3575.16, 12-May-2015
1242,Revenue,CCHD,Bed Purchasing - LD S28A- Over 65- South,Permanent Residential,Milestones - Unit 10,4386.24, 12-May-2015
1243,Revenue,CCHD,Bed Purchasing - South,Permanent Residential,Milestones - Unit 10,1239.36, 12-May-2015
1244,Revenue,CCHD,Bed purchasing -S28A  Under 65 - North,Permanent Nursing,Milestones - Unit 10,7759.88, 12-May-2015
1245,Revenue,CCHD,Bed Purchasing - Southmead Hospital,Permanent Nursing,Milestones - Unit 10,1368.08, 12-May-2015
1246,Revenue,CCHD,Bed Purchasing - South,Permanent Residential,Milestones - Unit 10,5314.72, 12-May-2015
1247,Revenue,CCHD,Bed Purchasing - Elderly S117- North,Permanent Nursing,Milestones - Unit 10,2012.00, 12-May-2015
1248,Revenue,CCHD,Bed Purchasing - North,Permanent Nursing,Milestones - Unit 10,1460.24, 12-May-2015
1249,Revenue,CCHD,Bed Purchasing - North,Permanent Nursing,Milestones - Unit 10,834.36, 12-May-2015
1250,Revenue,CCHD,Section 117 Placements MH Younger,Permanent Residential,Milestones - Unit 10,1372.00, 12-May-2015
1251,Revenue,CCHD,Bed Purchasing - South,Permanent Nursing,Milestones - Unit 10,3399.64, 12-May-2015
1252,Revenue,CCHD,Bed Purchasing - South,Permanent Residential,Milestones - Unit 10,3427.12, 12-May-2015
1253,Revenue,CCHD,Bed Purchasing - LD S28A- Over 65- South,Permanent Nursing,Milestones - Unit 10,3017.84, 12-May-2015
1254,Revenue,CCHD,Bed Purchasing - LD S28A- Over 65- South,Permanent Nursing,Milestones - Unit 10,2793.28, 12-May-2015
1255,Revenue,CCHD,Bed Purchasing - S28A - Over 65- North,Permanent Nursing,Milestones - Unit 10,3670.84, 12-May-2015
1256,Revenue,CCHD,Bed Purchasing - S28A - Over 65- North,Permanent Nursing,Milestones - Unit 10,3666.84, 12-May-2015
1257,Revenue,CCHD,MH Purchasing - Younger,Respite Planned - Residential,Milestones - Unit 10,3774.80, 12-May-2015
1258,Revenue,CCHD,Home Care - Elderly - South,Day Care / Social Activities,Milestones Homecare & Dementia Service,31.04, 15-May-2015
1259,Revenue,CCHD,Home Care - Elderly - South,Other Small Contracts,Milestones Homecare & Dementia Service,1350.24, 15-May-2015
1260,Revenue,CCHD,Home Care - Elderly - North,Other Small Contracts,Milestones Homecare & Dementia Service,1443.36, 15-May-2015
1261,Revenue,CCHD,Home care - Elderly MH - North,Other Small Contracts,Milestones Homecare & Dementia Service,54.32, 15-May-2015
1262,Revenue,CCHD,Home Care - Elderly - South,Day Care / Social Activities,Milestones Homecare & Dementia Service,31.04, 15-May-2015
1263,Revenue,CCHD,Home Care - Elderly - South,Other Small Contracts,Milestones Homecare & Dementia Service,1544.24, 15-May-2015
1264,Revenue,CCHD,Home Care - Elderly - North,Other Small Contracts,Milestones Homecare & Dementia Service,1517.08, 15-May-2015
1265,Revenue,CCHD,Home care - Elderly MH - North,Other Small Contracts,Milestones Homecare & Dementia Service,38.80, 15-May-2015
1266,Revenue,CCHD,Home Care - Elderly - South,Day Care / Social Activities,Milestones Homecare & Dementia Service,31.04, 15-May-2015
1267,Revenue,CCHD,Home Care - Elderly - South,Other Small Contracts,Milestones Homecare & Dementia Service,1276.52, 15-May-2015
1268,Revenue,CCHD,Home Care - Elderly - North,Day Care / Social Activities,Milestones Homecare & Dementia Service,31.04, 15-May-2015
1269,Revenue,CCHD,Home Care - Elderly - North,Other Small Contracts,Milestones Homecare & Dementia Service,1466.64, 15-May-2015
1270,Revenue,CCHD,Home care - Elderly MH - North,Other Small Contracts,Milestones Homecare & Dementia Service,54.32, 15-May-2015
1271,Revenue,CCHD,Home Care - Elderly - South,Day Care / Social Activities,Milestones Homecare & Dementia Service,31.04, 15-May-2015
1272,Revenue,CCHD,Home Care - Elderly - South,Other Small Contracts,Milestones Homecare & Dementia Service,1555.88, 15-May-2015
1273,Revenue,CCHD,Home Care - Elderly - North,Day Care / Social Activities,Milestones Homecare & Dementia Service,31.04, 15-May-2015
1274,Revenue,CCHD,Home Care - Elderly - North,Other Small Contracts,Milestones Homecare & Dementia Service,1501.56, 15-May-2015
1275,Revenue,CCHD,Home care - Elderly MH - North,Other Small Contracts,Milestones Homecare & Dementia Service,54.32, 15-May-2015
1276,Revenue,CCHD,Home Care - Elderly - South,Day Care / Social Activities,Milestones Homecare & Dementia Service,31.04, 28-May-2015
1277,Revenue,CCHD,Home Care - Elderly - South,Other Small Contracts,Milestones Homecare & Dementia Service,1602.44, 28-May-2015
1278,Revenue,CCHD,Home Care - Elderly - North,Day Care / Social Activities,Milestones Homecare & Dementia Service,31.04, 28-May-2015
1279,Revenue,CCHD,Home Care - Elderly - North,Other Small Contracts,Milestones Homecare & Dementia Service,1563.64, 28-May-2015
1280,Revenue,CCHD,Home care - Elderly MH - North,Other Small Contracts,Milestones Homecare & Dementia Service,38.80, 28-May-2015
1281,Revenue,CCHD,Home Care - Elderly - South,Day Care / Social Activities,Milestones Homecare & Dementia Service,31.04, 22-May-2015
1282,Revenue,CCHD,Home Care - Elderly - South,Other Small Contracts,Milestones Homecare & Dementia Service,1544.24, 22-May-2015
1283,Revenue,CCHD,Home Care - Elderly - North,Other Small Contracts,Milestones Homecare & Dementia Service,1586.92, 22-May-2015
1284,Revenue,CCHD,Home care - Elderly MH - North,Other Small Contracts,Milestones Homecare & Dementia Service,50.44, 22-May-2015
1285,Revenue,CCHD,Home Care - Elderly - South,Other Small Contracts,Milestones Homecare & Dementia Service,1528.72, 22-May-2015
1286,Revenue,CCHD,Home Care - Elderly - North,Other Small Contracts,Milestones Homecare & Dementia Service,1804.20, 22-May-2015
1287,Revenue,CCHD,Home care - Elderly MH - North,Other Small Contracts,Milestones Homecare & Dementia Service,58.20, 22-May-2015
1288,Revenue,CCHD,Home Care - Elderly - South,Day Care / Social Activities,Milestones Homecare & Dementia Service,31.44, 28-May-2015
1289,Revenue,CCHD,Home Care - Elderly - South,Other Small Contracts,Milestones Homecare & Dementia Service,1854.96, 28-May-2015
1290,Revenue,CCHD,Home Care - Elderly - North,Other Small Contracts,Milestones Homecare & Dementia Service,1818.57, 28-May-2015
1291,Revenue,CCHD,Home care - Elderly MH - North,Other Small Contracts,Milestones Homecare & Dementia Service,47.16, 28-May-2015
1292,Revenue,CCHD,Home Care - Elderly - South,Day Care / Social Activities,Milestones Homecare & Dementia Service,31.44, 27-May-2015
1293,Revenue,CCHD,Home Care - Elderly - South,Other Small Contracts,Milestones Homecare & Dementia Service,1627.02, 27-May-2015
1294,Revenue,CCHD,Home Care - Elderly - North,Other Small Contracts,Milestones Homecare & Dementia Service,1783.15, 27-May-2015
1295,Revenue,CCHD,Home care - Elderly MH - North,Other Small Contracts,Milestones Homecare & Dementia Service,51.09, 27-May-2015
1296,Revenue,CCHD,Home Care - Elderly - South,Day Care / Social Activities,Milestones Supported Living Services,6587.11, 08-May-2015
1297,Revenue,CCHD,Home Care - Elderly - South,Other Small Contracts,Milestones Supported Living Services,4086.19, 08-May-2015
1298,Revenue,CCHD,Home Care - Elderly - South,Supported Living,Milestones Supported Living Services,773.93, 08-May-2015
1299,Revenue,CCHD,Home Care - Elderly - North,Day Care / Social Activities,Milestones Supported Living Services,3448.60, 08-May-2015
1300,Revenue,CCHD,Home Care - Elderly - North,Other Small Contracts,Milestones Supported Living Services,966.41, 08-May-2015
1301,Revenue,CCHD,Day Care - South,Day Care / Social Activities,Milestones Supported Living Services,109.44, 08-May-2015
1302,Revenue,CCHD,Day Care - North,Day Care / Social Activities,Milestones Supported Living Services,161.89, 08-May-2015
1303,Revenue,CCHD,Younger MH non-res purchasing,Day Care / Social Activities,Milestones Supported Living Services,28.07, 08-May-2015
1304,Revenue,CCHD,Home care - Elderly MH - North,Other Small Contracts,Milestones Supported Living Services,64.16, 08-May-2015
1305,Revenue,CCHD,Home Care - Elderly - South,Day Care / Social Activities,Milestones Supported Living Services,8972.02, 29-May-2015
1306,Revenue,CCHD,Home Care - Elderly - South,Other Small Contracts,Milestones Supported Living Services,2401.99, 29-May-2015
1307,Revenue,CCHD,Home Care - Elderly - South,Supported Living,Milestones Supported Living Services,112.28, 29-May-2015
1308,Revenue,CCHD,Home Care - Elderly - North,Day Care / Social Activities,Milestones Supported Living Services,2831.06, 29-May-2015
1309,Revenue,CCHD,Home Care - Elderly - North,Other Small Contracts,Milestones Supported Living Services,898.24, 29-May-2015
1310,Revenue,CCHD,Day Care - South,Day Care / Social Activities,Milestones Supported Living Services,72.96, 29-May-2015
1311,Revenue,CCHD,Day Care - North,Day Care / Social Activities,Milestones Supported Living Services,191.84, 29-May-2015
1312,Revenue,CCHD,Younger MH non-res purchasing,Day Care / Social Activities,Milestones Supported Living Services,16.04, 29-May-2015
1313,Revenue,CCHD,Home care - Elderly MH - North,Other Small Contracts,Milestones Supported Living Services,64.16, 29-May-2015
1314,Revenue,CCHD,Home Care - Elderly - South,Day Care / Social Activities,Milestones Supported Living Services,7134.68, 20-May-2015
1315,Revenue,CCHD,Home Care - Elderly - South,Other Small Contracts,Milestones Supported Living Services,1688.21, 20-May-2015
1316,Revenue,CCHD,Home Care - Elderly - South,Supported Living,Milestones Supported Living Services,204.51, 20-May-2015
1317,Revenue,CCHD,Home Care - Elderly - North,Day Care / Social Activities,Milestones Supported Living Services,3300.23, 20-May-2015
1318,Revenue,CCHD,Home Care - Elderly - North,Other Small Contracts,Milestones Supported Living Services,898.24, 20-May-2015
1319,Revenue,CCHD,Day Care - South,Day Care / Social Activities,Milestones Supported Living Services,109.44, 20-May-2015
1320,Revenue,CCHD,Day Care - North,Day Care / Social Activities,Milestones Supported Living Services,157.72, 20-May-2015
1321,Revenue,CCHD,Home care - Elderly MH - North,Other Small Contracts,Milestones Supported Living Services,64.16, 20-May-2015
1322,Revenue,CCHD,Home Care - Elderly - South,Day Care / Social Activities,Milestones Supported Living Services,9182.89, 29-May-2015
1323,Revenue,CCHD,Home Care - Elderly - South,Other Small Contracts,Milestones Supported Living Services,2233.57, 29-May-2015
1324,Revenue,CCHD,Home Care - Elderly - South,Supported Living,Milestones Supported Living Services,187.18, 29-May-2015
1325,Revenue,CCHD,Home Care - Elderly - North,Day Care / Social Activities,Milestones Supported Living Services,3011.51, 29-May-2015
1326,Revenue,CCHD,Home Care - Elderly - North,Other Small Contracts,Milestones Supported Living Services,898.24, 29-May-2015
1327,Revenue,CCHD,Day Care - South,Day Care / Social Activities,Milestones Supported Living Services,114.00, 29-May-2015
1328,Revenue,CCHD,Day Care - North,Day Care / Social Activities,Milestones Supported Living Services,194.36, 29-May-2015
1329,Revenue,CCHD,Younger MH non-res purchasing,Day Care / Social Activities,Milestones Supported Living Services,24.06, 29-May-2015
1330,Revenue,CCHD,Home care - Elderly MH - North,Other Small Contracts,Milestones Supported Living Services,32.08, 29-May-2015
1331,Revenue,CCHD,Home Care - Elderly - South,Day Care / Social Activities,Milestones Supported Living Services,7095.45, 08-May-2015
1332,Revenue,CCHD,Home Care - Elderly - South,Other Small Contracts,Milestones Supported Living Services,824.52, 08-May-2015
1333,Revenue,CCHD,Home Care - Elderly - South,Supported Living,Milestones Supported Living Services,3645.09, 08-May-2015
1334,Revenue,CCHD,Home Care - Elderly - North,Day Care / Social Activities,Milestones Supported Living Services,2966.05, 08-May-2015
1335,Revenue,CCHD,Home Care - Elderly - North,Other Small Contracts,Milestones Supported Living Services,946.36, 08-May-2015
1336,Revenue,CCHD,Home Care - Elderly - North,Supported Living,Milestones Supported Living Services,320.80, 08-May-2015
1337,Revenue,CCHD,Day Care - South,Day Care / Social Activities,Milestones Supported Living Services,100.32, 08-May-2015
1338,Revenue,CCHD,Day Care - North,Day Care / Social Activities,Milestones Supported Living Services,198.92, 08-May-2015
1339,Revenue,CCHD,Younger MH non-res purchasing,Day Care / Social Activities,Milestones Supported Living Services,24.06, 08-May-2015
1340,Revenue,CCHD,Home care - Elderly MH - North,Other Small Contracts,Milestones Supported Living Services,64.16, 08-May-2015
1341,Revenue,CCHD,Home Care - Elderly - South,Day Care / Social Activities,Milestones Supported Living Services,8712.20, 20-May-2015
1342,Revenue,CCHD,Home Care - Elderly - South,Other Small Contracts,Milestones Supported Living Services,425.06, 20-May-2015
1343,Revenue,CCHD,Home Care - Elderly - South,Supported Living,Milestones Supported Living Services,2911.26, 20-May-2015
1344,Revenue,CCHD,Home Care - Elderly - North,Day Care / Social Activities,Milestones Supported Living Services,3199.98, 20-May-2015
1345,Revenue,CCHD,Home Care - Elderly - North,Other Small Contracts,Milestones Supported Living Services,902.25, 20-May-2015
1346,Revenue,CCHD,Home Care - Elderly - North,Supported Living,Milestones Supported Living Services,268.67, 20-May-2015
1347,Revenue,CCHD,Day Care - South,Day Care / Social Activities,Milestones Supported Living Services,109.44, 20-May-2015
1348,Revenue,CCHD,Day Care - North,Day Care / Social Activities,Milestones Supported Living Services,207.49, 20-May-2015
1349,Revenue,CCHD,Younger MH non-res purchasing,Day Care / Social Activities,Milestones Supported Living Services,24.06, 20-May-2015
1350,Revenue,CCHD,Home care - Elderly MH - North,Other Small Contracts,Milestones Supported Living Services,64.16, 20-May-2015
1351,Revenue,CCHD,Home Care - Elderly - South,Day Care / Social Activities,Milestones Supported Living Services,8407.86, 29-May-2015
1352,Revenue,CCHD,Home Care - Elderly - South,Other Small Contracts,Milestones Supported Living Services,344.86, 29-May-2015
1353,Revenue,CCHD,Home Care - Elderly - South,Supported Living,Milestones Supported Living Services,2935.32, 29-May-2015
1354,Revenue,CCHD,Home Care - Elderly - North,Day Care / Social Activities,Milestones Supported Living Services,3260.13, 29-May-2015
1355,Revenue,CCHD,Home Care - Elderly - North,Other Small Contracts,Milestones Supported Living Services,777.94, 29-May-2015
1356,Revenue,CCHD,Home Care - Elderly - North,Supported Living,Milestones Supported Living Services,192.48, 29-May-2015
1357,Revenue,CCHD,Day Care - South,Day Care / Social Activities,Milestones Supported Living Services,109.44, 29-May-2015
1358,Revenue,CCHD,Day Care - North,Day Care / Social Activities,Milestones Supported Living Services,203.48, 29-May-2015
1359,Revenue,CCHD,Home care - Elderly MH - North,Other Small Contracts,Milestones Supported Living Services,32.08, 29-May-2015
1360,Revenue,CCHD,Home Care - Elderly - South,Day Care / Social Activities,Milestones Supported Living Services,8154.81, 08-May-2015
1361,Revenue,CCHD,Home Care - Elderly - South,Other Small Contracts,Milestones Supported Living Services,384.96, 08-May-2015
1362,Revenue,CCHD,Home Care - Elderly - South,Supported Living,Milestones Supported Living Services,2819.03, 08-May-2015
1363,Revenue,CCHD,Home Care - Elderly - North,Day Care / Social Activities,Milestones Supported Living Services,3119.78, 08-May-2015
1364,Revenue,CCHD,Home Care - Elderly - North,Other Small Contracts,Milestones Supported Living Services,914.28, 08-May-2015
1365,Revenue,CCHD,Home Care - Elderly - North,Supported Living,Milestones Supported Living Services,200.50, 08-May-2015
1366,Revenue,CCHD,Day Care - South,Day Care / Social Activities,Milestones Supported Living Services,109.44, 08-May-2015
1367,Revenue,CCHD,Day Care - North,Day Care / Social Activities,Milestones Supported Living Services,258.20, 08-May-2015
1368,Revenue,CCHD,Younger MH non-res purchasing,Day Care / Social Activities,Milestones Supported Living Services,24.06, 08-May-2015
1369,Revenue,CCHD,Home care - Elderly MH - North,Other Small Contracts,Milestones Supported Living Services,96.24, 08-May-2015
1370,Revenue,CCHD,Home Care - Elderly - South,Day Care / Social Activities,Milestones Supported Living Services,8519.51, 29-May-2015
1371,Revenue,CCHD,Home Care - Elderly - South,Other Small Contracts,Milestones Supported Living Services,568.92, 29-May-2015
1372,Revenue,CCHD,Home Care - Elderly - South,Supported Living,Milestones Supported Living Services,2105.25, 29-May-2015
1373,Revenue,CCHD,Home Care - Elderly - North,Day Care / Social Activities,Milestones Supported Living Services,3035.57, 29-May-2015
1374,Revenue,CCHD,Home Care - Elderly - North,Other Small Contracts,Milestones Supported Living Services,456.64, 29-May-2015
1375,Revenue,CCHD,Home Care - Elderly - North,Supported Living,Milestones Supported Living Services,240.60, 29-May-2015
1376,Revenue,CCHD,Day Care - South,Day Care / Social Activities,Milestones Supported Living Services,121.47, 29-May-2015
1377,Revenue,CCHD,Day Care - North,Day Care / Social Activities,Milestones Supported Living Services,203.48, 29-May-2015
1378,Revenue,CCHD,Younger MH non-res purchasing,Day Care / Social Activities,Milestones Supported Living Services,32.08, 29-May-2015
1379,Revenue,CCHD,Home care - Elderly MH - North,Other Small Contracts,Milestones Supported Living Services,96.24, 29-May-2015
1380,Revenue,CCHD,Home Care - Elderly - South,Day Care / Social Activities,Milestones Supported Living Services,8253.68, 20-May-2015
1381,Revenue,CCHD,Home Care - Elderly - South,Other Small Contracts,Milestones Supported Living Services,612.83, 20-May-2015
1382,Revenue,CCHD,Home Care - Elderly - South,Supported Living,Milestones Supported Living Services,1868.66, 20-May-2015
1383,Revenue,CCHD,Home Care - Elderly - North,Day Care / Social Activities,Milestones Supported Living Services,3264.14, 20-May-2015
1384,Revenue,CCHD,Home Care - Elderly - North,Other Small Contracts,Milestones Supported Living Services,285.00, 20-May-2015
1385,Revenue,CCHD,Home Care - Elderly - North,Supported Living,Milestones Supported Living Services,200.50, 20-May-2015
1386,Revenue,CCHD,Day Care - South,Day Care / Social Activities,Milestones Supported Living Services,117.46, 20-May-2015
1387,Revenue,CCHD,Day Care - North,Day Care / Social Activities,Milestones Supported Living Services,198.92, 20-May-2015
1388,Revenue,CCHD,Younger MH non-res purchasing,Day Care / Social Activities,Milestones Supported Living Services,24.06, 20-May-2015
1389,Revenue,CCHD,Home care - Elderly MH - North,Other Small Contracts,Milestones Supported Living Services,92.22, 20-May-2015
1390,Revenue,CCHD,Home Care - Elderly - South,Day Care / Social Activities,Milestones Supported Living Services,7684.60, 22-May-2015
1391,Revenue,CCHD,Home Care - Elderly - South,Other Small Contracts,Milestones Supported Living Services,612.83, 22-May-2015
1392,Revenue,CCHD,Home Care - Elderly - South,Supported Living,Milestones Supported Living Services,1868.66, 22-May-2015
1393,Revenue,CCHD,Home Care - Elderly - North,Day Care / Social Activities,Milestones Supported Living Services,3159.88, 22-May-2015
1394,Revenue,CCHD,Home Care - Elderly - North,Other Small Contracts,Milestones Supported Living Services,285.00, 22-May-2015
1395,Revenue,CCHD,Home Care - Elderly - North,Supported Living,Milestones Supported Living Services,240.60, 22-May-2015
1396,Revenue,CCHD,Day Care - South,Day Care / Social Activities,Milestones Supported Living Services,109.44, 22-May-2015
1397,Revenue,CCHD,Day Care - North,Day Care / Social Activities,Milestones Supported Living Services,126.35, 22-May-2015
1398,Revenue,CCHD,Younger MH non-res purchasing,Day Care / Social Activities,Milestones Supported Living Services,28.07, 22-May-2015
1399,Revenue,CCHD,Home care - Elderly MH - North,Other Small Contracts,Milestones Supported Living Services,92.23, 22-May-2015
1400,Revenue,CCHD,Home Care - Elderly - South,Day Care / Social Activities,Milestones Supported Living Services,8741.86, 26-May-2015
1401,Revenue,CCHD,Home Care - Elderly - South,Other Small Contracts,Milestones Supported Living Services,580.75, 26-May-2015
1402,Revenue,CCHD,Home Care - Elderly - South,Supported Living,Milestones Supported Living Services,1856.63, 26-May-2015
1403,Revenue,CCHD,Home Care - Elderly - North,Day Care / Social Activities,Milestones Supported Living Services,3208.00, 26-May-2015
1404,Revenue,CCHD,Home Care - Elderly - North,Other Small Contracts,Milestones Supported Living Services,280.00, 26-May-2015
1405,Revenue,CCHD,Home Care - Elderly - North,Supported Living,Milestones Supported Living Services,240.60, 26-May-2015
1406,Revenue,CCHD,Day Care - South,Day Care / Social Activities,Milestones Supported Living Services,122.02, 26-May-2015
1407,Revenue,CCHD,Day Care - North,Day Care / Social Activities,Milestones Supported Living Services,167.00, 26-May-2015
1408,Revenue,CCHD,Home care - Elderly MH - North,Other Small Contracts,Milestones Supported Living Services,84.21, 26-May-2015
1409,Revenue,CCHD,Home Care - Elderly - South,Day Care / Social Activities,Milestones Supported Living Services,7620.76, 29-May-2015
1410,Revenue,CCHD,Home Care - Elderly - South,Other Small Contracts,Milestones Supported Living Services,624.86, 29-May-2015
1411,Revenue,CCHD,Home Care - Elderly - South,Supported Living,Milestones Supported Living Services,1868.66, 29-May-2015
1412,Revenue,CCHD,Home Care - Elderly - North,Day Care / Social Activities,Milestones Supported Living Services,3208.00, 29-May-2015
1413,Revenue,CCHD,Home Care - Elderly - North,Other Small Contracts,Milestones Supported Living Services,280.00, 29-May-2015
1414,Revenue,CCHD,Home Care - Elderly - North,Supported Living,Milestones Supported Living Services,240.60, 29-May-2015
1415,Revenue,CCHD,Day Care - South,Day Care / Social Activities,Milestones Supported Living Services,109.44, 29-May-2015
1416,Revenue,CCHD,Day Care - North,Day Care / Social Activities,Milestones Supported Living Services,195.46, 29-May-2015
1417,Revenue,CCHD,Home care - Elderly MH - North,Other Small Contracts,Milestones Supported Living Services,92.23, 29-May-2015
1418,Revenue,CCHD,Home Care - Elderly - South,Day Care / Social Activities,Milestones Supported Living Services,7633.22, 29-May-2015
1419,Revenue,CCHD,Home Care - Elderly - South,Other Small Contracts,Milestones Supported Living Services,592.24, 29-May-2015
1420,Revenue,CCHD,Home Care - Elderly - South,Supported Living,Milestones Supported Living Services,1904.14, 29-May-2015
1421,Revenue,CCHD,Home Care - Elderly - North,Day Care / Social Activities,Milestones Supported Living Services,3249.82, 29-May-2015
1422,Revenue,CCHD,Home Care - Elderly - North,Other Small Contracts,Milestones Supported Living Services,283.21, 29-May-2015
1423,Revenue,CCHD,Home Care - Elderly - North,Supported Living,Milestones Supported Living Services,203.00, 29-May-2015
1424,Revenue,CCHD,Day Care - South,Day Care / Social Activities,Milestones Supported Living Services,117.56, 29-May-2015
1425,Revenue,CCHD,Day Care - North,Day Care / Social Activities,Milestones Supported Living Services,199.76, 29-May-2015
1426,Revenue,CCHD,Younger MH non-res purchasing,Day Care / Social Activities,Milestones Supported Living Services,27.36, 29-May-2015
1427,Revenue,CCHD,Home care - Elderly MH - North,Other Small Contracts,Milestones Supported Living Services,92.63, 29-May-2015
1428,Revenue,CCHD,Purchase of Non-Res Care - North,Day Care / Social Activities,Milestones Trust,1190.26, 01-May-2015
1429,Revenue,CCHD,Bed Purchasing - North,Permanent Nursing,Milestones Trust,1359.25, 22-May-2015
1430,Revenue,CCHD,Stibbs and Fairburn,Permanent Residential,Milestones Trust,3478.33, 14-May-2015
1431,Revenue,CCHD,Purchase of Non-Res Care - North,Day Care / Social Activities,Milestones Trust,585.58, 11-May-2015
1432,Revenue,CCHD,Supported Living (S28a) North,Private & Voluntary Home Care,Milestones Trust,579.79, 22-May-2015
1433,Revenue,CCHD,Stibbs and Fairburn,Respite Planned - Residential,Milestones Trust,129242.25, 22-May-2015
1434,Revenue,CCHD,Bed Purchasing - Southmead Hospital,Permanent Residential,Mostyn Lodge Residential Home,1143.20, 12-May-2015
1435,Revenue,CCHD,Bed Purchasing - North,Permanent Residential,Mostyn Lodge Residential Home,1239.80, 12-May-2015
1436,Revenue,CCHD,Bed Purchasing - Southmead Hospital,Permanent Nursing,Mount Elton Nursing Home,1698.04, 12-May-2015
1437,Revenue,CCHD,Day Care - South,Day Care / Social Activities,Moving On,991.80, 11-May-2015
1438,Revenue,CCHD,Supported Living - South,Private & Voluntary Home Care,Moving On,1225.44, 05-May-2015
1439,Revenue,CCHD,Social Lettings Agency,Fees - General,Individual,10.00, 07-May-2015
1440,Revenue,CCHD,Social Lettings Agency,Other Supplies & Services,Individual,565.00, 07-May-2015
1441,Revenue,CCHD,Social Lettings Agency,Fees - General,Individual,10.09, 06-May-2015
1442,Revenue,CCHD,Social Lettings Agency,Other Supplies & Services,Individual,570.66, 06-May-2015
1443,Revenue,CCHD,Social Lettings Agency,Fees - General,Individual,10.10, 07-May-2015
1444,Revenue,CCHD,Social Lettings Agency,Other Supplies & Services,Individual,570.64, 07-May-2015
1445,Revenue,CCHD,Social Lettings Agency,Fees - General,Individual,10.00, 22-May-2015
1446,Revenue,CCHD,Social Lettings Agency,Other Supplies & Services,Individual,565.00, 22-May-2015
1447,Revenue,CCHD,Social Lettings Agency,Fees - General,Individual,8.60, 22-May-2015
1448,Revenue,CCHD,Social Lettings Agency,Other Supplies & Services,Individual,582.00, 22-May-2015
1449,Revenue,CCHD,Supporting People Programme,Grants to Voluntary Bodies,Individual,1009.70, 01-May-2015
1450,Revenue,CCHD,Social Lettings Agency,Fees - General,Individual,11.60, 01-May-2015
1451,Revenue,CCHD,Social Lettings Agency,Other Supplies & Services,Individual,655.41, 01-May-2015
1452,Revenue,CCHD,Homeless - Private Sector Leasing,Other Supplies & Services,Individual,565.00, 22-May-2015
1453,Revenue,CCHD,Social Lettings Agency,Fees - General,Individual,10.00, 08-May-2015
1454,Revenue,CCHD,Social Lettings Agency,Other Supplies & Services,Individual,565.00, 08-May-2015
1455,Revenue,CCHD,Social Lettings Agency,Fees - General,Individual,11.60, 08-May-2015
1456,Revenue,CCHD,Social Lettings Agency,Other Supplies & Services,Individual,655.41, 08-May-2015
1457,Revenue,CCHD,Social Lettings Agency,Fees - General,Individual,11.71, 01-May-2015
1458,Revenue,CCHD,Social Lettings Agency,Other Supplies & Services,Individual,661.96, 01-May-2015
1459,Revenue,CCHD,Social Lettings Agency,Fees - General,Individual,10.53, 22-May-2015
1460,Revenue,CCHD,Social Lettings Agency,Other Supplies & Services,Individual,595.11, 22-May-2015
1461,Revenue,CCHD,Social Lettings Agency,Fees - General,Individual,10.00, 08-May-2015
1462,Revenue,CCHD,Social Lettings Agency,Other Supplies & Services,Individual,565.00, 08-May-2015
1463,Revenue,CCHD,Social Lettings Agency,Fees - General,Individual,10.53, 01-May-2015
1464,Revenue,CCHD,Social Lettings Agency,Other Supplies & Services,Individual,529.11, 01-May-2015
1465,Revenue,CCHD,Social Lettings Agency,Fees - General,Individual,16.85, 21-May-2015
1466,Revenue,CCHD,Social Lettings Agency,Other Supplies & Services,Individual,951.90, 21-May-2015
1467,Revenue,CCHD,Social Lettings Agency,Fees - General,Individual,10.53, 29-May-2015
1468,Revenue,CCHD,Social Lettings Agency,Other Supplies & Services,Individual,595.11, 29-May-2015
1469,Revenue,CCHD,Social Lettings Agency,Fees - General,Individual,7.50, 13-May-2015
1470,Revenue,CCHD,Social Lettings Agency,Other Supplies & Services,Individual,580.00, 13-May-2015
1471,Revenue,CCHD,Home Care - Elderly - South,Day Care / Social Activities,Mrs B Kimber -  CM2000,1127.04, 06-May-2015
1472,Revenue,CCHD,Home Care - Elderly - South,Other Small Contracts,Mrs B Kimber -  CM2000,11149.76, 06-May-2015
1473,Revenue,CCHD,Home Care - Elderly - South,Supported Living,Mrs B Kimber -  CM2000,33.28, 06-May-2015
1474,Revenue,CCHD,Home Care - Elderly - North,Day Care / Social Activities,Mrs B Kimber -  CM2000,349.44, 06-May-2015
1475,Revenue,CCHD,Home Care - Elderly - North,Other Small Contracts,Mrs B Kimber -  CM2000,5478.72, 06-May-2015
1476,Revenue,CCHD,Under 65s -MH  Home Care Purch,Other Small Contracts,Mrs B Kimber -  CM2000,66.56, 06-May-2015
1477,Revenue,CCHD,Home Care - Elderly - South,Day Care / Social Activities,Mrs B Kimber -  CM2000,2156.48, 06-May-2015
1478,Revenue,CCHD,Home Care - Elderly - South,Other Small Contracts,Mrs B Kimber -  CM2000,10294.72, 06-May-2015
1479,Revenue,CCHD,Home Care - Elderly - South,Supported Living,Mrs B Kimber -  CM2000,33.28, 06-May-2015
1480,Revenue,CCHD,Home Care - Elderly - North,Day Care / Social Activities,Mrs B Kimber -  CM2000,324.48, 06-May-2015
1481,Revenue,CCHD,Home Care - Elderly - North,Other Small Contracts,Mrs B Kimber -  CM2000,5503.68, 06-May-2015
1482,Revenue,CCHD,Under 65s -MH  Home Care Purch,Other Small Contracts,Mrs B Kimber -  CM2000,66.56, 06-May-2015
1483,Revenue,CCHD,Home Care - Elderly - South,Day Care / Social Activities,Mrs B Kimber -  CM2000,1698.88, 22-May-2015
1484,Revenue,CCHD,Home Care - Elderly - South,Other Small Contracts,Mrs B Kimber -  CM2000,10740.48, 22-May-2015
1485,Revenue,CCHD,Home Care - Elderly - South,Supported Living,Mrs B Kimber -  CM2000,33.28, 22-May-2015
1486,Revenue,CCHD,Home Care - Elderly - North,Day Care / Social Activities,Mrs B Kimber -  CM2000,357.76, 22-May-2015
1487,Revenue,CCHD,Home Care - Elderly - North,Other Small Contracts,Mrs B Kimber -  CM2000,5441.28, 22-May-2015
1488,Revenue,CCHD,Under 65s -MH  Home Care Purch,Other Small Contracts,Mrs B Kimber -  CM2000,66.56, 22-May-2015
1489,Revenue,CCHD,Home Care - Elderly - South,Day Care / Social Activities,Mrs B Kimber -  CM2000,2655.68, 27-May-2015
1490,Revenue,CCHD,Home Care - Elderly - South,Other Small Contracts,Mrs B Kimber -  CM2000,9792.32, 27-May-2015
1491,Revenue,CCHD,Home Care - Elderly - South,Supported Living,Mrs B Kimber -  CM2000,33.28, 27-May-2015
1492,Revenue,CCHD,Home Care - Elderly - North,Day Care / Social Activities,Mrs B Kimber -  CM2000,436.80, 27-May-2015
1493,Revenue,CCHD,Home Care - Elderly - North,Other Small Contracts,Mrs B Kimber -  CM2000,6102.72, 27-May-2015
1494,Revenue,CCHD,Under 65s -MH  Home Care Purch,Other Small Contracts,Mrs B Kimber -  CM2000,66.56, 27-May-2015
1495,Revenue,CCHD,Home Care - Elderly - South,Day Care / Social Activities,Mrs B Kimber -  CM2000,1987.84, 27-May-2015
1496,Revenue,CCHD,Home Care - Elderly - South,Other Small Contracts,Mrs B Kimber -  CM2000,9236.48, 27-May-2015
1497,Revenue,CCHD,Home Care - Elderly - South,Supported Living,Mrs B Kimber -  CM2000,33.28, 27-May-2015
1498,Revenue,CCHD,Home Care - Elderly - North,Day Care / Social Activities,Mrs B Kimber -  CM2000,307.84, 27-May-2015
1499,Revenue,CCHD,Home Care - Elderly - North,Other Small Contracts,Mrs B Kimber -  CM2000,5832.32, 27-May-2015
1500,Revenue,CCHD,Under 65s -MH  Home Care Purch,Other Small Contracts,Mrs B Kimber -  CM2000,33.28, 27-May-2015
1501,Revenue,CCHD,Home Care - Elderly - South,Day Care / Social Activities,Mrs B Kimber -  CM2000,2210.56, 29-May-2015
1502,Revenue,CCHD,Home Care - Elderly - South,Other Small Contracts,Mrs B Kimber -  CM2000,9612.48, 29-May-2015
1503,Revenue,CCHD,Home Care - Elderly - South,Supported Living,Mrs B Kimber -  CM2000,33.28, 29-May-2015
1504,Revenue,CCHD,Home Care - Elderly - North,Day Care / Social Activities,Mrs B Kimber -  CM2000,399.36, 29-May-2015
1505,Revenue,CCHD,Home Care - Elderly - North,Other Small Contracts,Mrs B Kimber -  CM2000,5545.28, 29-May-2015
1506,Revenue,CCHD,Under 65s -MH  Home Care Purch,Other Small Contracts,Mrs B Kimber -  CM2000,66.56, 29-May-2015
1507,Revenue,CCHD,Social Lettings Agency,Fees - General,Individual,10.53, 14-May-2015
1508,Revenue,CCHD,Social Lettings Agency,Other Supplies & Services,Individual,595.11, 14-May-2015
1509,Revenue,CCHD,Social Lettings Agency,Fees - General,Individual,10.00, 22-May-2015
1510,Revenue,CCHD,Social Lettings Agency,Other Supplies & Services,Individual,565.00, 22-May-2015
1511,Revenue,CCHD,Social Lettings Agency,Fees - General,Individual,10.00, 01-May-2015
1512,Revenue,CCHD,Social Lettings Agency,Other Supplies & Services,Individual,565.00, 01-May-2015
1513,Revenue,CCHD,Supported Living - North,Permanent Residential,Individual,1291.44, 14-May-2015
1514,Revenue,CCHD,Social Lettings Agency,Fees - General,Individual,10.53, 14-May-2015
1515,Revenue,CCHD,Social Lettings Agency,Other Supplies & Services,Individual,595.11, 14-May-2015
1516,Revenue,CCHD,Social Lettings Agency,Fees - General,Individual,10.53, 12-May-2015
1517,Revenue,CCHD,Social Lettings Agency,Other Supplies & Services,Individual,595.11, 12-May-2015
1518,Revenue,CCHD,Supported Living - North,Permanent Residential,Individual,1276.85, 18-May-2015
1519,Revenue,CCHD,Supported Living - North,Permanent Residential,Individual,849.76, 14-May-2015
1520,Revenue,CCHD,Social Lettings Agency,Fees - General,Individual,10.00, 08-May-2015
1521,Revenue,CCHD,Social Lettings Agency,Other Supplies & Services,Individual,565.00, 08-May-2015
1522,Revenue,CCHD,Social Lettings Agency,Fees - General,Individual,17.13, 11-May-2015
1523,Revenue,CCHD,Social Lettings Agency,Other Supplies & Services,Individual,977.68, 11-May-2015
1524,Revenue,CCHD,Complaints and FOI,Complaints External Expenses,Individual,1902.02, 27-May-2015
1525,Revenue,CCHD,Alexandra Way,Cleaning & Domestic Services,Muzzell Healthcare,551.52, 26-May-2015
1526,Revenue,CCHD,Purchase of Non-Res Care - North,Day Care / Social Activities,NAS Services Limited,1285.20, 01-May-2015
1527,Revenue,CCHD,Purchase of Non-Res Care - North,Day Care / Social Activities,NAS Services Limited,1028.16, 01-May-2015
1528,Revenue,CCHD,Purchase of Non-Res Care - North,Day Care / Social Activities,NAS Services Limited,656.88, 05-May-2015
1529,Revenue,CCHD,Purchase of Non-Res Care - North,Day Care / Social Activities,NAS Services Limited,1599.36, 29-May-2015
1530,Revenue,CCHD,Younger MH non-res purchasing,Day Care / Social Activities,NAS Services Limited,764.00, 29-May-2015
1531,Revenue,CCHD,Day Care - North,Day Care / Social Activities,NAS Services Limited,1298.80, 29-May-2015
1532,Revenue,CCHD,Day Care - South,Day Care / Social Activities,NAS Services Limited,687.60, 29-May-2015
1533,Revenue,CCHD,Younger MH non-res purchasing,Day Care / Social Activities,NAS Services Limited,630.30, 29-May-2015
1534,Revenue,CCHD,Newton House,Security Systems,National Security Group,109.98, 18-May-2015
1535,Revenue,CCHD,Drug/Alcohol Residential Rehab,Security Systems,National Security Group,21.67, 18-May-2015
1536,Revenue,CCHD,Bed Purchasing - North,Permanent Residential,National Star College,5035.04, 12-May-2015
1537,Revenue,CCHD,Home Care - Elderly - South,Day Care / Social Activities,Nestor T/A Allied Healthcare,98.80, 11-May-2015
1538,Revenue,CCHD,Home Care - Elderly - South,Other Small Contracts,Nestor T/A Allied Healthcare,3123.60, 11-May-2015
1539,Revenue,CCHD,Home Care - Elderly - North,Day Care / Social Activities,Nestor T/A Allied Healthcare,83.60, 11-May-2015
1540,Revenue,CCHD,Home Care - Elderly - North,Other Small Contracts,Nestor T/A Allied Healthcare,7227.60, 11-May-2015
1541,Revenue,CCHD,Day Care - North,Day Care / Social Activities,Nestor T/A Allied Healthcare,129.20, 11-May-2015
1542,Revenue,CCHD,Home care - Elderly MH - North,Other Small Contracts,Nestor T/A Allied Healthcare,53.20, 11-May-2015
1543,Revenue,CCHD,Home Care - Elderly - South,Day Care / Social Activities,Nestor T/A Allied Healthcare,102.60, 12-May-2015
1544,Revenue,CCHD,Home Care - Elderly - South,Other Small Contracts,Nestor T/A Allied Healthcare,3222.40, 12-May-2015
1545,Revenue,CCHD,Home Care - Elderly - North,Day Care / Social Activities,Nestor T/A Allied Healthcare,87.40, 12-May-2015
1546,Revenue,CCHD,Home Care - Elderly - North,Other Small Contracts,Nestor T/A Allied Healthcare,7090.80, 12-May-2015
1547,Revenue,CCHD,Day Care - North,Day Care / Social Activities,Nestor T/A Allied Healthcare,121.60, 12-May-2015
1548,Revenue,CCHD,Home care - Elderly MH - North,Other Small Contracts,Nestor T/A Allied Healthcare,53.20, 12-May-2015
1549,Revenue,CCHD,Home Care - Elderly - South,Day Care / Social Activities,Nestor T/A Allied Healthcare,69.30, 22-May-2015
1550,Revenue,CCHD,Home Care - Elderly - South,Other Small Contracts,Nestor T/A Allied Healthcare,3209.34, 22-May-2015
1551,Revenue,CCHD,Home Care - Elderly - North,Other Small Contracts,Nestor T/A Allied Healthcare,7630.70, 22-May-2015
1552,Revenue,CCHD,Day Care - North,Day Care / Social Activities,Nestor T/A Allied Healthcare,69.30, 22-May-2015
1553,Revenue,CCHD,Home care - Elderly MH - North,Other Small Contracts,Nestor T/A Allied Healthcare,53.90, 22-May-2015
1554,Revenue,CCHD,Home Care - Elderly - South,Day Care / Social Activities,Nestor T/A Allied Healthcare,69.30, 22-May-2015
1555,Revenue,CCHD,Home Care - Elderly - South,Other Small Contracts,Nestor T/A Allied Healthcare,2932.44, 22-May-2015
1556,Revenue,CCHD,Home Care - Elderly - North,Other Small Contracts,Nestor T/A Allied Healthcare,7711.55, 22-May-2015
1557,Revenue,CCHD,Day Care - North,Day Care / Social Activities,Nestor T/A Allied Healthcare,69.30, 22-May-2015
1558,Revenue,CCHD,Home care - Elderly MH - North,Other Small Contracts,Nestor T/A Allied Healthcare,53.90, 22-May-2015
1559,Revenue,CCHD,Home Care - Elderly - South,Day Care / Social Activities,Network Health & Social Care,30.64, 06-May-2015
1560,Revenue,CCHD,Home Care - Elderly - South,Other Small Contracts,Network Health & Social Care,1853.72, 06-May-2015
1561,Revenue,CCHD,Home Care - Elderly - North,Day Care / Social Activities,Network Health & Social Care,95.75, 06-May-2015
1562,Revenue,CCHD,Home Care - Elderly - North,Other Small Contracts,Network Health & Social Care,4006.18, 06-May-2015
1563,Revenue,CCHD,Home Care - Elderly - South,Day Care / Social Activities,Network Health & Social Care,15.32, 06-May-2015
1564,Revenue,CCHD,Home Care - Elderly - South,Other Small Contracts,Network Health & Social Care,1689.03, 06-May-2015
1565,Revenue,CCHD,Home Care - Elderly - North,Day Care / Social Activities,Network Health & Social Care,49.79, 06-May-2015
1566,Revenue,CCHD,Home Care - Elderly - North,Other Small Contracts,Network Health & Social Care,3477.64, 06-May-2015
1567,Revenue,CCHD,Home Care - Elderly - South,Other Small Contracts,Network Health & Social Care,1478.38, 06-May-2015
1568,Revenue,CCHD,Home Care - Elderly - North,Day Care / Social Activities,Network Health & Social Care,49.79, 06-May-2015
1569,Revenue,CCHD,Home Care - Elderly - North,Other Small Contracts,Network Health & Social Care,3852.98, 06-May-2015
1570,Revenue,CCHD,Home Care - Elderly - South,Other Small Contracts,Network Health & Social Care,1478.38, 06-May-2015
1571,Revenue,CCHD,Home Care - Elderly - North,Day Care / Social Activities,Network Health & Social Care,30.64, 06-May-2015
1572,Revenue,CCHD,Home Care - Elderly - North,Other Small Contracts,Network Health & Social Care,3236.35, 06-May-2015
1573,Revenue,CCHD,Home Care - Elderly - South,Day Care / Social Activities,Network Health & Social Care,30.64, 06-May-2015
1574,Revenue,CCHD,Home Care - Elderly - South,Other Small Contracts,Network Health & Social Care,1221.77, 06-May-2015
1575,Revenue,CCHD,Home Care - Elderly - North,Day Care / Social Activities,Network Health & Social Care,15.32, 06-May-2015
1576,Revenue,CCHD,Home Care - Elderly - North,Other Small Contracts,Network Health & Social Care,3381.89, 06-May-2015
1577,Revenue,CCHD,Home Care - Elderly - South,Other Small Contracts,Network Health & Social Care,1394.12, 06-May-2015
1578,Revenue,CCHD,Home Care - Elderly - North,Day Care / Social Activities,Network Health & Social Care,30.64, 06-May-2015
1579,Revenue,CCHD,Home Care - Elderly - North,Other Small Contracts,Network Health & Social Care,3381.89, 06-May-2015
1580,Revenue,CCHD,Home Care - Elderly - South,Other Small Contracts,Network Health & Social Care,666.42, 06-May-2015
1581,Revenue,CCHD,Home Care - Elderly - North,Day Care / Social Activities,Network Health & Social Care,34.47, 06-May-2015
1582,Revenue,CCHD,Home Care - Elderly - North,Other Small Contracts,Network Health & Social Care,2386.09, 06-May-2015
1583,Revenue,CCHD,Home Care - Elderly - South,Other Small Contracts,Network Health & Social Care,229.80, 06-May-2015
1584,Revenue,CCHD,Home Care - Elderly - North,Day Care / Social Activities,Network Health & Social Care,30.64, 06-May-2015
1585,Revenue,CCHD,Home Care - Elderly - North,Other Small Contracts,Network Health & Social Care,1915.00, 06-May-2015
1586,Revenue,CCHD,Home Care - Elderly - South,Other Small Contracts,Network Health & Social Care,233.63, 06-May-2015
1587,Revenue,CCHD,Home Care - Elderly - North,Day Care / Social Activities,Network Health & Social Care,30.64, 06-May-2015
1588,Revenue,CCHD,Home Care - Elderly - North,Other Small Contracts,Network Health & Social Care,1926.49, 06-May-2015
1589,Revenue,CCHD,Home Care - Elderly - South,Other Small Contracts,Network Health & Social Care,237.46, 15-May-2015
1590,Revenue,CCHD,Home Care - Elderly - North,Day Care / Social Activities,Network Health & Social Care,30.64, 15-May-2015
1591,Revenue,CCHD,Home Care - Elderly - North,Other Small Contracts,Network Health & Social Care,1700.52, 15-May-2015
1592,Revenue,CCHD,Community Promoting Independence Team,"Holidays, Outings & Visits",Individual,1452.00, 01-May-2015
1593,Revenue,CCHD,Bed Purchasing - South,Permanent Residential,Norwood   Broadway House,5027.16, 12-May-2015
1594,Revenue,CCHD,Bed Purchasing - Southmead Hospital,Permanent Residential,Notaro Homes Ltd  Queensmead Court,3032.40, 12-May-2015
1595,Revenue,CCHD,Bed Purchasing - South,Permanent Residential,Notaro Homes Ltd  Queensmead Court,1905.16, 12-May-2015
1596,Revenue,CCHD,Bed Purchasing - Southmead Hospital,Permanent Residential,Notaro Homes Ltd  Queensmead Court,1399.96, 12-May-2015
1597,Revenue,CCHD,MH Purchasing - Younger,Permanent Residential,Notaro Homes Ltd  Queensmead Court,3032.40, 12-May-2015
1598,Revenue,CCHD,Bed Purchasing - South,Permanent Residential,Nova House Care Home,954.84, 12-May-2015
1599,Revenue,CCHD,Home Care - Elderly - South,Day Care / Social Activities,Nursing Solutions Limited,31.36, 01-May-2015
1600,Revenue,CCHD,Home Care - Elderly - South,Other Small Contracts,Nursing Solutions Limited,2591.12, 01-May-2015
1601,Revenue,CCHD,Home Care - Elderly - North,Other Small Contracts,Nursing Solutions Limited,697.76, 01-May-2015
1602,Revenue,CCHD,Home Care - Elderly - South,Day Care / Social Activities,Nursing Solutions Limited,27.44, 01-May-2015
1603,Revenue,CCHD,Home Care - Elderly - South,Other Small Contracts,Nursing Solutions Limited,2583.28, 01-May-2015
1604,Revenue,CCHD,Home Care - Elderly - North,Other Small Contracts,Nursing Solutions Limited,631.12, 01-May-2015
1605,Revenue,CCHD,Home Care - Elderly - South,Day Care / Social Activities,Nursing Solutions Limited,31.36, 01-May-2015
1606,Revenue,CCHD,Home Care - Elderly - South,Other Small Contracts,Nursing Solutions Limited,2587.20, 01-May-2015
1607,Revenue,CCHD,Home Care - Elderly - North,Other Small Contracts,Nursing Solutions Limited,642.88, 01-May-2015
1608,Revenue,CCHD,Home Care - Elderly - South,Other Small Contracts,Nursing Solutions Limited,2532.32, 01-May-2015
1609,Revenue,CCHD,Home Care - Elderly - North,Other Small Contracts,Nursing Solutions Limited,658.56, 01-May-2015
1610,Revenue,CCHD,Home Care - Elderly - South,Day Care / Social Activities,Nursing Solutions Limited,31.76, 01-May-2015
1611,Revenue,CCHD,Home Care - Elderly - South,Other Small Contracts,Nursing Solutions Limited,2993.38, 01-May-2015
1612,Revenue,CCHD,Home Care - Elderly - North,Other Small Contracts,Nursing Solutions Limited,579.62, 01-May-2015
1613,Revenue,CCHD,Home Care - Elderly - South,Day Care / Social Activities,Nursing Solutions Limited,31.76, 22-May-2015
1614,Revenue,CCHD,Home Care - Elderly - South,Other Small Contracts,Nursing Solutions Limited,3354.65, 22-May-2015
1615,Revenue,CCHD,Home Care - Elderly - North,Other Small Contracts,Nursing Solutions Limited,583.59, 22-May-2015
1616,Revenue,CCHD,Home Care - Elderly - South,Day Care / Social Activities,Nursing Solutions Limited,31.76, 22-May-2015
1617,Revenue,CCHD,Home Care - Elderly - South,Other Small Contracts,Nursing Solutions Limited,3303.04, 22-May-2015
1618,Revenue,CCHD,Home Care - Elderly - North,Other Small Contracts,Nursing Solutions Limited,524.04, 22-May-2015
1619,Revenue,CCHD,Section 117 Placements MH Younger,Permanent Nursing,Oaklands,6154.56, 12-May-2015
1620,Revenue,CCHD,Alexandra Way,Refuse Collection Charges,OCS Group UK Ltd,417.83, 26-May-2015
1621,Revenue,CCHD,Bed purchasing -S28A  Under 65 - North,Permanent Residential,Orchard End Limited,7645.60, 12-May-2015
1622,Revenue,CCHD,Turnberries,"Provisions (Food, etc)",Origin Cafe,553.50, 22-May-2015
1623,Revenue,CCHD,Turnberries,"Provisions (Food, etc)",Origin Cafe,577.50, 22-May-2015
1624,Revenue,CCHD,Bed Purchasing - Southmead Hospital,Permanent Residential,Osbourne Court,2559.12, 12-May-2015
1625,Revenue,CCHD,Bed Purchasing - Southmead Hospital,Permanent Residential,Osbourne Court,973.08, 12-May-2015
1626,Revenue,CCHD,Bed Purchasing - North,Permanent Residential,Osbourne Court,2204.80, 12-May-2015
1627,Revenue,CCHD,Bed Purchasing - North,Permanent Residential,Osbourne Court,1831.04, 12-May-2015
1628,Revenue,CCHD,Bed Purchasing - North,Permanent Residential,Osbourne Court,2063.12, 12-May-2015
1629,Revenue,CCHD,Bed Purchasing - North,Respite Planned - Residential,Osbourne Court,820.00, 12-May-2015
1630,Revenue,CCHD,Bed Purchasing - Southmead Hospital,Permanent Residential,Osbourne Court,1612.84, 12-May-2015
1631,Revenue,CCHD,Bed Purchasing - Elderly S117- North,Permanent Residential,Osbourne Court,1948.00, 12-May-2015
1632,Revenue,CCHD,Swift Dump Code,Permanent Residential,Osbourne Court,866.43, 12-May-2015
1633,Revenue,CCHD,Bed purchasing - S28A Under 65 - South,Permanent Residential,Osprey Court,4370.60, 12-May-2015
1634,Revenue,CCHD,Bed Purchasing - South,Permanent Residential,Osprey Court,7835.00, 12-May-2015
1635,Revenue,CCHD,Bed purchasing - S28A Under 65 - South,Permanent Residential,Osprey Court,6461.08, 12-May-2015
1636,Revenue,CCHD,Bed purchasing - Elderly S117 - South,Permanent Residential,Osprey Court,11450.92, 12-May-2015
1637,Revenue,CCHD,Breakthrough and Inclusion Work,Other Supplies & Services,P3D,2889.68, 18-May-2015
1638,Revenue,CCHD,Bed Purchasing - Southmead Hospital,Permanent Nursing,Palm Court Nursing Home,1539.40, 12-May-2015
1639,Revenue,CCHD,Bed Purchasing - South,Respite Planned - Residential,Park Farm House,650.00, 12-May-2015
1640,Revenue,CCHD,Bed Purchasing - South,Permanent Residential,Park Farm House,1627.56, 12-May-2015
1641,Revenue,CCHD,Bed Purchasing - South,Permanent Residential,Park Hall,5617.76, 12-May-2015
1642,Revenue,CCHD,Bed Purchasing - North,Permanent Residential,Park Hall,5258.76, 12-May-2015
1643,Revenue,CCHD,Bed Purchasing - South,Permanent Residential,Park Hall,5069.64, 12-May-2015
1644,Revenue,CCHD,Bed Purchasing - South,Permanent Residential,Park Hall,2579.24, 12-May-2015
1645,Revenue,CCHD,Bed Purchasing - North,Permanent Residential,Park Hall,5017.28, 12-May-2015
1646,Revenue,CCHD,Bed purchasing - S28A Under 65 - South,Permanent Residential,Park Hall,4734.56, 12-May-2015
1647,Revenue,CCHD,Bed Purchasing - South,Permanent Residential,Park Hall,5045.36, 12-May-2015
1648,Revenue,CCHD,Bed Purchasing - North,Permanent Residential,Park Hall,4371.04, 12-May-2015
1649,Revenue,CCHD,Bed Purchasing - South,Permanent Residential,Park Hall,10884.24, 12-May-2015
1650,Revenue,CCHD,Bed purchasing -S28A  Under 65 - North,Permanent Residential,Park Hall,5996.24, 12-May-2015
1651,Revenue,CCHD,Bed purchasing - S28A Under 65 - South,Permanent Residential,Park Hall,5733.80, 12-May-2015
1652,Revenue,CCHD,18-25 Year Olds,Permanent Residential,Park Hall,7259.36, 12-May-2015
1653,Revenue,CCHD,Social Lettings Agency,Fees - General,Individual,10.00, 27-May-2015
1654,Revenue,CCHD,Social Lettings Agency,Other Supplies & Services,Individual,565.00, 27-May-2015
1655,Revenue,CCHD,Bed Purchasing - South,Permanent Residential,Penleigh House Care Home,4610.80, 12-May-2015
1656,Revenue,CCHD,Bed Purchasing - South,Permanent Residential,Penleigh House Care Home,6501.16, 12-May-2015
1657,Revenue,CCHD,Bed Purchasing - South,Permanent Residential,Penleigh House Care Home,4361.48, 12-May-2015
1658,Revenue,CCHD,Bed purchasing - S28A Under 65 - South,Permanent Residential,Penleigh House Care Home,5558.12, 12-May-2015
1659,Revenue,CCHD,Bed Purchasing - South,Permanent Residential,Penleigh House Care Home,5020.84, 12-May-2015
1660,Revenue,CCHD,Home Care - Elderly - North,Day Care / Social Activities,Premier Homecare Limited,78.37, 11-May-2015
1661,Revenue,CCHD,Home Care - Elderly - North,Other Small Contracts,Premier Homecare Limited,12977.15, 11-May-2015
1662,Revenue,CCHD,Home care - Elderly MH - North,Other Small Contracts,Premier Homecare Limited,129.08, 11-May-2015
1663,Revenue,CCHD,Elderly MH Day Care North,Day Care / Social Activities,Premier Homecare Limited,36.88, 11-May-2015
1664,Revenue,CCHD,Home Care - Elderly - North,Day Care / Social Activities,Premier Homecare Limited,138.30, 11-May-2015
1665,Revenue,CCHD,Home Care - Elderly - North,Other Small Contracts,Premier Homecare Limited,13447.37, 11-May-2015
1666,Revenue,CCHD,Home care - Elderly MH - North,Other Small Contracts,Premier Homecare Limited,129.08, 11-May-2015
1667,Revenue,CCHD,Elderly MH Day Care North,Day Care / Social Activities,Premier Homecare Limited,73.76, 11-May-2015
1668,Revenue,CCHD,Home Care - Elderly - North,Other Small Contracts,Premier Homecare Limited,4480.00, 01-May-2015
1669,Revenue,CCHD,Home Care - Elderly - North,Other Small Contracts,Premier Homecare Limited,4480.00, 11-May-2015
1670,Revenue,CCHD,Home Care - Elderly - North,Other Small Contracts,Premier Homecare Limited,4480.00, 18-May-2015
1671,Revenue,CCHD,Home Care - Elderly - North,Other Small Contracts,Premier Homecare Limited,4480.00, 26-May-2015
1672,Revenue,CCHD,Home Care - Elderly - South,Other Small Contracts,Prestige Nursing,598.05, 11-May-2015
1673,Revenue,CCHD,Home Care - Elderly - North,Day Care / Social Activities,Prestige Nursing,1107.50, 11-May-2015
1674,Revenue,CCHD,Home Care - Elderly - North,Other Small Contracts,Prestige Nursing,504.43, 11-May-2015
1675,Revenue,CCHD,Day Care - South,Day Care / Social Activities,Prestige Nursing,88.60, 11-May-2015
1676,Revenue,CCHD,Home Care - Elderly - South,Other Small Contracts,Prestige Nursing,691.08, 11-May-2015
1677,Revenue,CCHD,Home Care - Elderly - North,Day Care / Social Activities,Prestige Nursing,1036.62, 11-May-2015
1678,Revenue,CCHD,Home Care - Elderly - North,Other Small Contracts,Prestige Nursing,429.12, 11-May-2015
1679,Revenue,CCHD,Day Care - South,Day Care / Social Activities,Prestige Nursing,128.47, 11-May-2015
1680,Revenue,CCHD,Home Care - Elderly - South,Other Small Contracts,Prestige Nursing,620.20, 11-May-2015
1681,Revenue,CCHD,Home Care - Elderly - North,Day Care / Social Activities,Prestige Nursing,1320.14, 11-May-2015
1682,Revenue,CCHD,Home Care - Elderly - North,Other Small Contracts,Prestige Nursing,500.00, 11-May-2015
1683,Revenue,CCHD,Day Care - South,Day Care / Social Activities,Prestige Nursing,124.04, 11-May-2015
1684,Revenue,CCHD,Home Care - Elderly - South,Other Small Contracts,Prestige Nursing,682.22, 15-May-2015
1685,Revenue,CCHD,Home Care - Elderly - North,Day Care / Social Activities,Prestige Nursing,1320.14, 15-May-2015
1686,Revenue,CCHD,Home Care - Elderly - North,Other Small Contracts,Prestige Nursing,513.29, 15-May-2015
1687,Revenue,CCHD,Day Care - South,Day Care / Social Activities,Prestige Nursing,124.04, 15-May-2015
1688,Revenue,CCHD,Home Care - Elderly - South,Other Small Contracts,Prestige Nursing,567.04, 26-May-2015
1689,Revenue,CCHD,Home Care - Elderly - North,Day Care / Social Activities,Prestige Nursing,1337.86, 26-May-2015
1690,Revenue,CCHD,Home Care - Elderly - North,Other Small Contracts,Prestige Nursing,500.00, 26-May-2015
1691,Revenue,CCHD,Day Care - South,Day Care / Social Activities,Prestige Nursing,124.04, 26-May-2015
1692,Revenue,CCHD,Sexual Health,Other Small Contracts,Preventx Limited,5539.00, 01-May-2015
1693,Revenue,CCHD,Bed Purchasing - North,Permanent Nursing,Ravenswood,2218.80, 12-May-2015
1694,Revenue,CCHD,Bed Purchasing - Elderly S117- North,Permanent Residential,Real Life Options,6943.72, 12-May-2015
1695,Revenue,CCHD,Breakthrough and Inclusion Work,Other Supplies & Services,Redefine Mentoring Ltd,4221.72, 11-May-2015
1696,Revenue,CCHD,Bed Purchasing - Elderly S117- North,Permanent Nursing,Redholme Memory Care Limited,2085.27, 12-May-2015
1697,Revenue,CCHD,Supporting People Programme,Grants to Voluntary Bodies,Redland Housing Association Ltd,745.72, 01-May-2015
1698,Revenue,CCHD,Bed Purchasing - South,Permanent Nursing,Regent House,2275.60, 12-May-2015
1699,Revenue,CCHD,Bed Purchasing - South,Permanent Nursing,Regent House,2115.84, 12-May-2015
1700,Revenue,CCHD,Bed Purchasing - South,Permanent Nursing,Regent House,2412.72, 12-May-2015
1701,Revenue,CCHD,Bed Purchasing - South,Permanent Nursing,Regent House,1684.88, 12-May-2015
1702,Revenue,CCHD,Bed Purchasing - South,Permanent Nursing,Regent House,1992.36, 12-May-2015
1703,Revenue,CCHD,Bed Purchasing - South,Permanent Nursing,Regent House,2034.08, 12-May-2015
1704,Revenue,CCHD,Bed Purchasing - South,Permanent Nursing,Regent House,1750.88, 12-May-2015
1705,Revenue,CCHD,Bed Purchasing - South,Permanent Nursing,Regent House,1906.64, 12-May-2015
1706,Revenue,CCHD,Bed Purchasing - South,Permanent Nursing,Regent House,7323.30, 12-May-2015
1707,Revenue,CCHD,Bed Purchasing - South,Permanent Nursing,Regent House,2523.60, 12-May-2015
1708,Revenue,CCHD,Bed Purchasing - South,Permanent Nursing,Regent House,1892.70, 12-May-2015
1709,Revenue,CCHD,Bed Purchasing - Southmead Hospital,Permanent Nursing,Regent House,2007.40, 12-May-2015
1710,Revenue,CCHD,Bed Purchasing - South,Permanent Nursing,Regent House,2071.92, 12-May-2015
1711,Revenue,CCHD,Bed Purchasing - North,Permanent Nursing,Regent House,2018.20, 12-May-2015
1712,Revenue,CCHD,Bed Purchasing - Southmead Hospital,Permanent Nursing,Regent House,1224.36, 12-May-2015
1713,Revenue,CCHD,South Glos Users in South Glos Homes,Permanent Nursing,Regent House,871.28, 12-May-2015
1714,Revenue,CCHD,Bed purchasing - Elderly S117 - South,Permanent Nursing,Regent House,3028.80, 12-May-2015
1715,Revenue,CCHD,Bed Purchasing - South,Permanent Nursing,Regent House,1687.76, 12-May-2015
1716,Revenue,CCHD,Bed Purchasing - North,Permanent Nursing,Regent House,2572.92, 12-May-2015
1717,Revenue,CCHD,Bed Purchasing - Southmead Hospital,Permanent Nursing,Regent House,1417.56, 12-May-2015
1718,Revenue,CCHD,Bed Purchasing - North,Permanent Nursing,Regent House,2523.60, 12-May-2015
1719,Revenue,CCHD,Bed Purchasing - South,Permanent Nursing,Regent House,1202.68, 12-May-2015
1720,Revenue,CCHD,Bed Purchasing - South,Permanent Nursing,Regent House,2402.32, 12-May-2015
1721,Revenue,CCHD,Bed Purchasing - South,Permanent Residential,Ridgeway House,3540.96, 12-May-2015
1722,Revenue,CCHD,Bed Purchasing - South,Permanent Residential,Riverside House,3651.08, 12-May-2015
1723,Revenue,CCHD,Bed Purchasing - Southmead Hospital,Permanent Nursing,Riversway Nursing Home,896.00, 12-May-2015
1724,Revenue,CCHD,Bed Purchasing - Southmead Hospital,Permanent Nursing,Riversway Nursing Home,2715.32, 12-May-2015
1725,Revenue,CCHD,Bed Purchasing - Southmead Hospital,Permanent Nursing,Riversway Nursing Home,2846.80, 12-May-2015
1726,Revenue,CCHD,Bed Purchasing - Southmead Hospital,Permanent Nursing,Riversway Nursing Home,508.36, 12-May-2015
1727,Revenue,CCHD,Bed Purchasing - South,Permanent Residential,Rockleaze,1438.16, 12-May-2015
1728,Revenue,CCHD,Bed Purchasing - LD S28A- Over 65- South,Permanent Residential,Rockleaze,2100.48, 12-May-2015
1729,Revenue,CCHD,Bed Purchasing - South,Permanent Residential,Rockleaze,2437.00, 12-May-2015
1730,Revenue,CCHD,Bed Purchasing - South,Permanent Residential,Rockleaze,1438.16, 12-May-2015
1731,Revenue,CCHD,Bed Purchasing - South,Permanent Residential,Rosedale House,1527.28, 12-May-2015
1732,Revenue,CCHD,Bed Purchasing - South,Permanent Residential,Rosewood Lodge & Brook House,4620.12, 12-May-2015
1733,Revenue,CCHD,NHS Health Checks & Tobacco Control,Drugs & Medical Supplies,Sainsbury`s Supermarkets Ltd,744.27, 18-May-2015
1734,Revenue,CCHD,Bed Purchasing - South,Permanent Residential,Salters Hill Barn,1320.32, 12-May-2015
1735,Revenue,CCHD,Bed Purchasing - Southmead Hospital,Permanent Residential,Sanctuary Care Ltd,1980.64, 12-May-2015
1736,Revenue,CCHD,Learning Difficulties PSL,Rent,Individual,1650.00, 01-May-2015
1737,Revenue,CCHD,Woodleaze,"Provisions (Food, etc)",School Milk Services Limited,803.10, 29-May-2015
1738,Revenue,CCHD,Bed Purchasing - South,Permanent Residential,Scope   Accounts Dept,3107.40, 12-May-2015
1739,Revenue,CCHD,Section 117 Placements MH Younger,Day Care / Social Activities,Second Step Housing Association,534.52, 27-May-2015
1740,Revenue,CCHD,Supporting People Programme,Grants to Voluntary Bodies,Second Step Housing Association,13599.72, 01-May-2015
1741,Revenue,CCHD,Supporting People Programme,Grants to Voluntary Bodies,Second Step Housing Association,12004.51, 01-May-2015
1742,Revenue,CCHD,Purchase of Non-Res Care - North,Day Care / Social Activities,Selborne Care Ltd,1355.76, 05-May-2015
1743,Revenue,CCHD,Purchase of Non-Res Care - North,Day Care / Social Activities,Selborne Care Ltd,974.48, 05-May-2015
1744,Revenue,CCHD,Purchase of Non-Res Care - North,Day Care / Social Activities,Selborne Care Ltd,888.32, 11-May-2015
1745,Revenue,CCHD,Purchase of Non-Res Care - North,Day Care / Social Activities,Selborne Care Ltd,796.92, 08-May-2015
1746,Revenue,CCHD,Purchase of Non-Res Care - North,Day Care / Social Activities,Selborne Care Ltd,708.87, 08-May-2015
1747,Revenue,CCHD,Purchase of Non-Res Care - North,Day Care / Social Activities,Selborne Care Ltd,604.80, 29-May-2015
1748,Revenue,CCHD,Purchase of Non-Res Care - North,Day Care / Social Activities,Selborne Care Ltd,612.00, 28-May-2015
1749,Revenue,CCHD,Supported Living - South,Private & Voluntary Home Care,Selborne Care Ltd,2464.00, 26-May-2015
1750,Revenue,CCHD,Supported Living - South,Private & Voluntary Home Care,Selborne Care Ltd,2493.68, 26-May-2015
1751,Revenue,CCHD,Home Care - Elderly - South,Supported Living,Selborrne House,6729.66, 12-May-2015
1752,Revenue,CCHD,Hospital Promoting Independence Team,Care Management/Assessment Staff Pay,Seven Resourcing Ltd,650.00, 05-May-2015
1753,Revenue,CCHD,Hospital Promoting Independence Team,Care Management/Assessment Staff Pay,Seven Resourcing Ltd,991.25, 12-May-2015
1754,Revenue,CCHD,Hospital Promoting Independence Team,Care Management/Assessment Staff Pay,Seven Resourcing Ltd,991.25, 19-May-2015
1755,Revenue,CCHD,Bed Purchasing - South,Permanent Residential,Shaldon House (Positive Care Ltd),2252.04, 12-May-2015
1756,Revenue,CCHD,Bed Purchasing - South,Permanent Nursing,Shaw Healthcare Ltd,1906.36, 12-May-2015
1757,Revenue,CCHD,Bed Purchasing - South,Permanent Nursing,Shaw Healthcare Ltd,2110.72, 12-May-2015
1758,Revenue,CCHD,Bed Purchasing - South,Permanent Nursing,Shaw Healthcare Ltd,2100.88, 12-May-2015
1759,Revenue,CCHD,Bed purchasing - S28A Under 65 - South,Permanent Residential,Shaw Healthcare Ltd,10077.12, 12-May-2015
1760,Revenue,CCHD,Bed purchasing - S28A Under 65 - South,Permanent Residential,Shaw Healthcare Ltd,9893.72, 12-May-2015
1761,Revenue,CCHD,Bed Purchasing - South,Permanent Residential,Shaw Healthcare Ltd,10013.56, 12-May-2015
1762,Revenue,CCHD,Bed Purchasing - South,Permanent Residential,Shaw Healthcare Ltd,4001.68, 12-May-2015
1763,Revenue,CCHD,Bed Purchasing - S28A - Over 65- North,Permanent Residential,Shaw Healthcare Ltd,4341.44, 12-May-2015
1764,Revenue,CCHD,Bed Purchasing - S28A - Over 65- North,Permanent Residential,Shaw Healthcare Ltd,4336.92, 12-May-2015
1765,Revenue,CCHD,Bed Purchasing - LD S28A- Over 65- South,Permanent Residential,Shaw Healthcare Ltd,4879.20, 12-May-2015
1766,Revenue,CCHD,Bed Purchasing - LD S28A- Over 65- South,Permanent Residential,Shaw Healthcare Ltd,4513.04, 12-May-2015
1767,Revenue,CCHD,Bed Purchasing - S28A - Over 65- North,Permanent Residential,Shaw Healthcare Ltd,6895.88, 12-May-2015
1768,Revenue,CCHD,Bed Purchasing - North,Permanent Residential,Shaw Healthcare Ltd,4185.36, 12-May-2015
1769,Revenue,CCHD,Bed Purchasing - Southmead Hospital,Permanent Residential,Shaw Healthcare Ltd,1130.21, 12-May-2015
1770,Revenue,CCHD,Home Care - Elderly - South,Independent Living,Silva Care Limited,1041.92, 11-May-2015
1771,Revenue,CCHD,Purchase of Non-Res Care - North,Day Care / Social Activities,Silva Care Limited,5359.36, 08-May-2015
1772,Revenue,CCHD,Social Lettings Agency,Other Supplies & Services,Individual,640.72, 01-May-2015
1773,Revenue,CCHD,Social Lettings Agency,Other Supplies & Services,Individual,640.72, 01-May-2015
1774,Revenue,CCHD,18-25 Year Olds,Permanent Residential,Small House Homes Limited,18210.08, 12-May-2015
1775,Revenue,CCHD,Home Care - Elderly - North,Supported Living,Smile Ind Living Support Limited,3028.12, 12-May-2015
1776,Revenue,CCHD,Home Care - Elderly - North,Supported Living,Smile Ind Living Support Limited,3028.12, 12-May-2015
1777,Revenue,CCHD,Home Care - Elderly - North,Supported Living,Smile Ind Living Support Limited,3028.12, 12-May-2015
1778,Revenue,CCHD,Home Care - Elderly - South,Day Care / Social Activities,Smile Independent Living Support Limited,563.64, 06-May-2015
1779,Revenue,CCHD,Home Care - Elderly - South,Other Small Contracts,Smile Independent Living Support Limited,378.84, 06-May-2015
1780,Revenue,CCHD,Home Care - Elderly - North,Day Care / Social Activities,Smile Independent Living Support Limited,1030.26, 06-May-2015
1781,Revenue,CCHD,Home Care - Elderly - North,Supported Living,Smile Independent Living Support Limited,286.44, 06-May-2015
1782,Revenue,CCHD,Home Care - Elderly - South,Day Care / Social Activities,Smile Independent Living Support Limited,619.08, 06-May-2015
1783,Revenue,CCHD,Home Care - Elderly - South,Other Small Contracts,Smile Independent Living Support Limited,258.72, 06-May-2015
1784,Revenue,CCHD,Home Care - Elderly - North,Day Care / Social Activities,Smile Independent Living Support Limited,1178.10, 06-May-2015
1785,Revenue,CCHD,Home Care - Elderly - North,Supported Living,Smile Independent Living Support Limited,295.68, 06-May-2015
1786,Revenue,CCHD,Home Care - Elderly - South,Day Care / Social Activities,Smile Independent Living Support Limited,621.11, 06-May-2015
1787,Revenue,CCHD,Home Care - Elderly - South,Other Small Contracts,Smile Independent Living Support Limited,350.25, 06-May-2015
1788,Revenue,CCHD,Home Care - Elderly - North,Day Care / Social Activities,Smile Independent Living Support Limited,1120.80, 06-May-2015
1789,Revenue,CCHD,Home Care - Elderly - North,Supported Living,Smile Independent Living Support Limited,443.65, 06-May-2015
1790,Revenue,CCHD,Home Care - Elderly - South,Day Care / Social Activities,Smile Independent Living Support Limited,616.44, 14-May-2015
1791,Revenue,CCHD,Home Care - Elderly - South,Other Small Contracts,Smile Independent Living Support Limited,266.19, 14-May-2015
1792,Revenue,CCHD,Home Care - Elderly - North,Day Care / Social Activities,Smile Independent Living Support Limited,994.71, 14-May-2015
1793,Revenue,CCHD,Home Care - Elderly - North,Supported Living,Smile Independent Living Support Limited,541.72, 14-May-2015
1794,Revenue,CCHD,Home Care - Elderly - South,Day Care / Social Activities,Smile Independent Living Support Limited,588.42, 20-May-2015
1795,Revenue,CCHD,Home Care - Elderly - South,Other Small Contracts,Smile Independent Living Support Limited,303.55, 20-May-2015
1796,Revenue,CCHD,Home Care - Elderly - North,Day Care / Social Activities,Smile Independent Living Support Limited,1116.13, 20-May-2015
1797,Revenue,CCHD,Home Care - Elderly - North,Supported Living,Smile Independent Living Support Limited,443.65, 20-May-2015
1798,Revenue,CCHD,Home Care - Elderly - South,Day Care / Social Activities,Smile Independent Living Support Limited,560.40, 26-May-2015
1799,Revenue,CCHD,Home Care - Elderly - South,Other Small Contracts,Smile Independent Living Support Limited,266.19, 26-May-2015
